Organisation Code,Organisation Label,Effective Date,Organisational Unit,Service Division Label,Category Internal Name,Purpose,Detailed Expenditure Code,Payment Date,Transaction Number,Irrecoverable VAT Amount,Amount,Capital Or Revenue,Benificiary Name,Procurement Card
Http://opendatacommunities.org/id/metropolitan-district-council/leeds,Leeds City Council,31/01/2019,Resources and Housing,Leeds Building Services,Supplies and Services,Operational Materials,205,09/01/2019,1901-00001,0.00,185.12,R,A & A Electrical Distributors Ltd,No
Http://opendatacommunities.org/id/metropolitan-district-council/leeds,Leeds City Council,31/01/2019,Resources and Housing,Leeds Building Services,Supplies and Services,Operational Materials,205,14/01/2019,1901-00002,0.00,32.10,R,A Andrews & Sons (Marbles & Tiles),No
Http://opendatacommunities.org/id/metropolitan-district-council/leeds,Leeds City Council,31/01/2019,Resources and Housing,Leeds Building Services,Supplies and Services,Operational Materials,205,14/01/2019,1901-00003,0.00,41.08,R,A Andrews & Sons (Marbles & Tiles),No
Http://opendatacommunities.org/id/metropolitan-district-council/leeds,Leeds City Council,31/01/2019,Resources and Housing,Leeds Building Services,Supplies and Services,Operational Materials,205,23/01/2019,1901-00004,0.00,15.55,R,A Andrews & Sons (Marbles & Tiles),No
Http://opendatacommunities.org/id/metropolitan-district-council/leeds,Leeds City Council,31/01/2019,Resources and Housing,Leeds Building Services,Supplies and Services,Operational Materials,205,29/01/2019,1901-00005,0.00,7.80,R,A Andrews & Sons (Marbles & Tiles),No
Http://opendatacommunities.org/id/metropolitan-district-council/leeds,Leeds City Council,31/01/2019,City Development,Libraries  Arts & Heritage,Supplies and Services,Grants To Businesses,243,02/01/2019,1901-00006,0.00,7558.00,R,A C Entertainment Technologies Ltd,No
Http://opendatacommunities.org/id/metropolitan-district-council/leeds,Leeds City Council,31/01/2019,Children and Families,Social Care,Third Party Payments,Services Rendered By Other Organisations,511,18/01/2019,1901-00007,0.00,124.67,R,REDACTED PERSONAL DATA,No
Http://opendatacommunities.org/id/metropolitan-district-council/leeds,Leeds City Council,31/01/2019,Children and Families,Social Care,Third Party Payments,Services Rendered By Other Organisations,511,21/01/2019,1901-00008,0.00,1530.00,R,REDACTED PERSONAL DATA,No
Http://opendatacommunities.org/id/metropolitan-district-council/leeds,Leeds City Council,31/01/2019,Resources and Housing,HRA Housing Leeds,Capital,Construction,3,03/01/2019,1901-00009,0.00,267913.42,C,A Connolly Limited,No
Http://opendatacommunities.org/id/metropolitan-district-council/leeds,Leeds City Council,31/01/2019,Children and Families,Social Care,Third Party Payments,Services Rendered By Voluntary Sector,505,16/01/2019,1901-00010,0.00,2131.80,R,REDACTED PERSONAL DATA,No
Http://opendatacommunities.org/id/metropolitan-district-council/leeds,Leeds City Council,31/01/2019,Children and Families,Social Care,Third Party Payments,Services Rendered By Other Organisations,511,18/01/2019,1901-00011,0.00,5376.25,R,REDACTED PERSONAL DATA,No
Http://opendatacommunities.org/id/metropolitan-district-council/leeds,Leeds City Council,31/01/2019,City Development,Highways,Capital,Construction,3,21/01/2019,1901-00012,0.00,131728.53,C,A E Yates Ltd,No
Http://opendatacommunities.org/id/metropolitan-district-council/leeds,Leeds City Council,31/01/2019,City Development,Highways,Supplies and Services,Other Hired And Contracted Services,265,21/01/2019,1901-00013,0.00,26743.13,R,A E Yates Ltd,No
Http://opendatacommunities.org/id/metropolitan-district-council/leeds,Leeds City Council,31/01/2019,Children and Families,Social Care,Third Party Payments,Services Rendered By Other Organisations,511,18/01/2019,1901-00014,0.00,1527.17,R,REDACTED PERSONAL DATA,No
Http://opendatacommunities.org/id/metropolitan-district-council/leeds,Leeds City Council,31/01/2019,Children and Families,Social Care,Third Party Payments,Services Rendered By Other Organisations,511,18/01/2019,1901-00015,0.00,233.75,R,REDACTED PERSONAL DATA,No
Http://opendatacommunities.org/id/metropolitan-district-council/leeds,Leeds City Council,31/01/2019,Children and Families,Social Care,Third Party Payments,Services Rendered By Other Organisations,511,18/01/2019,1901-00016,0.00,233.75,R,REDACTED PERSONAL DATA,No
Http://opendatacommunities.org/id/metropolitan-district-council/leeds,Leeds City Council,31/01/2019,Children and Families,Social Care,Third Party Payments,Services Rendered By Other Organisations,511,18/01/2019,1901-00017,0.00,249.33,R,REDACTED PERSONAL DATA,No
Http://opendatacommunities.org/id/metropolitan-district-council/leeds,Leeds City Council,31/01/2019,Children and Families,Social Care,Third Party Payments,Services Rendered By Other Organisations,511,18/01/2019,1901-00018,0.00,913.75,R,REDACTED PERSONAL DATA,No
Http://opendatacommunities.org/id/metropolitan-district-council/leeds,Leeds City Council,31/01/2019,Resources and Housing,Leeds Building Services,Supplies and Services,Operational Materials,205,07/01/2019,1901-00019,0.00,134.22,R,A J H  Pump Supply & Repair Ltd,No
Http://opendatacommunities.org/id/metropolitan-district-council/leeds,Leeds City Council,31/01/2019,Resources and Housing,Leeds Building Services,Supplies and Services,Other Hired And Contracted Services,265,07/01/2019,1901-00020,0.00,380.00,R,A J H  Pump Supply & Repair Ltd,No
Http://opendatacommunities.org/id/metropolitan-district-council/leeds,Leeds City Council,31/01/2019,Resources and Housing,Leeds Building Services,Supplies and Services,Operational Furniture And Equipment,203,14/01/2019,1901-00021,0.00,155.00,R,A J H  Pump Supply & Repair Ltd,No
Http://opendatacommunities.org/id/metropolitan-district-council/leeds,Leeds City Council,31/01/2019,Resources and Housing,Leeds Building Services,Supplies and Services,Operational Materials,205,14/01/2019,1901-00022,0.00,161.58,R,A J H  Pump Supply & Repair Ltd,No
Http://opendatacommunities.org/id/metropolitan-district-council/leeds,Leeds City Council,31/01/2019,Resources and Housing,Leeds Building Services,Supplies and Services,Operational Materials,205,14/01/2019,1901-00023,0.00,597.68,R,A J H  Pump Supply & Repair Ltd,No
Http://opendatacommunities.org/id/metropolitan-district-council/leeds,Leeds City Council,31/01/2019,Resources and Housing,Leeds Building Services,Supplies and Services,Operational Materials,205,14/01/2019,1901-00024,0.00,174.91,R,A J H  Pump Supply & Repair Ltd,No
Http://opendatacommunities.org/id/metropolitan-district-council/leeds,Leeds City Council,31/01/2019,Resources and Housing,Leeds Building Services,Supplies and Services,Operational Materials,205,14/01/2019,1901-00025,0.00,144.00,R,A J H  Pump Supply & Repair Ltd,No
Http://opendatacommunities.org/id/metropolitan-district-council/leeds,Leeds City Council,31/01/2019,Resources and Housing,Leeds Building Services,Supplies and Services,Operational Materials,205,14/01/2019,1901-00026,0.00,37.00,R,A J H  Pump Supply & Repair Ltd,No
Http://opendatacommunities.org/id/metropolitan-district-council/leeds,Leeds City Council,31/01/2019,Resources and Housing,Leeds Building Services,Supplies and Services,Operational Materials,205,14/01/2019,1901-00027,0.00,283.16,R,A J H  Pump Supply & Repair Ltd,No
Http://opendatacommunities.org/id/metropolitan-district-council/leeds,Leeds City Council,31/01/2019,Resources and Housing,Leeds Building Services,Supplies and Services,Operational Materials,205,14/01/2019,1901-00028,0.00,51.51,R,A J H  Pump Supply & Repair Ltd,No
Http://opendatacommunities.org/id/metropolitan-district-council/leeds,Leeds City Council,31/01/2019,Resources and Housing,Leeds Building Services,Supplies and Services,Operational Materials,205,14/01/2019,1901-00029,0.00,75.00,R,A J H  Pump Supply & Repair Ltd,No
Http://opendatacommunities.org/id/metropolitan-district-council/leeds,Leeds City Council,31/01/2019,Resources and Housing,Leeds Building Services,Supplies and Services,Operational Materials,205,14/01/2019,1901-00030,0.00,19.29,R,A J H  Pump Supply & Repair Ltd,No
Http://opendatacommunities.org/id/metropolitan-district-council/leeds,Leeds City Council,31/01/2019,Resources and Housing,Leeds Building Services,Supplies and Services,Operational Materials,205,14/01/2019,1901-00031,0.00,45.00,R,A J H  Pump Supply & Repair Ltd,No
Http://opendatacommunities.org/id/metropolitan-district-council/leeds,Leeds City Council,31/01/2019,Resources and Housing,Leeds Building Services,Supplies and Services,Operational Materials,205,14/01/2019,1901-00032,0.00,60.00,R,A J H  Pump Supply & Repair Ltd,No
Http://opendatacommunities.org/id/metropolitan-district-council/leeds,Leeds City Council,31/01/2019,Resources and Housing,Leeds Building Services,Supplies and Services,Operational Materials,205,14/01/2019,1901-00033,0.00,490.00,R,A J H  Pump Supply & Repair Ltd,No
Http://opendatacommunities.org/id/metropolitan-district-council/leeds,Leeds City Council,31/01/2019,Resources and Housing,Leeds Building Services,Supplies and Services,Operational Materials,205,14/01/2019,1901-00034,0.00,950.00,R,A J H  Pump Supply & Repair Ltd,No
Http://opendatacommunities.org/id/metropolitan-district-council/leeds,Leeds City Council,31/01/2019,Resources and Housing,Leeds Building Services,Supplies and Services,Operational Materials,205,14/01/2019,1901-00035,0.00,309.00,R,A J H  Pump Supply & Repair Ltd,No
Http://opendatacommunities.org/id/metropolitan-district-council/leeds,Leeds City Council,31/01/2019,Resources and Housing,Leeds Building Services,Supplies and Services,Operational Materials,205,14/01/2019,1901-00036,0.00,47.50,R,A J H  Pump Supply & Repair Ltd,No
Http://opendatacommunities.org/id/metropolitan-district-council/leeds,Leeds City Council,31/01/2019,Resources and Housing,Leeds Building Services,Supplies and Services,Operational Materials,205,14/01/2019,1901-00037,0.00,1000.00,R,A J H  Pump Supply & Repair Ltd,No
Http://opendatacommunities.org/id/metropolitan-district-council/leeds,Leeds City Council,31/01/2019,Resources and Housing,Leeds Building Services,Supplies and Services,Operational Materials,205,14/01/2019,1901-00038,0.00,115.00,R,A J H  Pump Supply & Repair Ltd,No
Http://opendatacommunities.org/id/metropolitan-district-council/leeds,Leeds City Council,31/01/2019,Resources and Housing,Leeds Building Services,Supplies and Services,Operational Materials,205,14/01/2019,1901-00039,0.00,44.75,R,A J H  Pump Supply & Repair Ltd,No
Http://opendatacommunities.org/id/metropolitan-district-council/leeds,Leeds City Council,31/01/2019,Resources and Housing,Leeds Building Services,Supplies and Services,Operational Materials,205,14/01/2019,1901-00040,0.00,177.84,R,A J H  Pump Supply & Repair Ltd,No
Http://opendatacommunities.org/id/metropolitan-district-council/leeds,Leeds City Council,31/01/2019,Resources and Housing,Leeds Building Services,Supplies and Services,Operational Materials,205,14/01/2019,1901-00041,0.00,87.78,R,A J H  Pump Supply & Repair Ltd,No
Http://opendatacommunities.org/id/metropolitan-district-council/leeds,Leeds City Council,31/01/2019,Resources and Housing,Leeds Building Services,Supplies and Services,Operational Materials,205,14/01/2019,1901-00042,0.00,405.00,R,A J H  Pump Supply & Repair Ltd,No
Http://opendatacommunities.org/id/metropolitan-district-council/leeds,Leeds City Council,31/01/2019,Resources and Housing,Leeds Building Services,Supplies and Services,Operational Materials,205,14/01/2019,1901-00043,0.00,168.00,R,A J H  Pump Supply & Repair Ltd,No
Http://opendatacommunities.org/id/metropolitan-district-council/leeds,Leeds City Council,31/01/2019,Resources and Housing,Leeds Building Services,Supplies and Services,Operational Materials,205,14/01/2019,1901-00044,0.00,417.46,R,A J H  Pump Supply & Repair Ltd,No
Http://opendatacommunities.org/id/metropolitan-district-council/leeds,Leeds City Council,31/01/2019,Resources and Housing,Leeds Building Services,Supplies and Services,Operational Materials,205,14/01/2019,1901-00045,0.00,136.08,R,A J H  Pump Supply & Repair Ltd,No
Http://opendatacommunities.org/id/metropolitan-district-council/leeds,Leeds City Council,31/01/2019,Resources and Housing,Leeds Building Services,Supplies and Services,Operational Materials,205,14/01/2019,1901-00046,0.00,204.00,R,A J H  Pump Supply & Repair Ltd,No
Http://opendatacommunities.org/id/metropolitan-district-council/leeds,Leeds City Council,31/01/2019,Resources and Housing,Leeds Building Services,Supplies and Services,Operational Materials,205,14/01/2019,1901-00047,0.00,155.00,R,A J H  Pump Supply & Repair Ltd,No
Http://opendatacommunities.org/id/metropolitan-district-council/leeds,Leeds City Council,31/01/2019,Resources and Housing,Leeds Building Services,Supplies and Services,Operational Materials,205,14/01/2019,1901-00048,0.00,36.36,R,A J H  Pump Supply & Repair Ltd,No
Http://opendatacommunities.org/id/metropolitan-district-council/leeds,Leeds City Council,31/01/2019,Resources and Housing,Leeds Building Services,Supplies and Services,Operational Materials,205,14/01/2019,1901-00049,0.00,3302.00,R,A J H  Pump Supply & Repair Ltd,No
Http://opendatacommunities.org/id/metropolitan-district-council/leeds,Leeds City Council,31/01/2019,Resources and Housing,Leeds Building Services,Supplies and Services,Operational Materials,205,14/01/2019,1901-00050,0.00,101.93,R,A J H  Pump Supply & Repair Ltd,No
Http://opendatacommunities.org/id/metropolitan-district-council/leeds,Leeds City Council,31/01/2019,Resources and Housing,Leeds Building Services,Supplies and Services,Operational Materials,205,14/01/2019,1901-00051,0.00,306.60,R,A J H  Pump Supply & Repair Ltd,No
Http://opendatacommunities.org/id/metropolitan-district-council/leeds,Leeds City Council,31/01/2019,Resources and Housing,Leeds Building Services,Supplies and Services,Operational Materials,205,18/01/2019,1901-00052,0.00,1740.19,R,A J H  Pump Supply & Repair Ltd,No
Http://opendatacommunities.org/id/metropolitan-district-council/leeds,Leeds City Council,31/01/2019,Resources and Housing,Leeds Building Services,Supplies and Services,Operational Materials,205,22/01/2019,1901-00053,0.00,225.45,R,A J H  Pump Supply & Repair Ltd,No
Http://opendatacommunities.org/id/metropolitan-district-council/leeds,Leeds City Council,31/01/2019,Resources and Housing,Leeds Building Services,Supplies and Services,Operational Materials,205,22/01/2019,1901-00054,0.00,19.57,R,A J H  Pump Supply & Repair Ltd,No
Http://opendatacommunities.org/id/metropolitan-district-council/leeds,Leeds City Council,31/01/2019,Resources and Housing,Leeds Building Services,Supplies and Services,Operational Materials,205,22/01/2019,1901-00055,0.00,231.07,R,A J H  Pump Supply & Repair Ltd,No
Http://opendatacommunities.org/id/metropolitan-district-council/leeds,Leeds City Council,31/01/2019,Resources and Housing,Leeds Building Services,Supplies and Services,Operational Materials,205,22/01/2019,1901-00056,0.00,30.22,R,A J H  Pump Supply & Repair Ltd,No
Http://opendatacommunities.org/id/metropolitan-district-council/leeds,Leeds City Council,31/01/2019,Resources and Housing,Leeds Building Services,Supplies and Services,Operational Materials,205,22/01/2019,1901-00057,0.00,650.00,R,A J H  Pump Supply & Repair Ltd,No
Http://opendatacommunities.org/id/metropolitan-district-council/leeds,Leeds City Council,31/01/2019,Resources and Housing,Leeds Building Services,Supplies and Services,Operational Materials,205,22/01/2019,1901-00058,0.00,15.90,R,A J H  Pump Supply & Repair Ltd,No
Http://opendatacommunities.org/id/metropolitan-district-council/leeds,Leeds City Council,31/01/2019,Resources and Housing,Leeds Building Services,Supplies and Services,Operational Materials,205,22/01/2019,1901-00059,0.00,130.17,R,A J H  Pump Supply & Repair Ltd,No
Http://opendatacommunities.org/id/metropolitan-district-council/leeds,Leeds City Council,31/01/2019,Resources and Housing,Leeds Building Services,Supplies and Services,Operational Materials,205,22/01/2019,1901-00060,0.00,256.75,R,A J H  Pump Supply & Repair Ltd,No
Http://opendatacommunities.org/id/metropolitan-district-council/leeds,Leeds City Council,31/01/2019,Resources and Housing,Leeds Building Services,Supplies and Services,Operational Materials,205,22/01/2019,1901-00061,0.00,29.25,R,A J H  Pump Supply & Repair Ltd,No
Http://opendatacommunities.org/id/metropolitan-district-council/leeds,Leeds City Council,31/01/2019,Resources and Housing,Leeds Building Services,Supplies and Services,Operational Materials,205,22/01/2019,1901-00062,0.00,123.50,R,A J H  Pump Supply & Repair Ltd,No
Http://opendatacommunities.org/id/metropolitan-district-council/leeds,Leeds City Council,31/01/2019,Resources and Housing,Leeds Building Services,Supplies and Services,Operational Materials,205,22/01/2019,1901-00063,0.00,960.00,R,A J H  Pump Supply & Repair Ltd,No
Http://opendatacommunities.org/id/metropolitan-district-council/leeds,Leeds City Council,31/01/2019,Resources and Housing,Leeds Building Services,Supplies and Services,Operational Materials,205,22/01/2019,1901-00064,0.00,37.95,R,A J H  Pump Supply & Repair Ltd,No
Http://opendatacommunities.org/id/metropolitan-district-council/leeds,Leeds City Council,31/01/2019,Resources and Housing,Leeds Building Services,Supplies and Services,Operational Materials,205,22/01/2019,1901-00065,0.00,54.00,R,A J H  Pump Supply & Repair Ltd,No
Http://opendatacommunities.org/id/metropolitan-district-council/leeds,Leeds City Council,31/01/2019,Resources and Housing,Leeds Building Services,Supplies and Services,Operational Materials,205,22/01/2019,1901-00066,0.00,133.27,R,A J H  Pump Supply & Repair Ltd,No
Http://opendatacommunities.org/id/metropolitan-district-council/leeds,Leeds City Council,31/01/2019,Resources and Housing,Leeds Building Services,Supplies and Services,Operational Materials,205,22/01/2019,1901-00067,0.00,266.40,R,A J H  Pump Supply & Repair Ltd,No
Http://opendatacommunities.org/id/metropolitan-district-council/leeds,Leeds City Council,31/01/2019,Resources and Housing,Leeds Building Services,Supplies and Services,Operational Furniture And Equipment,203,23/01/2019,1901-00068,0.00,125.00,R,A J H  Pump Supply & Repair Ltd,No
Http://opendatacommunities.org/id/metropolitan-district-council/leeds,Leeds City Council,31/01/2019,Resources and Housing,Leeds Building Services,Supplies and Services,Operational Materials,205,23/01/2019,1901-00069,0.00,115.00,R,A J H  Pump Supply & Repair Ltd,No
Http://opendatacommunities.org/id/metropolitan-district-council/leeds,Leeds City Council,31/01/2019,Resources and Housing,Leeds Building Services,Supplies and Services,Operational Materials,205,23/01/2019,1901-00070,0.00,265.00,R,A J H  Pump Supply & Repair Ltd,No
Http://opendatacommunities.org/id/metropolitan-district-council/leeds,Leeds City Council,31/01/2019,Resources and Housing,Leeds Building Services,Supplies and Services,Operational Materials,205,23/01/2019,1901-00071,0.00,138.23,R,A J H  Pump Supply & Repair Ltd,No
Http://opendatacommunities.org/id/metropolitan-district-council/leeds,Leeds City Council,31/01/2019,Resources and Housing,Leeds Building Services,Supplies and Services,Operational Materials,205,23/01/2019,1901-00072,0.00,30.00,R,A J H  Pump Supply & Repair Ltd,No
Http://opendatacommunities.org/id/metropolitan-district-council/leeds,Leeds City Council,31/01/2019,Resources and Housing,Leeds Building Services,Supplies and Services,Operational Materials,205,23/01/2019,1901-00073,0.00,385.00,R,A J H  Pump Supply & Repair Ltd,No
Http://opendatacommunities.org/id/metropolitan-district-council/leeds,Leeds City Council,31/01/2019,Resources and Housing,Leeds Building Services,Supplies and Services,Operational Materials,205,23/01/2019,1901-00074,0.00,99.70,R,A J H  Pump Supply & Repair Ltd,No
Http://opendatacommunities.org/id/metropolitan-district-council/leeds,Leeds City Council,31/01/2019,Resources and Housing,Leeds Building Services,Supplies and Services,Operational Materials,205,23/01/2019,1901-00075,0.00,169.39,R,A J H  Pump Supply & Repair Ltd,No
Http://opendatacommunities.org/id/metropolitan-district-council/leeds,Leeds City Council,31/01/2019,Resources and Housing,Leeds Building Services,Supplies and Services,Operational Materials,205,29/01/2019,1901-00076,0.00,1969.90,R,A J H  Pump Supply & Repair Ltd,No
Http://opendatacommunities.org/id/metropolitan-district-council/leeds,Leeds City Council,31/01/2019,Resources and Housing,Leeds Building Services,Supplies and Services,Operational Materials,205,30/01/2019,1901-00077,0.00,125.00,R,A J H  Pump Supply & Repair Ltd,No
Http://opendatacommunities.org/id/metropolitan-district-council/leeds,Leeds City Council,31/01/2019,Resources and Housing,Leeds Building Services,Supplies and Services,Operational Materials,205,30/01/2019,1901-00078,0.00,823.88,R,A J H  Pump Supply & Repair Ltd,No
Http://opendatacommunities.org/id/metropolitan-district-council/leeds,Leeds City Council,31/01/2019,Resources and Housing,Leeds Building Services,Supplies and Services,Operational Materials,205,30/01/2019,1901-00079,0.00,51.86,R,A J H  Pump Supply & Repair Ltd,No
Http://opendatacommunities.org/id/metropolitan-district-council/leeds,Leeds City Council,31/01/2019,Resources and Housing,Leeds Building Services,Supplies and Services,Operational Materials,205,30/01/2019,1901-00080,0.00,115.00,R,A J H  Pump Supply & Repair Ltd,No
Http://opendatacommunities.org/id/metropolitan-district-council/leeds,Leeds City Council,31/01/2019,Resources and Housing,Leeds Building Services,Supplies and Services,Operational Materials,205,30/01/2019,1901-00081,0.00,60.82,R,A J H  Pump Supply & Repair Ltd,No
Http://opendatacommunities.org/id/metropolitan-district-council/leeds,Leeds City Council,31/01/2019,Resources and Housing,Leeds Building Services,Supplies and Services,Operational Materials,205,30/01/2019,1901-00082,0.00,236.23,R,A J H  Pump Supply & Repair Ltd,No
Http://opendatacommunities.org/id/metropolitan-district-council/leeds,Leeds City Council,31/01/2019,Resources and Housing,Leeds Building Services,Supplies and Services,Operational Materials,205,30/01/2019,1901-00083,0.00,30.84,R,A J H  Pump Supply & Repair Ltd,No
Http://opendatacommunities.org/id/metropolitan-district-council/leeds,Leeds City Council,31/01/2019,Resources and Housing,Leeds Building Services,Supplies and Services,Operational Materials,205,30/01/2019,1901-00084,0.00,155.00,R,A J H  Pump Supply & Repair Ltd,No
Http://opendatacommunities.org/id/metropolitan-district-council/leeds,Leeds City Council,31/01/2019,Resources and Housing,Leeds Building Services,Supplies and Services,Operational Materials,205,30/01/2019,1901-00085,0.00,62.50,R,A J H  Pump Supply & Repair Ltd,No
Http://opendatacommunities.org/id/metropolitan-district-council/leeds,Leeds City Council,31/01/2019,Resources and Housing,Leeds Building Services,Supplies and Services,Operational Materials,205,30/01/2019,1901-00086,0.00,18.79,R,A J H  Pump Supply & Repair Ltd,No
Http://opendatacommunities.org/id/metropolitan-district-council/leeds,Leeds City Council,31/01/2019,Resources and Housing,Leeds Building Services,Supplies and Services,Operational Materials,205,30/01/2019,1901-00087,0.00,875.00,R,A J H  Pump Supply & Repair Ltd,No
Http://opendatacommunities.org/id/metropolitan-district-council/leeds,Leeds City Council,31/01/2019,Resources and Housing,Leeds Building Services,Supplies and Services,Operational Materials,205,30/01/2019,1901-00088,0.00,390.04,R,A J H  Pump Supply & Repair Ltd,No
Http://opendatacommunities.org/id/metropolitan-district-council/leeds,Leeds City Council,31/01/2019,Resources and Housing,Leeds Building Services,Supplies and Services,Operational Materials,205,30/01/2019,1901-00089,0.00,50.00,R,A J H  Pump Supply & Repair Ltd,No
Http://opendatacommunities.org/id/metropolitan-district-council/leeds,Leeds City Council,31/01/2019,Resources and Housing,Leeds Building Services,Supplies and Services,Operational Materials,205,30/01/2019,1901-00090,0.00,98.44,R,A J H  Pump Supply & Repair Ltd,No
Http://opendatacommunities.org/id/metropolitan-district-council/leeds,Leeds City Council,31/01/2019,Resources and Housing,Leeds Building Services,Supplies and Services,Operational Materials,205,30/01/2019,1901-00091,0.00,24.50,R,A J H  Pump Supply & Repair Ltd,No
Http://opendatacommunities.org/id/metropolitan-district-council/leeds,Leeds City Council,31/01/2019,Resources and Housing,Leeds Building Services,Supplies and Services,Operational Materials,205,30/01/2019,1901-00092,0.00,339.00,R,A J H  Pump Supply & Repair Ltd,No
Http://opendatacommunities.org/id/metropolitan-district-council/leeds,Leeds City Council,31/01/2019,Resources and Housing,Leeds Building Services,Supplies and Services,Operational Materials,205,30/01/2019,1901-00093,0.00,1140.00,R,A J H  Pump Supply & Repair Ltd,No
Http://opendatacommunities.org/id/metropolitan-district-council/leeds,Leeds City Council,31/01/2019,Resources and Housing,Leeds Building Services,Supplies and Services,Operational Materials,205,31/01/2019,1901-00094,0.00,495.00,R,A J H  Pump Supply & Repair Ltd,No
Http://opendatacommunities.org/id/metropolitan-district-council/leeds,Leeds City Council,31/01/2019,Children and Families,Social Care,Third Party Payments,Services Rendered By Other Organisations,511,16/01/2019,1901-00095,0.00,280.50,R,REDACTED PERSONAL DATA,No
Http://opendatacommunities.org/id/metropolitan-district-council/leeds,Leeds City Council,31/01/2019,Children and Families,Social Care,Third Party Payments,Services Rendered By Other Organisations,511,18/01/2019,1901-00096,0.00,2337.50,R,REDACTED PERSONAL DATA,No
Http://opendatacommunities.org/id/metropolitan-district-council/leeds,Leeds City Council,31/01/2019,Communities and Environment,Customer Access,Supplies and Services,Other Hired And Contracted Services,265,31/01/2019,1901-00097,0.00,18.00,R,A Musalam,No
Http://opendatacommunities.org/id/metropolitan-district-council/leeds,Leeds City Council,31/01/2019,Children and Families,Social Care,Third Party Payments,Services Rendered By Other Organisations,511,16/01/2019,1901-00098,0.00,1963.50,R,A Myland,No
Http://opendatacommunities.org/id/metropolitan-district-council/leeds,Leeds City Council,31/01/2019,Children and Families,Social Care,Third Party Payments,Services Rendered By Other Organisations,511,18/01/2019,1901-00099,0.00,935.00,R,A Myland,No
Http://opendatacommunities.org/id/metropolitan-district-council/leeds,Leeds City Council,31/01/2019,Resources and Housing,Shared Services,Supplies and Services,Other Hired And Contracted Services,265,15/01/2019,1901-00100,0.00,46.25,R,A Star Couriers Ltd,No
Http://opendatacommunities.org/id/metropolitan-district-council/leeds,Leeds City Council,31/01/2019,Resources and Housing,Shared Services,Supplies and Services,Other Hired And Contracted Services,265,16/01/2019,1901-00101,0.00,65.00,R,A Star Couriers Ltd,No
Http://opendatacommunities.org/id/metropolitan-district-council/leeds,Leeds City Council,31/01/2019,Resources and Housing,Shared Services,Supplies and Services,Other Hired And Contracted Services,265,16/01/2019,1901-00102,0.00,92.50,R,A Star Couriers Ltd,No
Http://opendatacommunities.org/id/metropolitan-district-council/leeds,Leeds City Council,31/01/2019,Resources and Housing,Shared Services,Supplies and Services,Other Hired And Contracted Services,265,18/01/2019,1901-00103,0.00,46.25,R,A Star Couriers Ltd,No
Http://opendatacommunities.org/id/metropolitan-district-council/leeds,Leeds City Council,31/01/2019,Children and Families,Social Care,Third Party Payments,Placement Support,550,22/01/2019,1901-00104,0.00,720.00,R,A Taxis,No
Http://opendatacommunities.org/id/metropolitan-district-council/leeds,Leeds City Council,31/01/2019,Children and Families,Social Care,Third Party Payments,Placement Support,550,31/01/2019,1901-00105,0.00,540.00,R,A Taxis,No
Http://opendatacommunities.org/id/metropolitan-district-council/leeds,Leeds City Council,31/01/2019,Children and Families,Social Care,Third Party Payments,Services Rendered By Other Organisations,511,16/01/2019,1901-00106,0.00,280.50,R,REDACTED PERSONAL DATA,No
Http://opendatacommunities.org/id/metropolitan-district-council/leeds,Leeds City Council,31/01/2019,Children and Families,Social Care,Third Party Payments,Services Rendered By Other Organisations,511,18/01/2019,1901-00107,0.00,233.75,R,REDACTED PERSONAL DATA,No
Http://opendatacommunities.org/id/metropolitan-district-council/leeds,Leeds City Council,31/01/2019,Children and Families,Social Care,Third Party Payments,Services Rendered By Other Organisations,511,18/01/2019,1901-00108,0.00,467.50,R,REDACTED PERSONAL DATA,No
Http://opendatacommunities.org/id/metropolitan-district-council/leeds,Leeds City Council,31/01/2019,Children and Families,Social Care,Third Party Payments,General External Residential Placements,507,07/01/2019,1901-00109,0.00,1841.42,R,A Wilderness Way Ltd,No
Http://opendatacommunities.org/id/metropolitan-district-council/leeds,Leeds City Council,31/01/2019,Children and Families,Social Care,Third Party Payments,General External Residential Placements,507,08/01/2019,1901-00110,0.00,752.40,R,A Wilderness Way Ltd,No
Http://opendatacommunities.org/id/metropolitan-district-council/leeds,Leeds City Council,31/01/2019,Children and Families,Social Care,Third Party Payments,General External Residential Placements,507,15/01/2019,1901-00111,0.00,3013.44,R,A Wilderness Way Ltd,No
Http://opendatacommunities.org/id/metropolitan-district-council/leeds,Leeds City Council,31/01/2019,Children and Families,Social Care,Third Party Payments,General External Residential Placements,507,31/01/2019,1901-00112,0.00,18422.68,R,A Wilderness Way Ltd,No
Http://opendatacommunities.org/id/metropolitan-district-council/leeds,Leeds City Council,31/01/2019,Children and Families,Social Care,Third Party Payments,General External Residential Placements,507,31/01/2019,1901-00113,0.00,28542.01,R,A Wilderness Way Ltd,No
Http://opendatacommunities.org/id/metropolitan-district-council/leeds,Leeds City Council,31/01/2019,Communities and Environment,Waste Management,Capital,Furniture And Equipment,5,28/01/2019,1901-00114,0.00,4860.00,C,A&C Weber Uk Ltd,No
Http://opendatacommunities.org/id/metropolitan-district-council/leeds,Leeds City Council,31/01/2019,Resources and Housing,Leeds Building Services,Supplies and Services,Operational Materials,205,10/01/2019,1901-00115,0.00,750.00,R,A1 Stair Lift Services,No
Http://opendatacommunities.org/id/metropolitan-district-council/leeds,Leeds City Council,31/01/2019,Resources and Housing,Leeds Building Services,Supplies and Services,Other Hired And Contracted Services,265,10/01/2019,1901-00116,0.00,550.00,R,A1 Stair Lift Services,No
Http://opendatacommunities.org/id/metropolitan-district-council/leeds,Leeds City Council,31/01/2019,Resources and Housing,Leeds Building Services,Supplies and Services,Operational Materials,205,15/01/2019,1901-00117,0.00,80.00,R,A1 Stair Lift Services,No
Http://opendatacommunities.org/id/metropolitan-district-council/leeds,Leeds City Council,31/01/2019,Resources and Housing,Leeds Building Services,Supplies and Services,Operational Materials,205,29/01/2019,1901-00118,0.00,149.00,R,A1 Stair Lift Services,No
Http://opendatacommunities.org/id/metropolitan-district-council/leeds,Leeds City Council,31/01/2019,Communities and Environment,Elections  Licensing and Registration,Income,Admissions  Booking Fees & Ticket Sales,933,10/01/2019,1901-00119,0.00,10.00,R,REDACTED PERSONAL DATA,No
Http://opendatacommunities.org/id/metropolitan-district-council/leeds,Leeds City Council,31/01/2019,Adults and Health,Services For Older People - 65 And Over,Supplies and Services,Operational Furniture And Equipment,203,30/01/2019,1901-00120,0.00,214.99,R,Aat (Gb) Ltd,No
Http://opendatacommunities.org/id/metropolitan-district-council/leeds,Leeds City Council,31/01/2019,Adults and Health,Social Services Support Services,Transport,Public Transport Expenses,310,09/01/2019,1901-00121,0.00,390.00,R,Ab Cars,No
Http://opendatacommunities.org/id/metropolitan-district-council/leeds,Leeds City Council,31/01/2019,Communities and Environment,Parks And Countryside  ,Supplies and Services,Resaleable Materials,204,03/12/2018,1901-00122,0.00,135.36,R,Abacus Cards Ltd,Yes
Http://opendatacommunities.org/id/metropolitan-district-council/leeds,Leeds City Council,31/01/2019,Children and Families,Social Care,Support Services,Legal Disbursements,411,09/01/2019,1901-00123,0.00,16.66,R,Abacus Express Limited,No
Http://opendatacommunities.org/id/metropolitan-district-council/leeds,Leeds City Council,31/01/2019,Children and Families,Social Care,Support Services,Legal Disbursements,411,09/01/2019,1901-00124,0.00,16.66,R,Abacus Express Limited,No
Http://opendatacommunities.org/id/metropolitan-district-council/leeds,Leeds City Council,31/01/2019,City Development,Planning & Sustainable Development,Supplies and Services,Postages,212,11/01/2019,1901-00125,0.00,22.11,R,Abacus Express Limited,No
Http://opendatacommunities.org/id/metropolitan-district-council/leeds,Leeds City Council,31/01/2019,City Development,Planning & Sustainable Development,Supplies and Services,Other Hired And Contracted Services,265,11/01/2019,1901-00126,0.00,87.00,R,Abacus Express Limited,No
Http://opendatacommunities.org/id/metropolitan-district-council/leeds,Leeds City Council,31/01/2019,Children and Families,Social Care,Support Services,Legal Disbursements,411,11/01/2019,1901-00127,0.00,31.02,R,Abacus Express Limited,No
Http://opendatacommunities.org/id/metropolitan-district-council/leeds,Leeds City Council,31/01/2019,Children and Families,Social Care,Support Services,Legal Disbursements,411,11/01/2019,1901-00128,0.00,31.02,R,Abacus Express Limited,No
Http://opendatacommunities.org/id/metropolitan-district-council/leeds,Leeds City Council,31/01/2019,Adults and Health,Services For Adults Under 65 Mental/Dis,Third Party Payments,Nursing Home,570,09/01/2019,1901-00129,0.00,1852.00,R,Abbey Grange Nursing Home,No
Http://opendatacommunities.org/id/metropolitan-district-council/leeds,Leeds City Council,31/01/2019,City Development,Libraries  Arts & Heritage  ,Supplies and Services,Operational Materials,205,13/12/2018,1901-00130,0.00,15.00,R,Abbey House Museum,Yes
Http://opendatacommunities.org/id/metropolitan-district-council/leeds,Leeds City Council,31/01/2019,Children and Families,Social Care  ,Third Party Payments,Contact,548,18/12/2018,1901-00131,0.00,11.63,R,Abbey House Museum,Yes
Http://opendatacommunities.org/id/metropolitan-district-council/leeds,Leeds City Council,31/01/2019,Communities and Environment,Environmental Health,Supplies and Services,Bought In Professional Services,277,14/01/2019,1901-00132,0.00,124.98,R,Abbey House Veterinary Hospital,No
Http://opendatacommunities.org/id/metropolitan-district-council/leeds,Leeds City Council,31/01/2019,Children and Families,Social Care,Premises,Hire of meeting rooms,143,09/01/2019,1901-00133,0.00,50.00,R,Abbey Multi Academy Trust,No
Http://opendatacommunities.org/id/metropolitan-district-council/leeds,Leeds City Council,31/01/2019,Children and Families,Social Care,Supplies and Services,Food & Drink,231,09/01/2019,1901-00134,0.00,216.00,R,Abbey Multi Academy Trust,No
Http://opendatacommunities.org/id/metropolitan-district-council/leeds,Leeds City Council,31/01/2019,Children and Families,Social Care,Supplies and Services,Other Hired And Contracted Services,265,09/01/2019,1901-00135,0.00,36.00,R,Abbey Multi Academy Trust,No
Http://opendatacommunities.org/id/metropolitan-district-council/leeds,Leeds City Council,31/01/2019,Children and Families,Learning,Supplies and Services,Other Hired And Contracted Services,265,09/01/2019,1901-00136,0.00,79.50,R,Abbey Multi Academy Trust,No
Http://opendatacommunities.org/id/metropolitan-district-council/leeds,Leeds City Council,31/01/2019,Children and Families,Social Care,Third Party Payments,Services Rendered By Voluntary Sector,505,18/01/2019,1901-00137,0.00,521.07,R,Abbey Multi Academy Trust,No
Http://opendatacommunities.org/id/metropolitan-district-council/leeds,Leeds City Council,31/01/2019,Communities and Environment,Parks and Countryside,Supplies and Services,Other Hired And Contracted Services,265,04/01/2019,1901-00138,0.00,1100.00,R,Abbotts Memorials,No
Http://opendatacommunities.org/id/metropolitan-district-council/leeds,Leeds City Council,31/01/2019,Communities and Environment,Parks and Countryside,Supplies and Services,Other Hired And Contracted Services,265,16/01/2019,1901-00139,0.00,1220.00,R,Abbotts Memorials,No
Http://opendatacommunities.org/id/metropolitan-district-council/leeds,Leeds City Council,31/01/2019,Communities and Environment,Parks and Countryside,Supplies and Services,Other Hired And Contracted Services,265,16/01/2019,1901-00140,0.00,550.00,R,Abbotts Memorials,No
Http://opendatacommunities.org/id/metropolitan-district-council/leeds,Leeds City Council,31/01/2019,Children and Families,Social Care,Third Party Payments,Services Rendered By Other Organisations,511,16/01/2019,1901-00141,0.00,1683.00,R,Abc Daycare And Ozone Out Of School,No
Http://opendatacommunities.org/id/metropolitan-district-council/leeds,Leeds City Council,31/01/2019,Children and Families,Social Care,Third Party Payments,Services Rendered By Voluntary Sector,505,18/01/2019,1901-00142,0.00,521.07,R,Abc Daycare And Ozone Out Of School,No
Http://opendatacommunities.org/id/metropolitan-district-council/leeds,Leeds City Council,31/01/2019,Children and Families,Social Care,Third Party Payments,Services Rendered By Other Organisations,511,18/01/2019,1901-00143,0.00,14492.50,R,Abc Daycare And Ozone Out Of School,No
Http://opendatacommunities.org/id/metropolitan-district-council/leeds,Leeds City Council,31/01/2019,Children and Families,Social Care,Third Party Payments,Services Rendered By Voluntary Sector,505,16/01/2019,1901-00144,0.00,1042.11,R,Abc Nursery At Lufc,No
Http://opendatacommunities.org/id/metropolitan-district-council/leeds,Leeds City Council,31/01/2019,Children and Families,Social Care,Third Party Payments,Services Rendered By Other Organisations,511,16/01/2019,1901-00145,0.00,3553.00,R,Abc Nursery At Lufc,No
Http://opendatacommunities.org/id/metropolitan-district-council/leeds,Leeds City Council,31/01/2019,Children and Families,Social Care,Third Party Payments,Services Rendered By Voluntary Sector,505,18/01/2019,1901-00146,0.00,1421.10,R,Abc Nursery At Lufc,No
Http://opendatacommunities.org/id/metropolitan-district-council/leeds,Leeds City Council,31/01/2019,Children and Families,Social Care,Third Party Payments,Services Rendered By Other Organisations,511,18/01/2019,1901-00147,0.00,6545.00,R,Abc Nursery At Lufc,No
Http://opendatacommunities.org/id/metropolitan-district-council/leeds,Leeds City Council,31/01/2019,Children and Families,Social Care,Third Party Payments,Services Rendered By Other Organisations,511,16/01/2019,1901-00148,0.00,561.00,R,Abc@D'S Childcare Services,No
Http://opendatacommunities.org/id/metropolitan-district-council/leeds,Leeds City Council,31/01/2019,Children and Families,Social Care,Third Party Payments,Services Rendered By Other Organisations,511,18/01/2019,1901-00149,0.00,9116.25,R,Abc@D'S Childcare Services,No
Http://opendatacommunities.org/id/metropolitan-district-council/leeds,Leeds City Council,31/01/2019,Adults and Health,Services For Older People - 65 And Over,Third Party Payments,Nursing Home,570,09/01/2019,1901-00150,0.00,27733.04,R,Aberford Hall,No
Http://opendatacommunities.org/id/metropolitan-district-council/leeds,Leeds City Council,31/01/2019,Adults and Health,Services For Older People - 65 And Over,Third Party Payments,Nursing Care Dementia,574,09/01/2019,1901-00151,0.00,-1778.24,R,Aberford Hall,No
Http://opendatacommunities.org/id/metropolitan-district-council/leeds,Leeds City Council,31/01/2019,Adults and Health,Services For Older People - 65 And Over,Third Party Payments,Residential,580,09/01/2019,1901-00152,0.00,1531.12,R,Aberford Hall,No
Http://opendatacommunities.org/id/metropolitan-district-council/leeds,Leeds City Council,31/01/2019,Strategic Accounts,Miscellaneous,Supplies and Services,Non-Recurring Grants,227,14/01/2019,1901-00153,0.00,222.00,R,Aberford Village Hall Cafe,No
Http://opendatacommunities.org/id/metropolitan-district-council/leeds,Leeds City Council,31/01/2019,Resources and Housing,Leeds Building Services,Supplies and Services,Operational Materials,205,08/01/2019,1901-00154,0.00,260.45,R,Abi Garage Doors Ltd,No
Http://opendatacommunities.org/id/metropolitan-district-council/leeds,Leeds City Council,31/01/2019,City Development,Recreation  ,Supplies and Services,Hospitality,255,13/12/2018,1901-00155,0.00,4.46,R,Abo Leeds,Yes
Http://opendatacommunities.org/id/metropolitan-district-council/leeds,Leeds City Council,31/01/2019,Insurance,Insurance,Supplies and Services,Insurance Claims,248,22/01/2019,1901-00156,0.00,456.00,R,Absolute Law,No
Http://opendatacommunities.org/id/metropolitan-district-council/leeds,Leeds City Council,31/01/2019,City Development,Libraries  Arts & Heritage,Supplies and Services,Other Hired And Contracted Services,265,22/01/2019,1901-00157,0.00,167.46,R,Absolute Museum & Gallery Products Ltd,No
Http://opendatacommunities.org/id/metropolitan-district-council/leeds,Leeds City Council,31/01/2019,Children and Families,Social Care,Employees,Agency Staff,8,04/01/2019,1901-00158,0.00,3029.00,R,Academic Appointments Ltd,No
Http://opendatacommunities.org/id/metropolitan-district-council/leeds,Leeds City Council,31/01/2019,Children and Families,Learning,Employees,Agency Staff,8,04/01/2019,1901-00159,0.00,110.00,R,Academic Appointments Ltd,No
Http://opendatacommunities.org/id/metropolitan-district-council/leeds,Leeds City Council,31/01/2019,Children and Families,Learning,Employees,Agency Staff,8,04/01/2019,1901-00160,0.00,616.00,R,Academic Appointments Ltd,No
Http://opendatacommunities.org/id/metropolitan-district-council/leeds,Leeds City Council,31/01/2019,Children and Families,Social Care,Employees,Agency Staff,8,10/01/2019,1901-00161,0.00,-3103.00,R,Academic Appointments Ltd,No
Http://opendatacommunities.org/id/metropolitan-district-council/leeds,Leeds City Council,31/01/2019,Children and Families,Learning,Employees,Agency Staff,8,10/01/2019,1901-00162,0.00,706.00,R,Academic Appointments Ltd,No
Http://opendatacommunities.org/id/metropolitan-district-council/leeds,Leeds City Council,31/01/2019,Children and Families,Social Care,Employees,Agency Staff,8,11/01/2019,1901-00163,0.00,2109.00,R,Academic Appointments Ltd,No
Http://opendatacommunities.org/id/metropolitan-district-council/leeds,Leeds City Council,31/01/2019,Children and Families,Learning,Employees,Agency Staff,8,17/01/2019,1901-00164,0.00,206.80,R,Academic Appointments Ltd,No
Http://opendatacommunities.org/id/metropolitan-district-council/leeds,Leeds City Council,31/01/2019,Children and Families,Social Care,Employees,Agency Staff,8,18/01/2019,1901-00165,0.00,203.00,R,Academic Appointments Ltd,No
Http://opendatacommunities.org/id/metropolitan-district-council/leeds,Leeds City Council,31/01/2019,Children and Families,Social Care,Employees,Agency Staff,8,18/01/2019,1901-00166,0.00,288.00,R,Academic Appointments Ltd,No
Http://opendatacommunities.org/id/metropolitan-district-council/leeds,Leeds City Council,31/01/2019,Children and Families,Social Care,Employees,Agency Staff,8,18/01/2019,1901-00167,0.00,2815.00,R,Academic Appointments Ltd,No
Http://opendatacommunities.org/id/metropolitan-district-council/leeds,Leeds City Council,31/01/2019,Children and Families,Social Care,Employees,Agency Staff,8,18/01/2019,1901-00168,0.00,2750.00,R,Academic Appointments Ltd,No
Http://opendatacommunities.org/id/metropolitan-district-council/leeds,Leeds City Council,31/01/2019,Children and Families,Learning,Employees,Agency Staff,8,25/01/2019,1901-00169,0.00,239.60,R,Academic Appointments Ltd,No
Http://opendatacommunities.org/id/metropolitan-district-council/leeds,Leeds City Council,31/01/2019,Children and Families,Social Care,Employees,Agency Staff,8,25/01/2019,1901-00170,0.00,2480.00,R,Academic Appointments Ltd,No
Http://opendatacommunities.org/id/metropolitan-district-council/leeds,Leeds City Council,31/01/2019,Children and Families,Social Care,Third Party Payments,Placement Support,550,31/01/2019,1901-00171,0.00,343.92,R,Academic Appointments Ltd,No
Http://opendatacommunities.org/id/metropolitan-district-council/leeds,Leeds City Council,31/01/2019,Children and Families,Learning Places,Capital,Construction,3,22/01/2019,1901-00172,0.00,312835.00,C,Academies Enterprise Trust,No
Http://opendatacommunities.org/id/metropolitan-district-council/leeds,Leeds City Council,31/01/2019,Children and Families,Social Care,Third Party Payments,Services Rendered By Voluntary Sector,505,18/01/2019,1901-00173,0.00,521.07,R,Academies Enterprise Trust (Aet),No
Http://opendatacommunities.org/id/metropolitan-district-council/leeds,Leeds City Council,31/01/2019,Children and Families,Social Care,Third Party Payments,Services Rendered By Voluntary Sector,505,18/01/2019,1901-00174,0.00,189.48,R,Academies Enterprise Trust (Aet),No
Http://opendatacommunities.org/id/metropolitan-district-council/leeds,Leeds City Council,31/01/2019,Resources and Housing,Strategic Housing Partnerships,Capital,Construction,3,17/01/2019,1901-00175,0.00,2416.50,C,Accent Homes Ltd,No
Http://opendatacommunities.org/id/metropolitan-district-council/leeds,Leeds City Council,31/01/2019,Children and Families,Social Care  ,Supplies and Services,Operational Furniture And Equipment,203,13/12/2018,1901-00176,0.00,6.50,R,Access Locksmiths,Yes
Http://opendatacommunities.org/id/metropolitan-district-council/leeds,Leeds City Council,31/01/2019,Resources and Housing,HRA Housing Leeds,Capital,Other Costs,7,04/01/2019,1901-00177,0.00,62.49,C,Access Locksmiths (Leeds) Limited,No
Http://opendatacommunities.org/id/metropolitan-district-council/leeds,Leeds City Council,31/01/2019,Strategic Land lord,Housing Management,Supplies and Services,Resaleable Materials,204,04/01/2019,1901-00178,0.00,228.00,R,Access Locksmiths (Leeds) Limited,No
Http://opendatacommunities.org/id/metropolitan-district-council/leeds,Leeds City Council,31/01/2019,Strategic Land lord,Housing Management,Supplies and Services,Resaleable Materials,204,04/01/2019,1901-00179,0.00,114.00,R,Access Locksmiths (Leeds) Limited,No
Http://opendatacommunities.org/id/metropolitan-district-council/leeds,Leeds City Council,31/01/2019,Resources and Housing,Leeds Building Services,Supplies and Services,Operational Materials,205,07/01/2019,1901-00180,0.00,25.80,R,Access Locksmiths (Leeds) Limited,No
Http://opendatacommunities.org/id/metropolitan-district-council/leeds,Leeds City Council,31/01/2019,Resources and Housing,Leeds Building Services,Supplies and Services,Operational Materials,205,07/01/2019,1901-00181,0.00,24.30,R,Access Locksmiths (Leeds) Limited,No
Http://opendatacommunities.org/id/metropolitan-district-council/leeds,Leeds City Council,31/01/2019,Resources and Housing,Leeds Building Services,Supplies and Services,Operational Materials,205,07/01/2019,1901-00182,0.00,5.94,R,Access Locksmiths (Leeds) Limited,No
Http://opendatacommunities.org/id/metropolitan-district-council/leeds,Leeds City Council,31/01/2019,Resources and Housing,Leeds Building Services,Supplies and Services,Operational Materials,205,07/01/2019,1901-00183,0.00,4.50,R,Access Locksmiths (Leeds) Limited,No
Http://opendatacommunities.org/id/metropolitan-district-council/leeds,Leeds City Council,31/01/2019,Resources and Housing,Leeds Building Services,Supplies and Services,Operational Materials,205,07/01/2019,1901-00184,0.00,338.16,R,Access Locksmiths (Leeds) Limited,No
Http://opendatacommunities.org/id/metropolitan-district-council/leeds,Leeds City Council,31/01/2019,Resources and Housing,Leeds Building Services,Supplies and Services,Operational Materials,205,09/01/2019,1901-00185,0.00,108.47,R,Access Locksmiths (Leeds) Limited,No
Http://opendatacommunities.org/id/metropolitan-district-council/leeds,Leeds City Council,31/01/2019,Strategic Land lord,Housing Management,Premises,General Maintenance,104,11/01/2019,1901-00186,0.00,114.00,R,Access Locksmiths (Leeds) Limited,No
Http://opendatacommunities.org/id/metropolitan-district-council/leeds,Leeds City Council,31/01/2019,Communities and Environment,Cleaner Neighbourhood Teams,Supplies and Services,Operational Furniture And Equipment,203,11/01/2019,1901-00187,0.00,8.25,R,Access Locksmiths (Leeds) Limited,No
Http://opendatacommunities.org/id/metropolitan-district-council/leeds,Leeds City Council,31/01/2019,Communities and Environment,Cleaner Neighbourhood Teams,Supplies and Services,Telephones,213,11/01/2019,1901-00188,0.00,24.40,R,Access Locksmiths (Leeds) Limited,No
Http://opendatacommunities.org/id/metropolitan-district-council/leeds,Leeds City Council,31/01/2019,Resources and Housing,Leeds Building Services,Supplies and Services,Operational Materials,205,18/01/2019,1901-00189,0.00,33.20,R,Access Locksmiths (Leeds) Limited,No
Http://opendatacommunities.org/id/metropolitan-district-council/leeds,Leeds City Council,31/01/2019,Resources and Housing,Leeds Building Services,Supplies and Services,Operational Materials,205,18/01/2019,1901-00190,0.00,43.87,R,Access Locksmiths (Leeds) Limited,No
Http://opendatacommunities.org/id/metropolitan-district-council/leeds,Leeds City Council,31/01/2019,Resources and Housing,Leeds Building Services,Supplies and Services,Operational Materials,205,18/01/2019,1901-00191,0.00,104.25,R,Access Locksmiths (Leeds) Limited,No
Http://opendatacommunities.org/id/metropolitan-district-council/leeds,Leeds City Council,31/01/2019,Resources and Housing,HRA Housing Leeds,Capital,Other Costs,7,23/01/2019,1901-00192,0.00,44.24,C,Access Locksmiths (Leeds) Limited,No
Http://opendatacommunities.org/id/metropolitan-district-council/leeds,Leeds City Council,31/01/2019,Communities and Environment,Cleaner Neighbourhood Teams,Supplies and Services,Operational Furniture And Equipment,203,23/01/2019,1901-00193,0.00,7.95,R,Access Locksmiths (Leeds) Limited,No
Http://opendatacommunities.org/id/metropolitan-district-council/leeds,Leeds City Council,31/01/2019,Resources and Housing,Leeds Building Services,Premises,Maintenance Of Buildings,101,25/01/2019,1901-00194,0.00,9.55,R,Access Locksmiths (Leeds) Limited,No
Http://opendatacommunities.org/id/metropolitan-district-council/leeds,Leeds City Council,31/01/2019,Resources and Housing,Leeds Building Services,Supplies and Services,Operational Materials,205,30/01/2019,1901-00195,0.00,251.24,R,Access Locksmiths (Leeds) Limited,No
Http://opendatacommunities.org/id/metropolitan-district-council/leeds,Leeds City Council,31/01/2019,Strategic Land lord,Property and Contracts,Premises,General Maintenance,104,31/01/2019,1901-00196,0.00,163.12,R,Access Locksmiths (Leeds) Limited,No
Http://opendatacommunities.org/id/metropolitan-district-council/leeds,Leeds City Council,31/01/2019,Strategic Land lord,Housing Management,Supplies and Services,Resaleable Materials,204,31/01/2019,1901-00197,0.00,19.00,R,Access Locksmiths (Leeds) Limited,No
Http://opendatacommunities.org/id/metropolitan-district-council/leeds,Leeds City Council,31/01/2019,Resources and Housing,Leeds Building Services,Transport,Miscellaneous Transport Related Costs,324,31/01/2019,1901-00198,0.00,7.50,R,Access Locksmiths (Leeds) Limited,No
Http://opendatacommunities.org/id/metropolitan-district-council/leeds,Leeds City Council,31/01/2019,Resources and Housing,Leeds Building Services,Supplies and Services,Operational Materials,205,09/01/2019,1901-00199,0.00,420.11,R,Access Opening Systems,No
Http://opendatacommunities.org/id/metropolitan-district-council/leeds,Leeds City Council,31/01/2019,Resources and Housing,Leeds Building Services,Supplies and Services,Operational Materials,205,18/01/2019,1901-00200,0.00,110.00,R,Access Opening Systems,No
Http://opendatacommunities.org/id/metropolitan-district-council/leeds,Leeds City Council,31/01/2019,Resources and Housing,Leeds Building Services,Supplies and Services,Operational Materials,205,18/01/2019,1901-00201,0.00,175.00,R,Access Opening Systems,No
Http://opendatacommunities.org/id/metropolitan-district-council/leeds,Leeds City Council,31/01/2019,Resources and Housing,Leeds Building Services,Supplies and Services,Operational Materials,205,18/01/2019,1901-00202,0.00,225.00,R,Access Opening Systems,No
Http://opendatacommunities.org/id/metropolitan-district-council/leeds,Leeds City Council,31/01/2019,Resources and Housing,Leeds Building Services,Supplies and Services,Operational Materials,205,18/01/2019,1901-00203,0.00,225.00,R,Access Opening Systems,No
Http://opendatacommunities.org/id/metropolitan-district-council/leeds,Leeds City Council,31/01/2019,Resources and Housing,Leeds Building Services,Supplies and Services,Operational Materials,205,18/01/2019,1901-00204,0.00,160.00,R,Access Opening Systems,No
Http://opendatacommunities.org/id/metropolitan-district-council/leeds,Leeds City Council,31/01/2019,Resources and Housing,Leeds Building Services,Supplies and Services,Operational Materials,205,18/01/2019,1901-00205,0.00,162.50,R,Access Opening Systems,No
Http://opendatacommunities.org/id/metropolitan-district-council/leeds,Leeds City Council,31/01/2019,Resources and Housing,Leeds Building Services,Supplies and Services,Operational Materials,205,18/01/2019,1901-00206,0.00,112.50,R,Access Opening Systems,No
Http://opendatacommunities.org/id/metropolitan-district-council/leeds,Leeds City Council,31/01/2019,Resources and Housing,Leeds Building Services,Supplies and Services,Operational Materials,205,18/01/2019,1901-00207,0.00,240.00,R,Access Opening Systems,No
Http://opendatacommunities.org/id/metropolitan-district-council/leeds,Leeds City Council,31/01/2019,Resources and Housing,Leeds Building Services,Supplies and Services,Operational Materials,205,18/01/2019,1901-00208,0.00,220.00,R,Access Opening Systems,No
Http://opendatacommunities.org/id/metropolitan-district-council/leeds,Leeds City Council,31/01/2019,Resources and Housing,Leeds Building Services,Supplies and Services,Operational Materials,205,21/01/2019,1901-00209,0.00,426.00,R,Access Opening Systems,No
Http://opendatacommunities.org/id/metropolitan-district-council/leeds,Leeds City Council,31/01/2019,Resources and Housing,Leeds Building Services,Supplies and Services,Operational Materials,205,21/01/2019,1901-00210,0.00,279.00,R,Access Opening Systems,No
Http://opendatacommunities.org/id/metropolitan-district-council/leeds,Leeds City Council,31/01/2019,Resources and Housing,Leeds Building Services,Supplies and Services,Operational Materials,205,21/01/2019,1901-00211,0.00,28.25,R,Access Opening Systems,No
Http://opendatacommunities.org/id/metropolitan-district-council/leeds,Leeds City Council,31/01/2019,Resources and Housing,Leeds Building Services,Supplies and Services,Operational Materials,205,21/01/2019,1901-00212,0.00,151.00,R,Access Opening Systems,No
Http://opendatacommunities.org/id/metropolitan-district-council/leeds,Leeds City Council,31/01/2019,Resources and Housing,Leeds Building Services,Supplies and Services,Operational Materials,205,21/01/2019,1901-00213,0.00,38.50,R,Access Opening Systems,No
Http://opendatacommunities.org/id/metropolitan-district-council/leeds,Leeds City Council,31/01/2019,Resources and Housing,Leeds Building Services,Supplies and Services,Operational Materials,205,21/01/2019,1901-00214,0.00,77.00,R,Access Opening Systems,No
Http://opendatacommunities.org/id/metropolitan-district-council/leeds,Leeds City Council,31/01/2019,Resources and Housing,Leeds Building Services,Supplies and Services,Operational Materials,205,22/01/2019,1901-00215,0.00,175.00,R,Access Opening Systems,No
Http://opendatacommunities.org/id/metropolitan-district-council/leeds,Leeds City Council,31/01/2019,Resources and Housing,Leeds Building Services,Supplies and Services,Operational Materials,205,22/01/2019,1901-00216,0.00,28.00,R,Access Opening Systems,No
Http://opendatacommunities.org/id/metropolitan-district-council/leeds,Leeds City Council,31/01/2019,Resources and Housing,Leeds Building Services,Supplies and Services,Operational Materials,205,30/01/2019,1901-00217,0.00,252.25,R,Access Opening Systems,No
Http://opendatacommunities.org/id/metropolitan-district-council/leeds,Leeds City Council As Accountable Body,31/01/2019,Social Services Pooled Budgets,Leeds Community Equip Store Pooled Budgt,Supplies and Services,Other Equipment,203,03/01/2019,1901-00218,0.00,1414.00,R,Accora,No
Http://opendatacommunities.org/id/metropolitan-district-council/leeds,Leeds City Council,31/01/2019,Children and Families,Social Care  ,Supplies and Services,Operational Furniture And Equipment,203,07/12/2018,1901-00219,0.00,2300.00,R,Ace Container Services L,Yes
Http://opendatacommunities.org/id/metropolitan-district-council/leeds,Leeds City Council,31/01/2019,City Development,Libraries  Arts & Heritage,Supplies and Services,Other Hired And Contracted Services,265,29/01/2019,1901-00220,0.00,45.00,R,Ace Container Services Limited,No
Http://opendatacommunities.org/id/metropolitan-district-council/leeds,Leeds City Council,31/01/2019,City Development,Recreation,Transport,External Hire -Occasional,304,29/01/2019,1901-00221,0.00,128.65,R,Ace Container Services Limited,No
Http://opendatacommunities.org/id/metropolitan-district-council/leeds,Leeds City Council,31/01/2019,City Development,Libraries  Arts & Heritage,Supplies and Services,Advertising,211,10/01/2019,1901-00222,0.00,49.00,R,Acm Jobs,No
Http://opendatacommunities.org/id/metropolitan-district-council/leeds,Leeds City Council,31/01/2019,Communities and Environment,Waste Management,Supplies and Services,Other Hired And Contracted Services,265,03/01/2019,1901-00223,0.00,200.00,R,Acorn Analytical Services Limited,No
Http://opendatacommunities.org/id/metropolitan-district-council/leeds,Leeds City Council,31/01/2019,Children and Families,Social Care,Third Party Payments,Independent Fostering Agencies,509,14/01/2019,1901-00224,0.00,4080.00,R,Acorn House (Fostering Services) Ltd,No
Http://opendatacommunities.org/id/metropolitan-district-council/leeds,Leeds City Council,31/01/2019,Children and Families,Social Care,Third Party Payments,Independent Fostering Agencies,509,14/01/2019,1901-00225,0.00,1360.00,R,Acorn House (Fostering Services) Ltd,No
Http://opendatacommunities.org/id/metropolitan-district-council/leeds,Leeds City Council,31/01/2019,Adults and Health,Services For Older People - 65 And Over,Third Party Payments,Nursing Care Dementia,574,09/01/2019,1901-00226,0.00,1625.64,R,Acorn Nursing Home,No
Http://opendatacommunities.org/id/metropolitan-district-council/leeds,Leeds City Council,31/01/2019,Communities and Environment,Parks and Countryside,Supplies and Services,Other Hired And Contracted Services,265,11/01/2019,1901-00227,0.00,5930.10,R,Acorn Scaffolding (Yorkshire) Ltd,No
Http://opendatacommunities.org/id/metropolitan-district-council/leeds,Leeds City Council,31/01/2019,Children and Families,Social Care,Third Party Payments,Services Rendered By Voluntary Sector,505,16/01/2019,1901-00228,0.00,1736.84,R,Acorns Nursery,No
Http://opendatacommunities.org/id/metropolitan-district-council/leeds,Leeds City Council,31/01/2019,Children and Families,Social Care,Third Party Payments,Services Rendered By Other Organisations,511,18/01/2019,1901-00229,0.00,9817.50,R,Acorns Nursery,No
Http://opendatacommunities.org/id/metropolitan-district-council/leeds,Leeds City Council,31/01/2019,Adults and Health,Services For Older People Under 65 P/Dis,Third Party Payments,Nursing Home,570,09/01/2019,1901-00230,0.00,2200.00,R,Acre Green,No
Http://opendatacommunities.org/id/metropolitan-district-council/leeds,Leeds City Council,31/01/2019,Adults and Health,Services For Older People - 65 And Over,Third Party Payments,Nursing Home,570,09/01/2019,1901-00231,0.00,76510.28,R,Acre Green,No
Http://opendatacommunities.org/id/metropolitan-district-council/leeds,Leeds City Council,31/01/2019,Adults and Health,Services For Older People Under 65 P/Dis,Third Party Payments,Residential,580,09/01/2019,1901-00232,0.00,3581.80,R,Acre Green,No
Http://opendatacommunities.org/id/metropolitan-district-council/leeds,Leeds City Council,31/01/2019,Adults and Health,Services For Older People - 65 And Over,Third Party Payments,Residential,580,09/01/2019,1901-00233,0.00,4346.41,R,Acre Green,No
Http://opendatacommunities.org/id/metropolitan-district-council/leeds,Leeds City Council,31/01/2019,Children and Families,Social Care,Third Party Payments,Services Rendered By Other Organisations,511,16/01/2019,1901-00234,0.00,2244.00,R,Acre Wood Day Nursery,No
Http://opendatacommunities.org/id/metropolitan-district-council/leeds,Leeds City Council,31/01/2019,Children and Families,Social Care,Third Party Payments,Services Rendered By Other Organisations,511,18/01/2019,1901-00235,0.00,13090.00,R,Acre Wood Day Nursery,No
Http://opendatacommunities.org/id/metropolitan-district-council/leeds,Leeds City Council,31/01/2019,City Development,Highways,Supplies and Services,Operational Materials,205,07/01/2019,1901-00236,0.00,210.00,R,Actavo (Leeds H & S),No
Http://opendatacommunities.org/id/metropolitan-district-council/leeds,Leeds City Council,31/01/2019,City Development,Highways,Supplies and Services,Operational Materials,205,15/01/2019,1901-00237,0.00,11.66,R,Actavo (Leeds H & S),No
Http://opendatacommunities.org/id/metropolitan-district-council/leeds,Leeds City Council,31/01/2019,City Development,Highways,Supplies and Services,Operational Materials,205,18/01/2019,1901-00238,0.00,340.00,R,Actavo (Leeds H & S),No
Http://opendatacommunities.org/id/metropolitan-district-council/leeds,Leeds City Council As Accountable Body,31/01/2019,Social Services Pooled Budgets,Jcs For People With Learning Disabilitie,Supplies and Services,Other Equipment,203,18/01/2019,1901-00239,0.00,5880.00,R,Action Assist Ltd,No
Http://opendatacommunities.org/id/metropolitan-district-council/leeds,Leeds City Council,31/01/2019,Children and Families,Social Care,Third Party Payments,Independent Fostering Agencies,509,18/01/2019,1901-00240,0.00,4776.48,R,Action For Children,No
Http://opendatacommunities.org/id/metropolitan-district-council/leeds,Leeds City Council,31/01/2019,Children and Families,Social Care,Third Party Payments,Independent Fostering Agencies,509,18/01/2019,1901-00241,0.00,4776.48,R,Action For Children,No
Http://opendatacommunities.org/id/metropolitan-district-council/leeds,Leeds City Council,31/01/2019,Children and Families,Social Care,Third Party Payments,Independent Fostering Agencies,509,18/01/2019,1901-00242,0.00,4776.48,R,Action For Children,No
Http://opendatacommunities.org/id/metropolitan-district-council/leeds,Leeds City Council,31/01/2019,Children and Families,Social Care,Third Party Payments,Independent Fostering Agencies,509,18/01/2019,1901-00243,0.00,4776.48,R,Action For Children,No
Http://opendatacommunities.org/id/metropolitan-district-council/leeds,Leeds City Council,31/01/2019,Children and Families,Social Care,Third Party Payments,Independent Fostering Agencies,509,18/01/2019,1901-00244,0.00,4776.48,R,Action For Children Services Ltd,No
Http://opendatacommunities.org/id/metropolitan-district-council/leeds,Leeds City Council,31/01/2019,Children and Families,Social Care,Third Party Payments,Services Rendered By Other Organisations,511,17/01/2019,1901-00245,0.00,12.75,R,Active Kids Yeadon Llp,No
Http://opendatacommunities.org/id/metropolitan-district-council/leeds,Leeds City Council,31/01/2019,Children and Families,Social Care,Third Party Payments,Services Rendered By Other Organisations,511,17/01/2019,1901-00246,0.00,7698.17,R,Active Kids Yeadon Llp,No
Http://opendatacommunities.org/id/metropolitan-district-council/leeds,Leeds City Council,31/01/2019,Communities and Environment,Communities,Employees,Training & Development,70,18/01/2019,1901-00247,0.00,368.00,R,Activia Ltd,No
Http://opendatacommunities.org/id/metropolitan-district-council/leeds,Leeds City Council,31/01/2019,Communities and Environment,Cleaner Neighbourhood Teams,Premises,Removal Of Workplace Waste,126,02/01/2019,1901-00248,0.00,110.00,R,Acumen Waste Services Ltd,No
Http://opendatacommunities.org/id/metropolitan-district-council/leeds,Leeds City Council,31/01/2019,Communities and Environment,Cleaner Neighbourhood Teams,Premises,Removal Of Workplace Waste,126,02/01/2019,1901-00249,0.00,110.00,R,Acumen Waste Services Ltd,No
Http://opendatacommunities.org/id/metropolitan-district-council/leeds,Leeds City Council,31/01/2019,Communities and Environment,Waste Management,Supplies and Services,Recycling & Reuse Charges,234,02/01/2019,1901-00250,0.00,6455.45,R,Acumen Waste Services Ltd,No
Http://opendatacommunities.org/id/metropolitan-district-council/leeds,Leeds City Council,31/01/2019,Communities and Environment,Cleaner Neighbourhood Teams,Premises,Removal Of Workplace Waste,126,04/01/2019,1901-00251,0.00,110.00,R,Acumen Waste Services Ltd,No
Http://opendatacommunities.org/id/metropolitan-district-council/leeds,Leeds City Council,31/01/2019,Communities and Environment,Cleaner Neighbourhood Teams,Premises,Removal Of Workplace Waste,126,04/01/2019,1901-00252,0.00,110.00,R,Acumen Waste Services Ltd,No
Http://opendatacommunities.org/id/metropolitan-district-council/leeds,Leeds City Council,31/01/2019,Communities and Environment,Cleaner Neighbourhood Teams,Premises,Removal Of Workplace Waste,126,04/01/2019,1901-00253,0.00,110.00,R,Acumen Waste Services Ltd,No
Http://opendatacommunities.org/id/metropolitan-district-council/leeds,Leeds City Council,31/01/2019,Communities and Environment,Waste Management,Supplies and Services,Recycling & Reuse Charges,234,09/01/2019,1901-00254,0.00,9223.22,R,Acumen Waste Services Ltd,No
Http://opendatacommunities.org/id/metropolitan-district-council/leeds,Leeds City Council,31/01/2019,Communities and Environment,Cleaner Neighbourhood Teams,Premises,Removal Of Workplace Waste,126,10/01/2019,1901-00255,0.00,110.00,R,Acumen Waste Services Ltd,No
Http://opendatacommunities.org/id/metropolitan-district-council/leeds,Leeds City Council,31/01/2019,Communities and Environment,Cleaner Neighbourhood Teams,Premises,Removal Of Workplace Waste,126,10/01/2019,1901-00256,0.00,110.00,R,Acumen Waste Services Ltd,No
Http://opendatacommunities.org/id/metropolitan-district-council/leeds,Leeds City Council,31/01/2019,Communities and Environment,Cleaner Neighbourhood Teams,Premises,Removal Of Workplace Waste,126,11/01/2019,1901-00257,0.00,110.00,R,Acumen Waste Services Ltd,No
Http://opendatacommunities.org/id/metropolitan-district-council/leeds,Leeds City Council,31/01/2019,Communities and Environment,Cleaner Neighbourhood Teams,Premises,Removal Of Workplace Waste,126,11/01/2019,1901-00258,0.00,110.00,R,Acumen Waste Services Ltd,No
Http://opendatacommunities.org/id/metropolitan-district-council/leeds,Leeds City Council,31/01/2019,Communities and Environment,Cleaner Neighbourhood Teams,Premises,Removal Of Workplace Waste,126,11/01/2019,1901-00259,0.00,110.00,R,Acumen Waste Services Ltd,No
Http://opendatacommunities.org/id/metropolitan-district-council/leeds,Leeds City Council,31/01/2019,Communities and Environment,Cleaner Neighbourhood Teams,Premises,Removal Of Workplace Waste,126,11/01/2019,1901-00260,0.00,110.00,R,Acumen Waste Services Ltd,No
Http://opendatacommunities.org/id/metropolitan-district-council/leeds,Leeds City Council,31/01/2019,Communities and Environment,Cleaner Neighbourhood Teams,Premises,Removal Of Workplace Waste,126,11/01/2019,1901-00261,0.00,110.00,R,Acumen Waste Services Ltd,No
Http://opendatacommunities.org/id/metropolitan-district-council/leeds,Leeds City Council,31/01/2019,Communities and Environment,Cleaner Neighbourhood Teams,Premises,Removal Of Workplace Waste,126,11/01/2019,1901-00262,0.00,110.00,R,Acumen Waste Services Ltd,No
Http://opendatacommunities.org/id/metropolitan-district-council/leeds,Leeds City Council,31/01/2019,Communities and Environment,Cleaner Neighbourhood Teams,Premises,Removal Of Workplace Waste,126,17/01/2019,1901-00263,0.00,110.00,R,Acumen Waste Services Ltd,No
Http://opendatacommunities.org/id/metropolitan-district-council/leeds,Leeds City Council,31/01/2019,Communities and Environment,Waste Management,Supplies and Services,Recycling & Reuse Charges,234,17/01/2019,1901-00264,0.00,8465.45,R,Acumen Waste Services Ltd,No
Http://opendatacommunities.org/id/metropolitan-district-council/leeds,Leeds City Council,31/01/2019,Communities and Environment,Waste Management,Supplies and Services,Recycling & Reuse Charges,234,25/01/2019,1901-00265,0.00,6594.81,R,Acumen Waste Services Ltd,No
Http://opendatacommunities.org/id/metropolitan-district-council/leeds,Leeds City Council,31/01/2019,Resources and Housing,Shared Services,Supplies and Services,Operational Materials,205,04/01/2019,1901-00266,0.00,705.00,R,Ad3 Envelope Printers Limited,No
Http://opendatacommunities.org/id/metropolitan-district-council/leeds,Leeds City Council,31/01/2019,Resources and Housing,Shared Services,Supplies and Services,Other Hired And Contracted Services,265,11/01/2019,1901-00267,0.00,70.40,R,Ad3 Envelope Printers Limited,No
Http://opendatacommunities.org/id/metropolitan-district-council/leeds,Leeds City Council,31/01/2019,Resources and Housing,Shared Services,Supplies and Services,Operational Materials,205,18/01/2019,1901-00268,0.00,292.25,R,Ad3 Envelope Printers Limited,No
Http://opendatacommunities.org/id/metropolitan-district-council/leeds,Leeds City Council,31/01/2019,City Development,Recreation,Income,Sporting & Other Recreational Fees,928,29/01/2019,1901-00269,0.00,57.90,R,REDACTED PERSONAL DATA,No
Http://opendatacommunities.org/id/metropolitan-district-council/leeds,Leeds City Council,31/01/2019,City Development,Recreation,Supplies and Services,Other Hired And Contracted Services,265,16/01/2019,1901-00270,0.00,100.00,R,Adam Pope,No
Http://opendatacommunities.org/id/metropolitan-district-council/leeds,Leeds City Council,31/01/2019,Children and Families,Social Care,Transfer Payments,Leaving Care Allowances,634,25/01/2019,1901-00271,0.00,50.00,R,Adam Shaw,No
Http://opendatacommunities.org/id/metropolitan-district-council/leeds,Leeds City Council,31/01/2019,Children and Families,Social Care,Transfer Payments,Leaving Care Allowances,634,25/01/2019,1901-00272,0.00,50.00,R,Adam Shaw,No
Http://opendatacommunities.org/id/metropolitan-district-council/leeds,Leeds City Council,31/01/2019,Adults and Health,Services For Older People - 65 And Over,Third Party Payments,Nursing Home,570,09/01/2019,1901-00273,0.00,3897.12,R,Adbolton Hall,No
Http://opendatacommunities.org/id/metropolitan-district-council/leeds,Leeds City Council,31/01/2019,Strategic Land lord,Property and Contracts,Support Services,Professional Legal Services Charges,410,18/01/2019,1901-00274,0.00,3827.00,R,Addleshaw Goddard Llp,No
Http://opendatacommunities.org/id/metropolitan-district-council/leeds,Leeds City Council,31/01/2019,Resources and Housing,Sustainable Energy & Climate Change,Capital,Other Costs,7,21/01/2019,1901-00275,0.00,8116.30,C,Addleshaw Goddard Llp,No
Http://opendatacommunities.org/id/metropolitan-district-council/leeds,Leeds City Council,31/01/2019,Resources and Housing,Sustainable Energy & Climate Change,Capital,Other Costs,7,30/01/2019,1901-00276,0.00,3975.00,C,Addleshaw Goddard Llp,No
Http://opendatacommunities.org/id/metropolitan-district-council/leeds,Leeds City Council,31/01/2019,Communities and Environment,Parks and Countryside,Supplies and Services,Other Hired And Contracted Services,265,18/01/2019,1901-00277,0.00,8120.00,R,Addlestone & Partners,No
Http://opendatacommunities.org/id/metropolitan-district-council/leeds,Leeds City Council,31/01/2019,Resources and Housing,Technology  ,Employees,Agency Staff,8,06/12/2018,1901-00278,0.00,63254.27,R,Adecco Alfred Marks,Yes
Http://opendatacommunities.org/id/metropolitan-district-council/leeds,Leeds City Council,31/01/2019,Children and Families,Social Care,Third Party Payments,Services Rendered By Voluntary Sector,505,16/01/2019,1901-00279,0.00,280.50,R,Adel Pre School,No
Http://opendatacommunities.org/id/metropolitan-district-council/leeds,Leeds City Council,31/01/2019,Children and Families,Social Care,Third Party Payments,Services Rendered By Other Organisations,511,18/01/2019,1901-00280,0.00,5610.00,R,Adel Pre School,No
Http://opendatacommunities.org/id/metropolitan-district-council/leeds,Leeds City Council,31/01/2019,Children and Families,Social Care,Third Party Payments,Services Rendered By Other Organisations,511,18/01/2019,1901-00281,0.00,233.75,R,REDACTED PERSONAL DATA,No
Http://opendatacommunities.org/id/metropolitan-district-council/leeds,Leeds City Council,31/01/2019,Children and Families,Social Care,Third Party Payments,Services Rendered By Other Organisations,511,18/01/2019,1901-00282,0.00,155.83,R,REDACTED PERSONAL DATA,No
Http://opendatacommunities.org/id/metropolitan-district-council/leeds,Leeds City Council,31/01/2019,Children and Families,Social Care,Third Party Payments,Services Rendered By Other Organisations,511,18/01/2019,1901-00283,0.00,1309.00,R,REDACTED PERSONAL DATA,No
Http://opendatacommunities.org/id/metropolitan-district-council/leeds,Leeds City Council,31/01/2019,Adults and Health,Services For Older People - 65 And Over,Third Party Payments,Nursing Home,570,09/01/2019,1901-00284,0.00,1184.76,R,Aden House,No
Http://opendatacommunities.org/id/metropolitan-district-council/leeds,Leeds City Council,31/01/2019,Communities and Environment,Community Safety,Supplies and Services,Other Hired And Contracted Services,265,14/01/2019,1901-00285,0.00,1050.76,R,Adi Global,No
Http://opendatacommunities.org/id/metropolitan-district-council/leeds,Leeds City Council,31/01/2019,Communities and Environment,Community Safety,Supplies and Services,Other Hired And Contracted Services,265,14/01/2019,1901-00286,0.00,222.30,R,Adi Global,No
Http://opendatacommunities.org/id/metropolitan-district-council/leeds,Leeds City Council,31/01/2019,Resources and Housing,Leeds Building Services,Supplies and Services,Stores - Central And Other Depots,5,14/01/2019,1901-00287,0.00,994.50,R,Adi Global,No
Http://opendatacommunities.org/id/metropolitan-district-council/leeds,Leeds City Council,31/01/2019,Resources and Housing,Leeds Building Services,Supplies and Services,Operational Materials,205,14/01/2019,1901-00288,0.00,80.00,R,Adi Global,No
Http://opendatacommunities.org/id/metropolitan-district-council/leeds,Leeds City Council,31/01/2019,Resources and Housing,Leeds Building Services,Supplies and Services,Operational Materials,205,14/01/2019,1901-00289,0.00,20.74,R,Adi Global,No
Http://opendatacommunities.org/id/metropolitan-district-council/leeds,Leeds City Council,31/01/2019,Resources and Housing,Leeds Building Services,Supplies and Services,Operational Materials,205,14/01/2019,1901-00290,0.00,36.95,R,Adi Global,No
Http://opendatacommunities.org/id/metropolitan-district-council/leeds,Leeds City Council,31/01/2019,Resources and Housing,Leeds Building Services,Supplies and Services,Operational Materials,205,14/01/2019,1901-00291,0.00,93.64,R,Adi Global,No
Http://opendatacommunities.org/id/metropolitan-district-council/leeds,Leeds City Council,31/01/2019,Resources and Housing,Leeds Building Services,Supplies and Services,Operational Materials,205,14/01/2019,1901-00292,0.00,876.95,R,Adi Global,No
Http://opendatacommunities.org/id/metropolitan-district-council/leeds,Leeds City Council,31/01/2019,Resources and Housing,Leeds Building Services,Supplies and Services,Operational Materials,205,14/01/2019,1901-00293,0.00,179.98,R,Adi Global,No
Http://opendatacommunities.org/id/metropolitan-district-council/leeds,Leeds City Council,31/01/2019,Resources and Housing,Leeds Building Services,Supplies and Services,Operational Materials,205,14/01/2019,1901-00294,0.00,3693.32,R,Adi Global,No
Http://opendatacommunities.org/id/metropolitan-district-council/leeds,Leeds City Council,31/01/2019,Resources and Housing,Leeds Building Services,Supplies and Services,Operational Materials,205,14/01/2019,1901-00295,0.00,1561.34,R,Adi Global,No
Http://opendatacommunities.org/id/metropolitan-district-council/leeds,Leeds City Council,31/01/2019,Resources and Housing,Leeds Building Services,Supplies and Services,Operational Materials,205,14/01/2019,1901-00296,0.00,57.70,R,Adi Global,No
Http://opendatacommunities.org/id/metropolitan-district-council/leeds,Leeds City Council,31/01/2019,Resources and Housing,Leeds Building Services,Supplies and Services,Operational Materials,205,14/01/2019,1901-00297,0.00,466.34,R,Adi Global,No
Http://opendatacommunities.org/id/metropolitan-district-council/leeds,Leeds City Council,31/01/2019,Resources and Housing,Leeds Building Services,Supplies and Services,Operational Materials,205,14/01/2019,1901-00298,0.00,604.19,R,Adi Global,No
Http://opendatacommunities.org/id/metropolitan-district-council/leeds,Leeds City Council,31/01/2019,Resources and Housing,Leeds Building Services,Supplies and Services,Operational Materials,205,15/01/2019,1901-00299,0.00,137.76,R,Adi Global,No
Http://opendatacommunities.org/id/metropolitan-district-council/leeds,Leeds City Council,31/01/2019,Resources and Housing,Leeds Building Services,Supplies and Services,Operational Materials,205,15/01/2019,1901-00300,0.00,35.38,R,Adi Global,No
Http://opendatacommunities.org/id/metropolitan-district-council/leeds,Leeds City Council,31/01/2019,Resources and Housing,Leeds Building Services,Supplies and Services,Operational Materials,205,15/01/2019,1901-00301,0.00,47.91,R,Adi Global,No
Http://opendatacommunities.org/id/metropolitan-district-council/leeds,Leeds City Council,31/01/2019,Resources and Housing,Leeds Building Services,Supplies and Services,Operational Materials,205,22/01/2019,1901-00302,0.00,172.38,R,Adi Global,No
Http://opendatacommunities.org/id/metropolitan-district-council/leeds,Leeds City Council,31/01/2019,Resources and Housing,Leeds Building Services,Supplies and Services,Operational Materials,205,22/01/2019,1901-00303,0.00,201.60,R,Adi Global,No
Http://opendatacommunities.org/id/metropolitan-district-council/leeds,Leeds City Council,31/01/2019,Resources and Housing,Leeds Building Services,Supplies and Services,Operational Materials,205,29/01/2019,1901-00304,0.00,118.45,R,Adi Global,No
Http://opendatacommunities.org/id/metropolitan-district-council/leeds,Leeds City Council,31/01/2019,Resources and Housing,Leeds Building Services,Supplies and Services,Operational Materials,205,29/01/2019,1901-00305,0.00,334.20,R,Adi Global,No
Http://opendatacommunities.org/id/metropolitan-district-council/leeds,Leeds City Council,31/01/2019,Resources and Housing,Leeds Building Services,Supplies and Services,Operational Materials,205,29/01/2019,1901-00306,0.00,52.57,R,Adi Global,No
Http://opendatacommunities.org/id/metropolitan-district-council/leeds,Leeds City Council,31/01/2019,Resources and Housing,Leeds Building Services,Supplies and Services,Operational Materials,205,29/01/2019,1901-00307,0.00,379.32,R,Adi Global,No
Http://opendatacommunities.org/id/metropolitan-district-council/leeds,Leeds City Council,31/01/2019,Communities and Environment,Community Safety  ,Supplies and Services,Other Hired And Contracted Services,265,10/12/2018,1901-00308,0.00,60.06,R,Adi-Gardiner Ltd,Yes
Http://opendatacommunities.org/id/metropolitan-district-council/leeds,Leeds City Council,31/01/2019,Children and Families,Social Care,Third Party Payments,Independent Fostering Agencies,509,04/01/2019,1901-00309,0.00,679.08,R,Adolescent And Childrens Trust,No
Http://opendatacommunities.org/id/metropolitan-district-council/leeds,Leeds City Council,31/01/2019,Children and Families,Social Care,Third Party Payments,Independent Fostering Agencies,509,04/01/2019,1901-00310,0.00,3028.20,R,Adolescent And Childrens Trust,No
Http://opendatacommunities.org/id/metropolitan-district-council/leeds,Leeds City Council,31/01/2019,Children and Families,Social Care,Third Party Payments,Independent Fostering Agencies,509,04/01/2019,1901-00311,0.00,3028.20,R,Adolescent And Childrens Trust,No
Http://opendatacommunities.org/id/metropolitan-district-council/leeds,Leeds City Council,31/01/2019,Children and Families,Social Care,Third Party Payments,Independent Fostering Agencies,509,04/01/2019,1901-00312,0.00,2848.86,R,Adolescent And Childrens Trust,No
Http://opendatacommunities.org/id/metropolitan-district-council/leeds,Leeds City Council,31/01/2019,Children and Families,Social Care,Third Party Payments,Independent Fostering Agencies,509,04/01/2019,1901-00313,0.00,3028.20,R,Adolescent And Childrens Trust,No
Http://opendatacommunities.org/id/metropolitan-district-council/leeds,Leeds City Council,31/01/2019,Children and Families,Social Care,Third Party Payments,Independent Fostering Agencies,509,04/01/2019,1901-00314,0.00,3090.00,R,Adolescent And Childrens Trust,No
Http://opendatacommunities.org/id/metropolitan-district-council/leeds,Leeds City Council,31/01/2019,Children and Families,Social Care,Third Party Payments,Independent Fostering Agencies,509,04/01/2019,1901-00315,0.00,3090.00,R,Adolescent And Childrens Trust,No
Http://opendatacommunities.org/id/metropolitan-district-council/leeds,Leeds City Council,31/01/2019,Children and Families,Social Care,Third Party Payments,Independent Fostering Agencies,509,04/01/2019,1901-00316,0.00,2850.00,R,Adolescent And Childrens Trust,No
Http://opendatacommunities.org/id/metropolitan-district-council/leeds,Leeds City Council,31/01/2019,Children and Families,Social Care,Third Party Payments,Independent Fostering Agencies,509,04/01/2019,1901-00317,0.00,2850.00,R,Adolescent And Childrens Trust,No
Http://opendatacommunities.org/id/metropolitan-district-council/leeds,Leeds City Council,31/01/2019,Children and Families,Social Care,Third Party Payments,Independent Fostering Agencies,509,04/01/2019,1901-00318,0.00,2850.00,R,Adolescent And Childrens Trust,No
Http://opendatacommunities.org/id/metropolitan-district-council/leeds,Leeds City Council,31/01/2019,Children and Families,Social Care,Third Party Payments,Independent Fostering Agencies,509,07/01/2019,1901-00319,0.00,96.60,R,Adolescent And Childrens Trust,No
Http://opendatacommunities.org/id/metropolitan-district-council/leeds,Leeds City Council,31/01/2019,Children and Families,Social Care,Third Party Payments,Independent Fostering Agencies,509,22/01/2019,1901-00320,0.00,3193.00,R,Adolescent And Childrens Trust,No
Http://opendatacommunities.org/id/metropolitan-district-council/leeds,Leeds City Council,31/01/2019,Children and Families,Social Care,Third Party Payments,Independent Fostering Agencies,509,25/01/2019,1901-00321,0.00,3129.14,R,Adolescent And Childrens Trust,No
Http://opendatacommunities.org/id/metropolitan-district-council/leeds,Leeds City Council,31/01/2019,Children and Families,Social Care,Third Party Payments,Independent Fostering Agencies,509,25/01/2019,1901-00322,0.00,3129.14,R,Adolescent And Childrens Trust,No
Http://opendatacommunities.org/id/metropolitan-district-council/leeds,Leeds City Council,31/01/2019,Children and Families,Social Care,Third Party Payments,Independent Fostering Agencies,509,25/01/2019,1901-00323,0.00,3193.00,R,Adolescent And Childrens Trust,No
Http://opendatacommunities.org/id/metropolitan-district-council/leeds,Leeds City Council,31/01/2019,Children and Families,Social Care,Third Party Payments,Independent Fostering Agencies,509,25/01/2019,1901-00324,0.00,2945.00,R,Adolescent And Childrens Trust,No
Http://opendatacommunities.org/id/metropolitan-district-council/leeds,Leeds City Council,31/01/2019,Children and Families,Social Care,Third Party Payments,Independent Fostering Agencies,509,25/01/2019,1901-00325,0.00,2090.00,R,Adolescent And Childrens Trust,No
Http://opendatacommunities.org/id/metropolitan-district-council/leeds,Leeds City Council,31/01/2019,Children and Families,Social Care,Third Party Payments,Independent Fostering Agencies,509,25/01/2019,1901-00326,0.00,1140.00,R,Adolescent And Childrens Trust,No
Http://opendatacommunities.org/id/metropolitan-district-council/leeds,Leeds City Council As Accountable Body,31/01/2019,Social Services Pooled Budgets,Jcs For People With Learning Disabilitie,Third Party Payments,Residential,580,17/01/2019,1901-00327,0.00,2609.36,R,Adrian House,No
Http://opendatacommunities.org/id/metropolitan-district-council/leeds,Leeds City Council As Accountable Body,31/01/2019,Social Services Pooled Budgets,Jcs For People With Learning Disabilitie,Third Party Payments,Residential,580,17/01/2019,1901-00328,0.00,2609.36,R,Adrian House,No
Http://opendatacommunities.org/id/metropolitan-district-council/leeds,Leeds City Council,31/01/2019,Strategic Land lord,Housing Management,Premises,Premises Security Services,162,23/01/2019,1901-00329,0.00,156.21,R,Adt Fire And Security Plc,No
Http://opendatacommunities.org/id/metropolitan-district-council/leeds,Leeds City Council As Accountable Body,31/01/2019,Social Services Pooled Budgets,Jcs For People With Learning Disabilitie,Third Party Payments,Sheltered Accommodation,569,16/01/2019,1901-00330,0.00,1647.62,R,Adult Placement Services,No
Http://opendatacommunities.org/id/metropolitan-district-council/leeds,Leeds City Council As Accountable Body,31/01/2019,Social Services Pooled Budgets,Jcs For People With Learning Disabilitie,Third Party Payments,Sheltered Accommodation,569,24/01/2019,1901-00331,0.00,1332.20,R,Adult Placement Services,No
Http://opendatacommunities.org/id/metropolitan-district-council/leeds,Leeds City Council,31/01/2019,City Development,Recreation,Supplies and Services,External Audit Fees,261,02/01/2019,1901-00332,0.00,85.00,R,Advance Stocks Ltd,No
Http://opendatacommunities.org/id/metropolitan-district-council/leeds,Leeds City Council,31/01/2019,City Development,Recreation,Supplies and Services,External Audit Fees,261,02/01/2019,1901-00333,0.00,135.00,R,Advance Stocks Ltd,No
Http://opendatacommunities.org/id/metropolitan-district-council/leeds,Leeds City Council,31/01/2019,City Development,Libraries  Arts & Heritage,Supplies and Services,External Audit Fees,261,04/01/2019,1901-00334,0.00,90.00,R,Advance Stocks Ltd,No
Http://opendatacommunities.org/id/metropolitan-district-council/leeds,Leeds City Council,31/01/2019,City Development,Recreation,Supplies and Services,External Audit Fees,261,25/01/2019,1901-00335,0.00,85.00,R,Advance Stocks Ltd,No
Http://opendatacommunities.org/id/metropolitan-district-council/leeds,Leeds City Council,31/01/2019,City Development,Recreation,Supplies and Services,External Audit Fees,261,25/01/2019,1901-00336,0.00,135.00,R,Advance Stocks Ltd,No
Http://opendatacommunities.org/id/metropolitan-district-council/leeds,Leeds City Council As Accountable Body,31/01/2019,Social Services Pooled Budgets,Jcs For People With Learning Disabilitie,Third Party Payments,Residential,580,09/01/2019,1901-00337,0.00,17782.08,R,Advitam Ltd,No
Http://opendatacommunities.org/id/metropolitan-district-council/leeds,Leeds City Council As Accountable Body,31/01/2019,Social Services Pooled Budgets,Jcs For People With Learning Disabilitie,Third Party Payments,Day Centre,564,10/01/2019,1901-00338,0.00,492.05,R,Advitam Ltd,No
Http://opendatacommunities.org/id/metropolitan-district-council/leeds,Leeds City Council As Accountable Body,31/01/2019,Social Services Pooled Budgets,Jcs For People With Learning Disabilitie,Third Party Payments,Other Agency Services,561,11/01/2019,1901-00339,0.00,45.00,R,Advonet,No
Http://opendatacommunities.org/id/metropolitan-district-council/leeds,Leeds City Council As Accountable Body,31/01/2019,Social Services Pooled Budgets,Jcs For People With Learning Disabilitie,Third Party Payments,Other Agency Services,561,11/01/2019,1901-00340,0.00,17.40,R,Advonet,No
Http://opendatacommunities.org/id/metropolitan-district-council/leeds,Leeds City Council As Accountable Body,31/01/2019,Social Services Pooled Budgets,Jcs For People With Learning Disabilitie,Third Party Payments,Other Agency Services,561,11/01/2019,1901-00341,0.00,87.60,R,Advonet,No
Http://opendatacommunities.org/id/metropolitan-district-council/leeds,Leeds City Council As Accountable Body,31/01/2019,Social Services Pooled Budgets,Jcs For People With Learning Disabilitie,Third Party Payments,Other Agency Services,561,11/01/2019,1901-00342,0.00,15.00,R,Advonet,No
Http://opendatacommunities.org/id/metropolitan-district-council/leeds,Leeds City Council As Accountable Body,31/01/2019,Social Services Pooled Budgets,Jcs For People With Learning Disabilitie,Third Party Payments,Other Agency Services,561,11/01/2019,1901-00343,0.00,102.60,R,Advonet,No
Http://opendatacommunities.org/id/metropolitan-district-council/leeds,Leeds City Council As Accountable Body,31/01/2019,Social Services Pooled Budgets,Jcs For People With Learning Disabilitie,Third Party Payments,Other Agency Services,561,11/01/2019,1901-00344,0.00,221.76,R,Advonet,No
Http://opendatacommunities.org/id/metropolitan-district-council/leeds,Leeds City Council As Accountable Body,31/01/2019,Social Services Pooled Budgets,Jcs For People With Learning Disabilitie,Third Party Payments,Other Agency Services,561,11/01/2019,1901-00345,0.00,105.00,R,Advonet,No
Http://opendatacommunities.org/id/metropolitan-district-council/leeds,Leeds City Council As Accountable Body,31/01/2019,Social Services Pooled Budgets,Jcs For People With Learning Disabilitie,Third Party Payments,Other Agency Services,561,11/01/2019,1901-00346,0.00,5.10,R,Advonet,No
Http://opendatacommunities.org/id/metropolitan-district-council/leeds,Leeds City Council As Accountable Body,31/01/2019,Social Services Pooled Budgets,Jcs For People With Learning Disabilitie,Third Party Payments,Other Agency Services,561,11/01/2019,1901-00347,0.00,9.90,R,Advonet,No
Http://opendatacommunities.org/id/metropolitan-district-council/leeds,Leeds City Council As Accountable Body,31/01/2019,Social Services Pooled Budgets,Jcs For People With Learning Disabilitie,Third Party Payments,Other Agency Services,561,11/01/2019,1901-00348,0.00,309.90,R,Advonet,No
Http://opendatacommunities.org/id/metropolitan-district-council/leeds,Leeds City Council As Accountable Body,31/01/2019,Social Services Pooled Budgets,Jcs For People With Learning Disabilitie,Third Party Payments,Other Agency Services,561,11/01/2019,1901-00349,0.00,110.77,R,Advonet,No
Http://opendatacommunities.org/id/metropolitan-district-council/leeds,Leeds City Council,31/01/2019,Children and Families,Social Care,Third Party Payments,Placement Support,550,15/01/2019,1901-00350,0.00,15.00,R,Advonet,No
Http://opendatacommunities.org/id/metropolitan-district-council/leeds,Leeds City Council,31/01/2019,Adults and Health,Services For Older People - 65 And Over,Third Party Payments,Payments To Voluntary Organisations,561,18/01/2019,1901-00351,0.00,103916.67,R,Advonet,No
Http://opendatacommunities.org/id/metropolitan-district-council/leeds,Leeds City Council,31/01/2019,Children and Families,Social Care,Third Party Payments,Placement Support,550,29/01/2019,1901-00352,0.00,5.10,R,Advonet,No
Http://opendatacommunities.org/id/metropolitan-district-council/leeds,Leeds City Council,31/01/2019,Children and Families,Social Care,Third Party Payments,Placement Support,550,29/01/2019,1901-00353,0.00,9.90,R,Advonet,No
Http://opendatacommunities.org/id/metropolitan-district-council/leeds,Leeds City Council,31/01/2019,Children and Families,Social Care,Third Party Payments,Placement Support,550,29/01/2019,1901-00354,0.00,20.10,R,Advonet,No
Http://opendatacommunities.org/id/metropolitan-district-council/leeds,Leeds City Council,31/01/2019,Adults and Health,Services For Adults Under 65 Mental/Dis,Third Party Payments,Home Care,568,04/01/2019,1901-00355,0.00,403.20,R,Aegis Care Solutions Ltd,No
Http://opendatacommunities.org/id/metropolitan-district-council/leeds,Leeds City Council,31/01/2019,Adults and Health,Services For Adults Under 65 Mental/Dis,Third Party Payments,Home Care,568,08/01/2019,1901-00356,0.00,403.20,R,Aegis Care Solutions Ltd,No
Http://opendatacommunities.org/id/metropolitan-district-council/leeds,Leeds City Council,31/01/2019,Adults and Health,Services For Adults Under 65 Mental/Dis,Third Party Payments,Home Care,568,09/01/2019,1901-00357,0.00,504.00,R,Aegis Care Solutions Ltd,No
Http://opendatacommunities.org/id/metropolitan-district-council/leeds,Leeds City Council,31/01/2019,Adults and Health,Services For Adults Under 65 Mental/Dis,Third Party Payments,Home Care,568,11/01/2019,1901-00358,0.00,403.20,R,Aegis Care Solutions Ltd,No
Http://opendatacommunities.org/id/metropolitan-district-council/leeds,Leeds City Council As Accountable Body,31/01/2019,Social Services Pooled Budgets,Jcs For People With Learning Disabilitie,Third Party Payments,Day Centre,564,02/01/2019,1901-00359,0.00,2031.48,R,Affinity Trust,No
Http://opendatacommunities.org/id/metropolitan-district-council/leeds,Leeds City Council As Accountable Body,31/01/2019,Social Services Pooled Budgets,Jcs For People With Learning Disabilitie,Third Party Payments,Day Centre,564,02/01/2019,1901-00360,0.00,1337.31,R,Affinity Trust,No
Http://opendatacommunities.org/id/metropolitan-district-council/leeds,Leeds City Council As Accountable Body,31/01/2019,Social Services Pooled Budgets,Jcs For People With Learning Disabilitie,Third Party Payments,Day Centre,564,02/01/2019,1901-00361,0.00,2346.40,R,Affinity Trust,No
Http://opendatacommunities.org/id/metropolitan-district-council/leeds,Leeds City Council As Accountable Body,31/01/2019,Social Services Pooled Budgets,Jcs For People With Learning Disabilitie,Third Party Payments,Day Centre,564,02/01/2019,1901-00362,0.00,648.95,R,Affinity Trust,No
Http://opendatacommunities.org/id/metropolitan-district-council/leeds,Leeds City Council As Accountable Body,31/01/2019,Social Services Pooled Budgets,Jcs For People With Learning Disabilitie,Third Party Payments,Day Centre,564,02/01/2019,1901-00363,0.00,1955.04,R,Affinity Trust,No
Http://opendatacommunities.org/id/metropolitan-district-council/leeds,Leeds City Council As Accountable Body,31/01/2019,Social Services Pooled Budgets,Jcs For People With Learning Disabilitie,Third Party Payments,Day Centre,564,02/01/2019,1901-00364,0.00,402.24,R,Affinity Trust,No
Http://opendatacommunities.org/id/metropolitan-district-council/leeds,Leeds City Council As Accountable Body,31/01/2019,Social Services Pooled Budgets,Jcs For People With Learning Disabilitie,Third Party Payments,Day Centre,564,02/01/2019,1901-00365,0.00,796.32,R,Affinity Trust,No
Http://opendatacommunities.org/id/metropolitan-district-council/leeds,Leeds City Council As Accountable Body,31/01/2019,Social Services Pooled Budgets,Jcs For People With Learning Disabilitie,Third Party Payments,Day Centre,564,02/01/2019,1901-00366,0.00,1440.00,R,Affinity Trust,No
Http://opendatacommunities.org/id/metropolitan-district-council/leeds,Leeds City Council As Accountable Body,31/01/2019,Social Services Pooled Budgets,Jcs For People With Learning Disabilitie,Third Party Payments,Day Centre,564,02/01/2019,1901-00367,0.00,255.68,R,Affinity Trust,No
Http://opendatacommunities.org/id/metropolitan-district-council/leeds,Leeds City Council As Accountable Body,31/01/2019,Social Services Pooled Budgets,Jcs For People With Learning Disabilitie,Third Party Payments,Day Centre,564,02/01/2019,1901-00368,0.00,416.64,R,Affinity Trust,No
Http://opendatacommunities.org/id/metropolitan-district-council/leeds,Leeds City Council As Accountable Body,31/01/2019,Social Services Pooled Budgets,Jcs For People With Learning Disabilitie,Third Party Payments,Home Care,568,02/01/2019,1901-00369,0.00,3446.80,R,Affinity Trust,No
Http://opendatacommunities.org/id/metropolitan-district-council/leeds,Leeds City Council As Accountable Body,31/01/2019,Social Services Pooled Budgets,Jcs For People With Learning Disabilitie,Third Party Payments,Home Care,568,02/01/2019,1901-00370,0.00,525.72,R,Affinity Trust,No
Http://opendatacommunities.org/id/metropolitan-district-council/leeds,Leeds City Council As Accountable Body,31/01/2019,Social Services Pooled Budgets,Jcs For People With Learning Disabilitie,Third Party Payments,Home Care,568,02/01/2019,1901-00371,0.00,804.48,R,Affinity Trust,No
Http://opendatacommunities.org/id/metropolitan-district-council/leeds,Leeds City Council As Accountable Body,31/01/2019,Social Services Pooled Budgets,Jcs For People With Learning Disabilitie,Third Party Payments,Home Care,568,02/01/2019,1901-00372,0.00,1458.17,R,Affinity Trust,No
Http://opendatacommunities.org/id/metropolitan-district-council/leeds,Leeds City Council As Accountable Body,31/01/2019,Social Services Pooled Budgets,Jcs For People With Learning Disabilitie,Third Party Payments,Home Care,568,02/01/2019,1901-00373,0.00,1770.66,R,Affinity Trust,No
Http://opendatacommunities.org/id/metropolitan-district-council/leeds,Leeds City Council As Accountable Body,31/01/2019,Social Services Pooled Budgets,Jcs For People With Learning Disabilitie,Third Party Payments,Home Care,568,02/01/2019,1901-00374,0.00,1005.60,R,Affinity Trust,No
Http://opendatacommunities.org/id/metropolitan-district-council/leeds,Leeds City Council As Accountable Body,31/01/2019,Social Services Pooled Budgets,Jcs For People With Learning Disabilitie,Third Party Payments,Home Care,568,02/01/2019,1901-00375,0.00,360.00,R,Affinity Trust,No
Http://opendatacommunities.org/id/metropolitan-district-council/leeds,Leeds City Council As Accountable Body,31/01/2019,Social Services Pooled Budgets,Jcs For People With Learning Disabilitie,Third Party Payments,Home Care,568,02/01/2019,1901-00376,0.00,1301.76,R,Affinity Trust,No
Http://opendatacommunities.org/id/metropolitan-district-council/leeds,Leeds City Council As Accountable Body,31/01/2019,Social Services Pooled Budgets,Jcs For People With Learning Disabilitie,Third Party Payments,Home Care,568,02/01/2019,1901-00377,0.00,1080.00,R,Affinity Trust,No
Http://opendatacommunities.org/id/metropolitan-district-council/leeds,Leeds City Council As Accountable Body,31/01/2019,Social Services Pooled Budgets,Jcs For People With Learning Disabilitie,Third Party Payments,Home Care,568,02/01/2019,1901-00378,0.00,2011.20,R,Affinity Trust,No
Http://opendatacommunities.org/id/metropolitan-district-council/leeds,Leeds City Council As Accountable Body,31/01/2019,Social Services Pooled Budgets,Jcs For People With Learning Disabilitie,Third Party Payments,Home Care,568,02/01/2019,1901-00379,0.00,1560.00,R,Affinity Trust,No
Http://opendatacommunities.org/id/metropolitan-district-council/leeds,Leeds City Council As Accountable Body,31/01/2019,Social Services Pooled Budgets,Jcs For People With Learning Disabilitie,Third Party Payments,Home Care,568,02/01/2019,1901-00380,0.00,615.33,R,Affinity Trust,No
Http://opendatacommunities.org/id/metropolitan-district-council/leeds,Leeds City Council As Accountable Body,31/01/2019,Social Services Pooled Budgets,Jcs For People With Learning Disabilitie,Third Party Payments,Home Care,568,02/01/2019,1901-00381,0.00,1050.00,R,Affinity Trust,No
Http://opendatacommunities.org/id/metropolitan-district-council/leeds,Leeds City Council As Accountable Body,31/01/2019,Social Services Pooled Budgets,Jcs For People With Learning Disabilitie,Third Party Payments,Home Care,568,02/01/2019,1901-00382,0.00,383.52,R,Affinity Trust,No
Http://opendatacommunities.org/id/metropolitan-district-council/leeds,Leeds City Council As Accountable Body,31/01/2019,Social Services Pooled Budgets,Jcs For People With Learning Disabilitie,Third Party Payments,Home Care,568,02/01/2019,1901-00383,0.00,319.60,R,Affinity Trust,No
Http://opendatacommunities.org/id/metropolitan-district-council/leeds,Leeds City Council As Accountable Body,31/01/2019,Social Services Pooled Budgets,Jcs For People With Learning Disabilitie,Third Party Payments,Home Care,568,02/01/2019,1901-00384,0.00,319.60,R,Affinity Trust,No
Http://opendatacommunities.org/id/metropolitan-district-council/leeds,Leeds City Council As Accountable Body,31/01/2019,Social Services Pooled Budgets,Jcs For People With Learning Disabilitie,Third Party Payments,Home Care,568,02/01/2019,1901-00385,0.00,962.80,R,Affinity Trust,No
Http://opendatacommunities.org/id/metropolitan-district-council/leeds,Leeds City Council As Accountable Body,31/01/2019,Social Services Pooled Budgets,Jcs For People With Learning Disabilitie,Third Party Payments,Home Care,568,02/01/2019,1901-00386,0.00,255.68,R,Affinity Trust,No
Http://opendatacommunities.org/id/metropolitan-district-council/leeds,Leeds City Council As Accountable Body,31/01/2019,Social Services Pooled Budgets,Jcs For People With Learning Disabilitie,Third Party Payments,Home Care,568,02/01/2019,1901-00387,0.00,575.28,R,Affinity Trust,No
Http://opendatacommunities.org/id/metropolitan-district-council/leeds,Leeds City Council As Accountable Body,31/01/2019,Social Services Pooled Budgets,Jcs For People With Learning Disabilitie,Third Party Payments,Home Care,568,02/01/2019,1901-00388,0.00,479.40,R,Affinity Trust,No
Http://opendatacommunities.org/id/metropolitan-district-council/leeds,Leeds City Council As Accountable Body,31/01/2019,Social Services Pooled Budgets,Jcs For People With Learning Disabilitie,Third Party Payments,Home Care,568,02/01/2019,1901-00389,0.00,958.80,R,Affinity Trust,No
Http://opendatacommunities.org/id/metropolitan-district-council/leeds,Leeds City Council As Accountable Body,31/01/2019,Social Services Pooled Budgets,Jcs For People With Learning Disabilitie,Third Party Payments,Home Care,568,02/01/2019,1901-00390,0.00,824.18,R,Affinity Trust,No
Http://opendatacommunities.org/id/metropolitan-district-council/leeds,Leeds City Council As Accountable Body,31/01/2019,Social Services Pooled Budgets,Jcs For People With Learning Disabilitie,Third Party Payments,Home Care,568,02/01/2019,1901-00391,0.00,306.48,R,Affinity Trust,No
Http://opendatacommunities.org/id/metropolitan-district-council/leeds,Leeds City Council As Accountable Body,31/01/2019,Social Services Pooled Budgets,Jcs For People With Learning Disabilitie,Third Party Payments,Home Care,568,02/01/2019,1901-00392,0.00,2492.88,R,Affinity Trust,No
Http://opendatacommunities.org/id/metropolitan-district-council/leeds,Leeds City Council As Accountable Body,31/01/2019,Social Services Pooled Budgets,Jcs For People With Learning Disabilitie,Third Party Payments,Home Care,568,02/01/2019,1901-00393,0.00,1086.64,R,Affinity Trust,No
Http://opendatacommunities.org/id/metropolitan-district-council/leeds,Leeds City Council As Accountable Body,31/01/2019,Social Services Pooled Budgets,Jcs For People With Learning Disabilitie,Third Party Payments,Home Care,568,02/01/2019,1901-00394,0.00,408.00,R,Affinity Trust,No
Http://opendatacommunities.org/id/metropolitan-district-council/leeds,Leeds City Council As Accountable Body,31/01/2019,Social Services Pooled Budgets,Jcs For People With Learning Disabilitie,Third Party Payments,Home Care,568,02/01/2019,1901-00395,0.00,687.14,R,Affinity Trust,No
Http://opendatacommunities.org/id/metropolitan-district-council/leeds,Leeds City Council As Accountable Body,31/01/2019,Social Services Pooled Budgets,Jcs For People With Learning Disabilitie,Third Party Payments,Home Care,568,02/01/2019,1901-00396,0.00,591.26,R,Affinity Trust,No
Http://opendatacommunities.org/id/metropolitan-district-council/leeds,Leeds City Council As Accountable Body,31/01/2019,Social Services Pooled Budgets,Jcs For People With Learning Disabilitie,Third Party Payments,Home Care,568,02/01/2019,1901-00397,0.00,950.33,R,Affinity Trust,No
Http://opendatacommunities.org/id/metropolitan-district-council/leeds,Leeds City Council As Accountable Body,31/01/2019,Social Services Pooled Budgets,Jcs For People With Learning Disabilitie,Third Party Payments,Home Care,568,02/01/2019,1901-00398,0.00,1452.00,R,Affinity Trust,No
Http://opendatacommunities.org/id/metropolitan-district-council/leeds,Leeds City Council As Accountable Body,31/01/2019,Social Services Pooled Budgets,Jcs For People With Learning Disabilitie,Third Party Payments,Home Care,568,02/01/2019,1901-00399,0.00,367.54,R,Affinity Trust,No
Http://opendatacommunities.org/id/metropolitan-district-council/leeds,Leeds City Council As Accountable Body,31/01/2019,Social Services Pooled Budgets,Jcs For People With Learning Disabilitie,Third Party Payments,Home Care,568,02/01/2019,1901-00400,0.00,1342.32,R,Affinity Trust,No
Http://opendatacommunities.org/id/metropolitan-district-council/leeds,Leeds City Council As Accountable Body,31/01/2019,Social Services Pooled Budgets,Jcs For People With Learning Disabilitie,Third Party Payments,Home Care,568,02/01/2019,1901-00401,0.00,958.80,R,Affinity Trust,No
Http://opendatacommunities.org/id/metropolitan-district-council/leeds,Leeds City Council,31/01/2019,Adults and Health,Services For Older People Under 65 P/Dis,Third Party Payments,Home Care,568,04/01/2019,1901-00402,0.00,526.68,R,Affinity Trust,No
Http://opendatacommunities.org/id/metropolitan-district-council/leeds,Leeds City Council,31/01/2019,Adults and Health,Services For Older People Under 65 P/Dis,Third Party Payments,Home Care,568,04/01/2019,1901-00403,0.00,756.90,R,Affinity Trust,No
Http://opendatacommunities.org/id/metropolitan-district-council/leeds,Leeds City Council,31/01/2019,Adults and Health,Assessment And Care Management,Third Party Payments,Home Care,568,04/01/2019,1901-00404,0.00,511.36,R,Affinity Trust,No
Http://opendatacommunities.org/id/metropolitan-district-council/leeds,Leeds City Council As Accountable Body,31/01/2019,Social Services Pooled Budgets,Jcs For People With Learning Disabilitie,Third Party Payments,Home Care,568,08/01/2019,1901-00405,0.00,631.21,R,Affinity Trust,No
Http://opendatacommunities.org/id/metropolitan-district-council/leeds,Leeds City Council As Accountable Body,31/01/2019,Social Services Pooled Budgets,Jcs For People With Learning Disabilitie,Third Party Payments,Home Care,568,08/01/2019,1901-00406,0.00,759.80,R,Affinity Trust,No
Http://opendatacommunities.org/id/metropolitan-district-council/leeds,Leeds City Council As Accountable Body,31/01/2019,Social Services Pooled Budgets,Jcs For People With Learning Disabilitie,Third Party Payments,Day Centre,564,25/01/2019,1901-00407,0.00,255.68,R,Affinity Trust,No
Http://opendatacommunities.org/id/metropolitan-district-council/leeds,Leeds City Council As Accountable Body,31/01/2019,Social Services Pooled Budgets,Jcs For People With Learning Disabilitie,Third Party Payments,Day Centre,564,25/01/2019,1901-00408,0.00,416.64,R,Affinity Trust,No
Http://opendatacommunities.org/id/metropolitan-district-council/leeds,Leeds City Council As Accountable Body,31/01/2019,Social Services Pooled Budgets,Jcs For People With Learning Disabilitie,Third Party Payments,Day Centre,564,25/01/2019,1901-00409,0.00,2031.48,R,Affinity Trust,No
Http://opendatacommunities.org/id/metropolitan-district-council/leeds,Leeds City Council As Accountable Body,31/01/2019,Social Services Pooled Budgets,Jcs For People With Learning Disabilitie,Third Party Payments,Day Centre,564,25/01/2019,1901-00410,0.00,1073.25,R,Affinity Trust,No
Http://opendatacommunities.org/id/metropolitan-district-council/leeds,Leeds City Council As Accountable Body,31/01/2019,Social Services Pooled Budgets,Jcs For People With Learning Disabilitie,Third Party Payments,Day Centre,564,25/01/2019,1901-00411,0.00,2346.40,R,Affinity Trust,No
Http://opendatacommunities.org/id/metropolitan-district-council/leeds,Leeds City Council As Accountable Body,31/01/2019,Social Services Pooled Budgets,Jcs For People With Learning Disabilitie,Third Party Payments,Day Centre,564,25/01/2019,1901-00412,0.00,648.95,R,Affinity Trust,No
Http://opendatacommunities.org/id/metropolitan-district-council/leeds,Leeds City Council As Accountable Body,31/01/2019,Social Services Pooled Budgets,Jcs For People With Learning Disabilitie,Third Party Payments,Day Centre,564,25/01/2019,1901-00413,0.00,2002.20,R,Affinity Trust,No
Http://opendatacommunities.org/id/metropolitan-district-council/leeds,Leeds City Council As Accountable Body,31/01/2019,Social Services Pooled Budgets,Jcs For People With Learning Disabilitie,Third Party Payments,Day Centre,564,25/01/2019,1901-00414,0.00,402.24,R,Affinity Trust,No
Http://opendatacommunities.org/id/metropolitan-district-council/leeds,Leeds City Council As Accountable Body,31/01/2019,Social Services Pooled Budgets,Jcs For People With Learning Disabilitie,Third Party Payments,Day Centre,564,25/01/2019,1901-00415,0.00,1050.66,R,Affinity Trust,No
Http://opendatacommunities.org/id/metropolitan-district-council/leeds,Leeds City Council As Accountable Body,31/01/2019,Social Services Pooled Budgets,Jcs For People With Learning Disabilitie,Third Party Payments,Day Centre,564,25/01/2019,1901-00416,0.00,1440.00,R,Affinity Trust,No
Http://opendatacommunities.org/id/metropolitan-district-council/leeds,Leeds City Council As Accountable Body,31/01/2019,Social Services Pooled Budgets,Jcs For People With Learning Disabilitie,Third Party Payments,Day Centre,564,25/01/2019,1901-00417,0.00,-2887.31,R,Affinity Trust,No
Http://opendatacommunities.org/id/metropolitan-district-council/leeds,Leeds City Council As Accountable Body,31/01/2019,Social Services Pooled Budgets,Jcs For People With Learning Disabilitie,Third Party Payments,Day Centre,564,25/01/2019,1901-00418,0.00,-7424.00,R,Affinity Trust,No
Http://opendatacommunities.org/id/metropolitan-district-council/leeds,Leeds City Council,31/01/2019,Adults and Health,Services For Older People - 65 And Over,Third Party Payments,Home Care,568,25/01/2019,1901-00419,0.00,511.36,R,Affinity Trust,No
Http://opendatacommunities.org/id/metropolitan-district-council/leeds,Leeds City Council,31/01/2019,Adults and Health,Services For Older People Under 65 P/Dis,Third Party Payments,Home Care,568,25/01/2019,1901-00420,0.00,773.72,R,Affinity Trust,No
Http://opendatacommunities.org/id/metropolitan-district-council/leeds,Leeds City Council,31/01/2019,Adults and Health,Assessment And Care Management,Third Party Payments,Home Care,568,25/01/2019,1901-00421,0.00,511.36,R,Affinity Trust,No
Http://opendatacommunities.org/id/metropolitan-district-council/leeds,Leeds City Council,31/01/2019,Adults and Health,Services For Older People Under 65 P/Dis,Third Party Payments,Home Care,568,25/01/2019,1901-00422,0.00,1518.10,R,Affinity Trust,No
Http://opendatacommunities.org/id/metropolitan-district-council/leeds,Leeds City Council,31/01/2019,Adults and Health,Services For Older People - 65 And Over,Third Party Payments,Home Care,568,25/01/2019,1901-00423,0.00,511.36,R,Affinity Trust,No
Http://opendatacommunities.org/id/metropolitan-district-council/leeds,Leeds City Council,31/01/2019,Adults and Health,Services For Older People Under 65 P/Dis,Third Party Payments,Home Care,568,25/01/2019,1901-00424,0.00,134.56,R,Affinity Trust,No
Http://opendatacommunities.org/id/metropolitan-district-council/leeds,Leeds City Council,31/01/2019,Adults and Health,Assessment And Care Management,Third Party Payments,Home Care,568,25/01/2019,1901-00425,0.00,511.36,R,Affinity Trust,No
Http://opendatacommunities.org/id/metropolitan-district-council/leeds,Leeds City Council,31/01/2019,Adults and Health,Assessment And Care Management,Third Party Payments,Home Care,568,25/01/2019,1901-00426,0.00,511.36,R,Affinity Trust,No
Http://opendatacommunities.org/id/metropolitan-district-council/leeds,Leeds City Council As Accountable Body,31/01/2019,Social Services Pooled Budgets,Jcs For People With Learning Disabilitie,Third Party Payments,Home Care,568,25/01/2019,1901-00427,0.00,663.89,R,Affinity Trust,No
Http://opendatacommunities.org/id/metropolitan-district-council/leeds,Leeds City Council As Accountable Body,31/01/2019,Social Services Pooled Budgets,Jcs For People With Learning Disabilitie,Third Party Payments,Home Care,568,25/01/2019,1901-00428,0.00,1620.00,R,Affinity Trust,No
Http://opendatacommunities.org/id/metropolitan-district-council/leeds,Leeds City Council As Accountable Body,31/01/2019,Social Services Pooled Budgets,Jcs For People With Learning Disabilitie,Third Party Payments,Home Care,568,25/01/2019,1901-00429,0.00,675.99,R,Affinity Trust,No
Http://opendatacommunities.org/id/metropolitan-district-council/leeds,Leeds City Council As Accountable Body,31/01/2019,Social Services Pooled Budgets,Jcs For People With Learning Disabilitie,Third Party Payments,Home Care,568,25/01/2019,1901-00430,0.00,1560.00,R,Affinity Trust,No
Http://opendatacommunities.org/id/metropolitan-district-council/leeds,Leeds City Council As Accountable Body,31/01/2019,Social Services Pooled Budgets,Jcs For People With Learning Disabilitie,Third Party Payments,Home Care,568,25/01/2019,1901-00431,0.00,2752.80,R,Affinity Trust,No
Http://opendatacommunities.org/id/metropolitan-district-council/leeds,Leeds City Council As Accountable Body,31/01/2019,Social Services Pooled Budgets,Jcs For People With Learning Disabilitie,Third Party Payments,Home Care,568,25/01/2019,1901-00432,0.00,1991.25,R,Affinity Trust,No
Http://opendatacommunities.org/id/metropolitan-district-council/leeds,Leeds City Council As Accountable Body,31/01/2019,Social Services Pooled Budgets,Jcs For People With Learning Disabilitie,Third Party Payments,Home Care,568,25/01/2019,1901-00433,0.00,383.52,R,Affinity Trust,No
Http://opendatacommunities.org/id/metropolitan-district-council/leeds,Leeds City Council As Accountable Body,31/01/2019,Social Services Pooled Budgets,Jcs For People With Learning Disabilitie,Third Party Payments,Home Care,568,25/01/2019,1901-00434,0.00,319.60,R,Affinity Trust,No
Http://opendatacommunities.org/id/metropolitan-district-council/leeds,Leeds City Council As Accountable Body,31/01/2019,Social Services Pooled Budgets,Jcs For People With Learning Disabilitie,Third Party Payments,Home Care,568,25/01/2019,1901-00435,0.00,319.60,R,Affinity Trust,No
Http://opendatacommunities.org/id/metropolitan-district-council/leeds,Leeds City Council As Accountable Body,31/01/2019,Social Services Pooled Budgets,Jcs For People With Learning Disabilitie,Third Party Payments,Home Care,568,25/01/2019,1901-00436,0.00,1198.50,R,Affinity Trust,No
Http://opendatacommunities.org/id/metropolitan-district-council/leeds,Leeds City Council As Accountable Body,31/01/2019,Social Services Pooled Budgets,Jcs For People With Learning Disabilitie,Third Party Payments,Home Care,568,25/01/2019,1901-00437,0.00,255.68,R,Affinity Trust,No
Http://opendatacommunities.org/id/metropolitan-district-council/leeds,Leeds City Council As Accountable Body,31/01/2019,Social Services Pooled Budgets,Jcs For People With Learning Disabilitie,Third Party Payments,Home Care,568,25/01/2019,1901-00438,0.00,639.20,R,Affinity Trust,No
Http://opendatacommunities.org/id/metropolitan-district-council/leeds,Leeds City Council As Accountable Body,31/01/2019,Social Services Pooled Budgets,Jcs For People With Learning Disabilitie,Third Party Payments,Home Care,568,25/01/2019,1901-00439,0.00,463.42,R,Affinity Trust,No
Http://opendatacommunities.org/id/metropolitan-district-council/leeds,Leeds City Council As Accountable Body,31/01/2019,Social Services Pooled Budgets,Jcs For People With Learning Disabilitie,Third Party Payments,Home Care,568,25/01/2019,1901-00440,0.00,958.80,R,Affinity Trust,No
Http://opendatacommunities.org/id/metropolitan-district-council/leeds,Leeds City Council As Accountable Body,31/01/2019,Social Services Pooled Budgets,Jcs For People With Learning Disabilitie,Third Party Payments,Home Care,568,25/01/2019,1901-00441,0.00,941.92,R,Affinity Trust,No
Http://opendatacommunities.org/id/metropolitan-district-council/leeds,Leeds City Council As Accountable Body,31/01/2019,Social Services Pooled Budgets,Jcs For People With Learning Disabilitie,Third Party Payments,Home Care,568,25/01/2019,1901-00442,0.00,408.64,R,Affinity Trust,No
Http://opendatacommunities.org/id/metropolitan-district-council/leeds,Leeds City Council As Accountable Body,31/01/2019,Social Services Pooled Budgets,Jcs For People With Learning Disabilitie,Third Party Payments,Home Care,568,25/01/2019,1901-00443,0.00,2460.92,R,Affinity Trust,No
Http://opendatacommunities.org/id/metropolitan-district-council/leeds,Leeds City Council As Accountable Body,31/01/2019,Social Services Pooled Budgets,Jcs For People With Learning Disabilitie,Third Party Payments,Home Care,568,25/01/2019,1901-00444,0.00,1086.64,R,Affinity Trust,No
Http://opendatacommunities.org/id/metropolitan-district-council/leeds,Leeds City Council As Accountable Body,31/01/2019,Social Services Pooled Budgets,Jcs For People With Learning Disabilitie,Third Party Payments,Home Care,568,25/01/2019,1901-00445,0.00,408.00,R,Affinity Trust,No
Http://opendatacommunities.org/id/metropolitan-district-council/leeds,Leeds City Council As Accountable Body,31/01/2019,Social Services Pooled Budgets,Jcs For People With Learning Disabilitie,Third Party Payments,Home Care,568,25/01/2019,1901-00446,0.00,639.20,R,Affinity Trust,No
Http://opendatacommunities.org/id/metropolitan-district-council/leeds,Leeds City Council As Accountable Body,31/01/2019,Social Services Pooled Budgets,Jcs For People With Learning Disabilitie,Third Party Payments,Home Care,568,25/01/2019,1901-00447,0.00,639.20,R,Affinity Trust,No
Http://opendatacommunities.org/id/metropolitan-district-council/leeds,Leeds City Council As Accountable Body,31/01/2019,Social Services Pooled Budgets,Jcs For People With Learning Disabilitie,Third Party Payments,Home Care,568,25/01/2019,1901-00448,0.00,925.10,R,Affinity Trust,No
Http://opendatacommunities.org/id/metropolitan-district-council/leeds,Leeds City Council As Accountable Body,31/01/2019,Social Services Pooled Budgets,Jcs For People With Learning Disabilitie,Third Party Payments,Home Care,568,25/01/2019,1901-00449,0.00,1551.00,R,Affinity Trust,No
Http://opendatacommunities.org/id/metropolitan-district-council/leeds,Leeds City Council As Accountable Body,31/01/2019,Social Services Pooled Budgets,Jcs For People With Learning Disabilitie,Third Party Payments,Home Care,568,25/01/2019,1901-00450,0.00,287.24,R,Affinity Trust,No
Http://opendatacommunities.org/id/metropolitan-district-council/leeds,Leeds City Council As Accountable Body,31/01/2019,Social Services Pooled Budgets,Jcs For People With Learning Disabilitie,Third Party Payments,Home Care,568,25/01/2019,1901-00451,0.00,1310.36,R,Affinity Trust,No
Http://opendatacommunities.org/id/metropolitan-district-council/leeds,Leeds City Council As Accountable Body,31/01/2019,Social Services Pooled Budgets,Jcs For People With Learning Disabilitie,Third Party Payments,Home Care,568,25/01/2019,1901-00452,0.00,958.80,R,Affinity Trust,No
Http://opendatacommunities.org/id/metropolitan-district-council/leeds,Leeds City Council As Accountable Body,31/01/2019,Social Services Pooled Budgets,Jcs For People With Learning Disabilitie,Third Party Payments,Home Care,568,25/01/2019,1901-00453,0.00,1281.81,R,Affinity Trust,No
Http://opendatacommunities.org/id/metropolitan-district-council/leeds,Leeds City Council As Accountable Body,31/01/2019,Social Services Pooled Budgets,Jcs For People With Learning Disabilitie,Third Party Payments,Home Care,568,25/01/2019,1901-00454,0.00,1005.60,R,Affinity Trust,No
Http://opendatacommunities.org/id/metropolitan-district-council/leeds,Leeds City Council As Accountable Body,31/01/2019,Social Services Pooled Budgets,Jcs For People With Learning Disabilitie,Third Party Payments,Home Care,568,25/01/2019,1901-00455,0.00,1680.66,R,Affinity Trust,No
Http://opendatacommunities.org/id/metropolitan-district-council/leeds,Leeds City Council As Accountable Body,31/01/2019,Social Services Pooled Budgets,Jcs For People With Learning Disabilitie,Third Party Payments,Home Care,568,25/01/2019,1901-00456,0.00,1597.82,R,Affinity Trust,No
Http://opendatacommunities.org/id/metropolitan-district-council/leeds,Leeds City Council As Accountable Body,31/01/2019,Social Services Pooled Budgets,Jcs For People With Learning Disabilitie,Third Party Payments,Home Care,568,25/01/2019,1901-00457,0.00,603.36,R,Affinity Trust,No
Http://opendatacommunities.org/id/metropolitan-district-council/leeds,Leeds City Council As Accountable Body,31/01/2019,Social Services Pooled Budgets,Jcs For People With Learning Disabilitie,Third Party Payments,Home Care,568,25/01/2019,1901-00458,0.00,525.72,R,Affinity Trust,No
Http://opendatacommunities.org/id/metropolitan-district-council/leeds,Leeds City Council As Accountable Body,31/01/2019,Social Services Pooled Budgets,Jcs For People With Learning Disabilitie,Third Party Payments,Home Care,568,25/01/2019,1901-00459,0.00,3446.80,R,Affinity Trust,No
Http://opendatacommunities.org/id/metropolitan-district-council/leeds,Leeds City Council As Accountable Body,31/01/2019,Social Services Pooled Budgets,Jcs For People With Learning Disabilitie,Third Party Payments,Home Care,568,25/01/2019,1901-00460,0.00,1080.00,R,Affinity Trust,No
Http://opendatacommunities.org/id/metropolitan-district-council/leeds,Leeds City Council As Accountable Body,31/01/2019,Social Services Pooled Budgets,Jcs For People With Learning Disabilitie,Third Party Payments,Home Care,568,25/01/2019,1901-00461,0.00,974.78,R,Affinity Trust,No
Http://opendatacommunities.org/id/metropolitan-district-council/leeds,Leeds City Council As Accountable Body,31/01/2019,Social Services Pooled Budgets,Jcs For People With Learning Disabilitie,Third Party Payments,Home Care,568,29/01/2019,1901-00462,0.00,360.00,R,Affinity Trust,No
Http://opendatacommunities.org/id/metropolitan-district-council/leeds,Leeds City Council As Accountable Body,31/01/2019,Social Services Pooled Budgets,Jcs For People With Learning Disabilitie,Third Party Payments,Day Centre,564,31/01/2019,1901-00463,0.00,255.68,R,Affinity Trust,No
Http://opendatacommunities.org/id/metropolitan-district-council/leeds,Leeds City Council As Accountable Body,31/01/2019,Social Services Pooled Budgets,Jcs For People With Learning Disabilitie,Third Party Payments,Day Centre,564,31/01/2019,1901-00464,0.00,416.64,R,Affinity Trust,No
Http://opendatacommunities.org/id/metropolitan-district-council/leeds,Leeds City Council,31/01/2019,Adults and Health,Services For Older People Under 65 P/Dis,Third Party Payments,Home Care,568,31/01/2019,1901-00465,0.00,319.60,R,Affinity Trust,No
Http://opendatacommunities.org/id/metropolitan-district-council/leeds,Leeds City Council,31/01/2019,Adults and Health,Services For Older People Under 65 P/Dis,Third Party Payments,Home Care,568,31/01/2019,1901-00466,0.00,526.68,R,Affinity Trust,No
Http://opendatacommunities.org/id/metropolitan-district-council/leeds,Leeds City Council As Accountable Body,31/01/2019,Social Services Pooled Budgets,Jcs For People With Learning Disabilitie,Third Party Payments,Home Care,568,31/01/2019,1901-00467,0.00,303.62,R,Affinity Trust,No
Http://opendatacommunities.org/id/metropolitan-district-council/leeds,Leeds City Council As Accountable Body,31/01/2019,Social Services Pooled Budgets,Jcs For People With Learning Disabilitie,Third Party Payments,Home Care,568,31/01/2019,1901-00468,0.00,1342.32,R,Affinity Trust,No
Http://opendatacommunities.org/id/metropolitan-district-council/leeds,Leeds City Council As Accountable Body,31/01/2019,Social Services Pooled Budgets,Jcs For People With Learning Disabilitie,Third Party Payments,Home Care,568,31/01/2019,1901-00469,0.00,399.50,R,Affinity Trust,No
Http://opendatacommunities.org/id/metropolitan-district-council/leeds,Leeds City Council As Accountable Body,31/01/2019,Social Services Pooled Budgets,Jcs For People With Learning Disabilitie,Third Party Payments,Home Care,568,31/01/2019,1901-00470,0.00,495.38,R,Affinity Trust,No
Http://opendatacommunities.org/id/metropolitan-district-council/leeds,Leeds City Council As Accountable Body,31/01/2019,Social Services Pooled Budgets,Jcs For People With Learning Disabilitie,Third Party Payments,Home Care,568,31/01/2019,1901-00471,0.00,319.60,R,Affinity Trust,No
Http://opendatacommunities.org/id/metropolitan-district-council/leeds,Leeds City Council As Accountable Body,31/01/2019,Social Services Pooled Budgets,Jcs For People With Learning Disabilitie,Third Party Payments,Home Care,568,31/01/2019,1901-00472,0.00,1242.75,R,Affinity Trust,No
Http://opendatacommunities.org/id/metropolitan-district-council/leeds,Leeds City Council As Accountable Body,31/01/2019,Social Services Pooled Budgets,Jcs For People With Learning Disabilitie,Third Party Payments,Home Care,568,31/01/2019,1901-00473,0.00,1211.04,R,Affinity Trust,No
Http://opendatacommunities.org/id/metropolitan-district-council/leeds,Leeds City Council As Accountable Body,31/01/2019,Social Services Pooled Budgets,Jcs For People With Learning Disabilitie,Third Party Payments,Home Care,568,31/01/2019,1901-00474,0.00,639.20,R,Affinity Trust,No
Http://opendatacommunities.org/id/metropolitan-district-council/leeds,Leeds City Council As Accountable Body,31/01/2019,Social Services Pooled Budgets,Jcs For People With Learning Disabilitie,Third Party Payments,Home Care,568,31/01/2019,1901-00475,0.00,607.24,R,Affinity Trust,No
Http://opendatacommunities.org/id/metropolitan-district-council/leeds,Leeds City Council As Accountable Body,31/01/2019,Social Services Pooled Budgets,Jcs For People With Learning Disabilitie,Third Party Payments,Home Care,568,31/01/2019,1901-00476,0.00,306.00,R,Affinity Trust,No
Http://opendatacommunities.org/id/metropolitan-district-council/leeds,Leeds City Council As Accountable Body,31/01/2019,Social Services Pooled Budgets,Jcs For People With Learning Disabilitie,Third Party Payments,Home Care,568,31/01/2019,1901-00477,0.00,1086.64,R,Affinity Trust,No
Http://opendatacommunities.org/id/metropolitan-district-council/leeds,Leeds City Council As Accountable Body,31/01/2019,Social Services Pooled Budgets,Jcs For People With Learning Disabilitie,Third Party Payments,Home Care,568,31/01/2019,1901-00478,0.00,2740.57,R,Affinity Trust,No
Http://opendatacommunities.org/id/metropolitan-district-council/leeds,Leeds City Council As Accountable Body,31/01/2019,Social Services Pooled Budgets,Jcs For People With Learning Disabilitie,Third Party Payments,Home Care,568,31/01/2019,1901-00479,0.00,102.16,R,Affinity Trust,No
Http://opendatacommunities.org/id/metropolitan-district-council/leeds,Leeds City Council As Accountable Body,31/01/2019,Social Services Pooled Budgets,Jcs For People With Learning Disabilitie,Third Party Payments,Home Care,568,31/01/2019,1901-00480,0.00,824.18,R,Affinity Trust,No
Http://opendatacommunities.org/id/metropolitan-district-council/leeds,Leeds City Council As Accountable Body,31/01/2019,Social Services Pooled Budgets,Jcs For People With Learning Disabilitie,Third Party Payments,Home Care,568,31/01/2019,1901-00481,0.00,958.80,R,Affinity Trust,No
Http://opendatacommunities.org/id/metropolitan-district-council/leeds,Leeds City Council As Accountable Body,31/01/2019,Social Services Pooled Budgets,Jcs For People With Learning Disabilitie,Third Party Payments,Home Care,568,31/01/2019,1901-00482,0.00,463.42,R,Affinity Trust,No
Http://opendatacommunities.org/id/metropolitan-district-council/leeds,Leeds City Council As Accountable Body,31/01/2019,Social Services Pooled Budgets,Jcs For People With Learning Disabilitie,Third Party Payments,Home Care,568,31/01/2019,1901-00483,0.00,639.20,R,Affinity Trust,No
Http://opendatacommunities.org/id/metropolitan-district-council/leeds,Leeds City Council As Accountable Body,31/01/2019,Social Services Pooled Budgets,Jcs For People With Learning Disabilitie,Third Party Payments,Home Care,568,31/01/2019,1901-00484,0.00,255.68,R,Affinity Trust,No
Http://opendatacommunities.org/id/metropolitan-district-council/leeds,Leeds City Council As Accountable Body,31/01/2019,Social Services Pooled Budgets,Jcs For People With Learning Disabilitie,Third Party Payments,Home Care,568,31/01/2019,1901-00485,0.00,962.80,R,Affinity Trust,No
Http://opendatacommunities.org/id/metropolitan-district-council/leeds,Leeds City Council As Accountable Body,31/01/2019,Social Services Pooled Budgets,Jcs For People With Learning Disabilitie,Third Party Payments,Home Care,568,31/01/2019,1901-00486,0.00,319.60,R,Affinity Trust,No
Http://opendatacommunities.org/id/metropolitan-district-council/leeds,Leeds City Council As Accountable Body,31/01/2019,Social Services Pooled Budgets,Jcs For People With Learning Disabilitie,Third Party Payments,Sheltered Accommodation,569,09/01/2019,1901-00487,0.00,132461.44,R,Affinity Trust North Divisional Office,No
Http://opendatacommunities.org/id/metropolitan-district-council/leeds,Leeds City Council,31/01/2019,Communities and Environment,Parks And Countryside  ,Transport,External Hire -Occasional,304,04/12/2018,1901-00488,0.00,950.00,R,Afi Uplift,Yes
Http://opendatacommunities.org/id/metropolitan-district-council/leeds,Leeds City Council,31/01/2019,Communities and Environment,Parks And Countryside  ,Transport,External Hire -Occasional,304,04/12/2018,1901-00489,0.00,950.00,R,Afi Uplift,Yes
Http://opendatacommunities.org/id/metropolitan-district-council/leeds,Leeds City Council,31/01/2019,Communities and Environment,Parks and Countryside,Employees,Training & Development,70,16/01/2019,1901-00490,0.00,100.00,R,Afi-Uplift Limited,No
Http://opendatacommunities.org/id/metropolitan-district-council/leeds,Leeds City Council,31/01/2019,Resources and Housing,Leeds Building Services,Supplies and Services,Other Hired And Contracted Services,265,18/01/2019,1901-00491,0.00,907.61,R,Afm Europe Ltd,No
Http://opendatacommunities.org/id/metropolitan-district-council/leeds,Leeds City Council,31/01/2019,Resources and Housing,Commercial Services,Supplies and Services,Compensation Claims,200,18/01/2019,1901-00492,0.00,588.16,R,Afzana Shan,No
Http://opendatacommunities.org/id/metropolitan-district-council/leeds,Leeds City Council,31/01/2019,Resources and Housing,Commercial Services,Supplies and Services,Compensation Claims,200,24/01/2019,1901-00493,0.00,39.30,R,Afzana Shan,No
Http://opendatacommunities.org/id/metropolitan-district-council/leeds,Leeds City Council,31/01/2019,Adults and Health,Services For Older People - 65 And Over,Supplies and Services,Non-Recurring Grants,227,14/01/2019,1901-00494,0.00,295.33,R,Age Uk Leeds Enterprises,No
Http://opendatacommunities.org/id/metropolitan-district-council/leeds,Leeds City Council,31/01/2019,Adults and Health,Public Health,Supplies and Services,Food & Drink,231,14/01/2019,1901-00495,0.00,149.08,R,Age Uk Leeds Enterprises,No
Http://opendatacommunities.org/id/metropolitan-district-council/leeds,Leeds City Council,31/01/2019,Adults and Health,Other Adult Services,Supplies and Services,Conference Meetings,253,14/01/2019,1901-00496,0.00,62.08,R,Age Uk Leeds Enterprises,No
Http://opendatacommunities.org/id/metropolitan-district-council/leeds,Leeds City Council,31/01/2019,Insurance,Insurance,Supplies and Services,Insurance Claims,248,22/01/2019,1901-00497,0.00,330.00,R,Ageas Insurance Limited,No
Http://opendatacommunities.org/id/metropolitan-district-council/leeds,Leeds City Council,31/01/2019,City Development,Highways,Capital,Construction,3,23/01/2019,1901-00498,0.00,145883.73,C,Aggregate Industries Uk Ltd,No
Http://opendatacommunities.org/id/metropolitan-district-council/leeds,Leeds City Council,31/01/2019,City Development,Highways,Capital,Construction,3,30/01/2019,1901-00499,0.00,1306.88,C,Aggregate Industries Uk Ltd,No
Http://opendatacommunities.org/id/metropolitan-district-council/leeds,Leeds City Council As Accountable Body,31/01/2019,Social Services Pooled Budgets,Jcs For People With Learning Disabilitie,Transfer Payments,Direct Payments,626,03/01/2019,1901-00500,0.00,791.25,R,REDACTED PERSONAL DATA,No
Http://opendatacommunities.org/id/metropolitan-district-council/leeds,Leeds City Council,31/01/2019,Communities and Environment,Elections  Licensing and Registration,Income,Admissions  Booking Fees & Ticket Sales,933,10/01/2019,1901-00501,0.00,55.00,R,REDACTED PERSONAL DATA,No
Http://opendatacommunities.org/id/metropolitan-district-council/leeds,Leeds City Council,31/01/2019,Children and Families,Learning,Supplies and Services,Teaching Materials,202,18/01/2019,1901-00502,0.00,83.52,R,Aid Training & Operations Ltd,No
Http://opendatacommunities.org/id/metropolitan-district-council/leeds,Leeds City Council As Accountable Body,31/01/2019,Social Services Pooled Budgets,Leeds Community Equip Store Pooled Budgt,Supplies and Services,Other Equipment,203,02/01/2019,1901-00503,0.00,1649.10,R,Aidapt Bathrooms Ltd,No
Http://opendatacommunities.org/id/metropolitan-district-council/leeds,Leeds City Council As Accountable Body,31/01/2019,Social Services Pooled Budgets,Leeds Community Equip Store Pooled Budgt,Supplies and Services,Other Equipment,203,04/01/2019,1901-00504,0.00,515.80,R,Aidapt Bathrooms Ltd,No
Http://opendatacommunities.org/id/metropolitan-district-council/leeds,Leeds City Council As Accountable Body,31/01/2019,Social Services Pooled Budgets,Leeds Community Equip Store Pooled Budgt,Supplies and Services,Other Equipment,203,16/01/2019,1901-00505,0.00,241.80,R,Aidapt Bathrooms Ltd,No
Http://opendatacommunities.org/id/metropolitan-district-council/leeds,Leeds City Council As Accountable Body,31/01/2019,Social Services Pooled Budgets,Leeds Community Equip Store Pooled Budgt,Supplies and Services,Other Equipment,203,18/01/2019,1901-00506,0.00,4262.50,R,Aidapt Bathrooms Ltd,No
Http://opendatacommunities.org/id/metropolitan-district-council/leeds,Leeds City Council As Accountable Body,31/01/2019,Social Services Pooled Budgets,Leeds Community Equip Store Pooled Budgt,Supplies and Services,Other Equipment,203,23/01/2019,1901-00507,0.00,959.20,R,Aidapt Bathrooms Ltd,No
Http://opendatacommunities.org/id/metropolitan-district-council/leeds,Leeds City Council As Accountable Body,31/01/2019,Social Services Pooled Budgets,Leeds Community Equip Store Pooled Budgt,Supplies and Services,Other Equipment,203,30/01/2019,1901-00508,0.00,1099.40,R,Aidapt Bathrooms Ltd,No
Http://opendatacommunities.org/id/metropolitan-district-council/leeds,Leeds City Council As Accountable Body,31/01/2019,Social Services Pooled Budgets,Leeds Community Equip Store Pooled Budgt,Supplies and Services,Other Equipment,203,30/01/2019,1901-00509,0.00,2250.80,R,Aidapt Bathrooms Ltd,No
Http://opendatacommunities.org/id/metropolitan-district-council/leeds,Leeds City Council As Accountable Body,31/01/2019,Social Services Pooled Budgets,Leeds Community Equip Store Pooled Budgt,Supplies and Services,Other Equipment,203,30/01/2019,1901-00510,0.00,4150.00,R,Aidapt Bathrooms Ltd,No
Http://opendatacommunities.org/id/metropolitan-district-council/leeds,Leeds City Council As Accountable Body,31/01/2019,Social Services Pooled Budgets,Leeds Community Equip Store Pooled Budgt,Supplies and Services,Other Equipment,203,30/01/2019,1901-00511,0.00,2193.10,R,Aidapt Bathrooms Ltd,No
Http://opendatacommunities.org/id/metropolitan-district-council/leeds,Leeds City Council,31/01/2019,Resources and Housing,Leeds Building Services,Supplies and Services,Operational Materials,205,08/01/2019,1901-00512,0.00,105.26,R,Air Conditioning Accessories,No
Http://opendatacommunities.org/id/metropolitan-district-council/leeds,Leeds City Council,31/01/2019,Resources and Housing,Leeds Building Services,Supplies and Services,Operational Materials,205,08/01/2019,1901-00513,0.00,28.63,R,Air Conditioning Accessories,No
Http://opendatacommunities.org/id/metropolitan-district-council/leeds,Leeds City Council,31/01/2019,Resources and Housing,Leeds Building Services,Supplies and Services,Operational Materials,205,09/01/2019,1901-00514,0.00,80.00,R,Air Conditioning Accessories,No
Http://opendatacommunities.org/id/metropolitan-district-council/leeds,Leeds City Council,31/01/2019,Resources and Housing,Leeds Building Services,Supplies and Services,Operational Materials,205,09/01/2019,1901-00515,0.00,229.61,R,Air Conditioning Accessories,No
Http://opendatacommunities.org/id/metropolitan-district-council/leeds,Leeds City Council,31/01/2019,Resources and Housing,Leeds Building Services,Supplies and Services,Operational Materials,205,09/01/2019,1901-00516,0.00,2215.80,R,Air Conditioning Accessories,No
Http://opendatacommunities.org/id/metropolitan-district-council/leeds,Leeds City Council,31/01/2019,Resources and Housing,Leeds Building Services,Supplies and Services,Operational Materials,205,29/01/2019,1901-00517,0.00,1636.04,R,Air Conditioning Accessories,No
Http://opendatacommunities.org/id/metropolitan-district-council/leeds,Leeds City Council,31/01/2019,Communities and Environment,Environmental Health,Supplies and Services,Other Hired And Contracted Services,265,04/01/2019,1901-00518,0.00,69.02,R,Air Liquide Uk,No
Http://opendatacommunities.org/id/metropolitan-district-council/leeds,Leeds City Council,31/01/2019,Communities and Environment,Environmental Health,Supplies and Services,Other Hired And Contracted Services,265,04/01/2019,1901-00519,0.00,15.03,R,Air Liquide Uk,No
Http://opendatacommunities.org/id/metropolitan-district-council/leeds,Leeds City Council,31/01/2019,Communities and Environment,Environmental Health,Supplies and Services,Other Hired And Contracted Services,265,04/01/2019,1901-00520,0.00,9.86,R,Air Liquide Uk,No
Http://opendatacommunities.org/id/metropolitan-district-council/leeds,Leeds City Council,31/01/2019,Communities and Environment,Environmental Health,Supplies and Services,Other Hired And Contracted Services,265,04/01/2019,1901-00521,0.00,9.86,R,Air Liquide Uk,No
Http://opendatacommunities.org/id/metropolitan-district-council/leeds,Leeds City Council,31/01/2019,Communities and Environment,Environmental Health,Supplies and Services,Other Hired And Contracted Services,265,14/01/2019,1901-00522,0.00,663.00,R,Air Liquide Uk,No
Http://opendatacommunities.org/id/metropolitan-district-council/leeds,Leeds City Council,31/01/2019,Resources and Housing,Leeds Building Services,Supplies and Services,Operational Materials,205,30/01/2019,1901-00523,0.00,201.57,R,Air Liquide Uk,No
Http://opendatacommunities.org/id/metropolitan-district-council/leeds,Leeds City Council,31/01/2019,Adults and Health,Services For Older People - 65 And Over,Third Party Payments,Residential Care Dementia,571,09/01/2019,1901-00524,0.00,49760.88,R,Aire View Residential Home,No
Http://opendatacommunities.org/id/metropolitan-district-council/leeds,Leeds City Council,31/01/2019,Adults and Health,Services For Older People - 65 And Over,Third Party Payments,Residential,580,09/01/2019,1901-00525,0.00,8929.06,R,Aire View Residential Home,No
Http://opendatacommunities.org/id/metropolitan-district-council/leeds,Leeds City Council,31/01/2019,Communities and Environment,Communities,Supplies and Services,'Well Being' Large Grants Projects,230,14/01/2019,1901-00526,0.00,7000.00,R,Aireborough Neighbourhood Development,No
Http://opendatacommunities.org/id/metropolitan-district-council/leeds,Leeds City Council,31/01/2019,Adults and Health,Services For Older People - 65 And Over,Third Party Payments,Residential Care Dementia,571,09/01/2019,1901-00527,0.00,4160.12,R,Airedale Care Home,No
Http://opendatacommunities.org/id/metropolitan-district-council/leeds,Leeds City Council,31/01/2019,Adults and Health,Services For Older People - 65 And Over,Third Party Payments,Residential,580,09/01/2019,1901-00528,0.00,23684.05,R,Airedale Care Home,No
Http://opendatacommunities.org/id/metropolitan-district-council/leeds,Leeds City Council,31/01/2019,Children and Families,Social Care,Premises,Maintenance Of Buildings,101,16/01/2019,1901-00529,0.00,4476.00,R,Airedale Catering Equipment Ltd,No
Http://opendatacommunities.org/id/metropolitan-district-council/leeds,Leeds City Council,31/01/2019,Resources and Housing,Commercial Services,Premises,Fixtures & Fittings,131,16/01/2019,1901-00530,0.00,6996.00,R,Airedale Catering Equipment Ltd,No
Http://opendatacommunities.org/id/metropolitan-district-council/leeds,Leeds City Council,31/01/2019,Adults and Health,Assessment And Care Management,Employees,Training Costs,71,02/01/2019,1901-00531,0.00,150.00,R,Airedale Community Trading (Act) Ltd,No
Http://opendatacommunities.org/id/metropolitan-district-council/leeds,Leeds City Council As Accountable Body,31/01/2019,Social Services Pooled Budgets,Jcs For People With Learning Disabilitie,Third Party Payments,Home Care,568,16/01/2019,1901-00532,0.00,101.53,R,Airedale Nhs Foundation Trust,No
Http://opendatacommunities.org/id/metropolitan-district-council/leeds,Leeds City Council,31/01/2019,Adults and Health,Public Health  ,Transport,Public Transport Expenses,310,02/12/2018,1901-00533,0.00,46.41,R,Airport Taxi Transfers,Yes
Http://opendatacommunities.org/id/metropolitan-district-council/leeds,Leeds City Council,31/01/2019,Resources and Housing,Commercial Services,Supplies and Services,Other Hired And Contracted Services,265,11/01/2019,1901-00534,0.00,180.00,R,Air-Weigh Europe Limited,No
Http://opendatacommunities.org/id/metropolitan-district-council/leeds,Leeds City Council,31/01/2019,Adults and Health,Services For Adults Under 65 Mental/Dis,Third Party Payments,Services Provided By Other NHS Bodies,522,23/01/2019,1901-00535,0.00,175.00,R,Ait Mitra Limited,No
Http://opendatacommunities.org/id/metropolitan-district-council/leeds,Leeds City Council,31/01/2019,Adults and Health,Services For Adults Under 65 Mental/Dis,Third Party Payments,Services Provided By Other NHS Bodies,522,23/01/2019,1901-00536,0.00,175.00,R,Ait Mitra Limited,No
Http://opendatacommunities.org/id/metropolitan-district-council/leeds,Leeds City Council,31/01/2019,Adults and Health,Services For Adults Under 65 Mental/Dis,Third Party Payments,Services Provided By Other NHS Bodies,522,23/01/2019,1901-00537,0.00,175.00,R,Ait Mitra Limited,No
Http://opendatacommunities.org/id/metropolitan-district-council/leeds,Leeds City Council As Accountable Body,31/01/2019,Social Services Pooled Budgets,Jcs For People With Learning Disabilitie,Third Party Payments,Residential,580,09/01/2019,1901-00538,0.00,6173.24,R,Aitch Care Homes,No
Http://opendatacommunities.org/id/metropolitan-district-council/leeds,Leeds City Council,31/01/2019,City Development,Recreation,Supplies and Services,Operational Materials,205,08/01/2019,1901-00539,0.00,312.95,R,Aitkens Sportsturf Ltd,No
Http://opendatacommunities.org/id/metropolitan-district-council/leeds,Leeds City Council,31/01/2019,Communities and Environment,Parks and Countryside,Supplies and Services,Operational Materials,205,18/01/2019,1901-00540,0.00,640.00,R,Aitkens Sportsturf Ltd,No
Http://opendatacommunities.org/id/metropolitan-district-council/leeds,Leeds City Council,31/01/2019,Resources and Housing,Commercial Services,Supplies and Services,Other Hired And Contracted Services,265,31/01/2019,1901-00541,0.00,525.00,R,REDACTED PERSONAL DATA,No
Http://opendatacommunities.org/id/metropolitan-district-council/leeds,Leeds City Council,31/01/2019,Resources and Housing,Commercial Services,Supplies and Services,Other Hired And Contracted Services,265,31/01/2019,1901-00542,0.00,675.00,R,REDACTED PERSONAL DATA,No
Http://opendatacommunities.org/id/metropolitan-district-council/leeds,Leeds City Council,31/01/2019,Adults and Health,Services For Older People Under 65 P/Dis,Third Party Payments,Home Care,568,22/01/2019,1901-00543,0.00,158.31,R,Aj Community Care Ltd,No
Http://opendatacommunities.org/id/metropolitan-district-council/leeds,Leeds City Council,31/01/2019,Adults and Health,Services For Older People Under 65 P/Dis,Third Party Payments,Home Care,568,30/01/2019,1901-00544,0.00,2647.30,R,Aj Community Care Ltd,No
Http://opendatacommunities.org/id/metropolitan-district-council/leeds,Leeds City Council,31/01/2019,Adults and Health,Services For Older People - 65 And Over,Third Party Payments,Home Care,568,30/01/2019,1901-00545,0.00,3605.95,R,Aj Community Care Ltd,No
Http://opendatacommunities.org/id/metropolitan-district-council/leeds,Leeds City Council,31/01/2019,Resources and Housing,Leeds Building Services,Supplies and Services,Operational Furniture And Equipment,203,07/01/2019,1901-00546,0.00,2243.70,R,Ajm Fixings & Power Tools Ltd,No
Http://opendatacommunities.org/id/metropolitan-district-council/leeds,Leeds City Council,31/01/2019,Resources and Housing,Leeds Building Services,Supplies and Services,Operational Furniture And Equipment,203,14/01/2019,1901-00547,0.00,69.36,R,Ajm Fixings & Power Tools Ltd,No
Http://opendatacommunities.org/id/metropolitan-district-council/leeds,Leeds City Council,31/01/2019,Resources and Housing,Leeds Building Services,Supplies and Services,Operational Materials,205,14/01/2019,1901-00548,0.00,75.00,R,Ajm Fixings & Power Tools Ltd,No
Http://opendatacommunities.org/id/metropolitan-district-council/leeds,Leeds City Council,31/01/2019,Resources and Housing,Leeds Building Services,Supplies and Services,Operational Furniture And Equipment,203,22/01/2019,1901-00549,0.00,2340.00,R,Ajm Fixings & Power Tools Ltd,No
Http://opendatacommunities.org/id/metropolitan-district-council/leeds,Leeds City Council,31/01/2019,Resources and Housing,Leeds Building Services,Supplies and Services,Operational Furniture And Equipment,203,23/01/2019,1901-00550,0.00,209.00,R,Ajm Fixings & Power Tools Ltd,No
Http://opendatacommunities.org/id/metropolitan-district-council/leeds,Leeds City Council,31/01/2019,Resources and Housing,Leeds Building Services,Supplies and Services,Operational Furniture And Equipment,203,23/01/2019,1901-00551,0.00,195.44,R,Ajm Fixings & Power Tools Ltd,No
Http://opendatacommunities.org/id/metropolitan-district-council/leeds,Leeds City Council,31/01/2019,Resources and Housing,Strategic Housing Partnerships,Capital,Construction,3,10/01/2019,1901-00552,0.00,6000.00,C,Akr Construction Ltd,No
Http://opendatacommunities.org/id/metropolitan-district-council/leeds,Leeds City Council,31/01/2019,Resources and Housing,Strategic Housing Partnerships,Capital,Construction,3,25/01/2019,1901-00553,0.00,6000.00,C,Akr Construction Ltd,No
Http://opendatacommunities.org/id/metropolitan-district-council/leeds,Leeds City Council,31/01/2019,Resources and Housing,Commercial Services,Premises,Maintenance Of Buildings,101,14/01/2019,1901-00554,0.00,171.50,R,Akua Uk Ltd,No
Http://opendatacommunities.org/id/metropolitan-district-council/leeds,Leeds City Council,31/01/2019,Resources and Housing,Commercial Services,Premises,Maintenance Of Buildings,101,14/01/2019,1901-00555,0.00,143.50,R,Akua Uk Ltd,No
Http://opendatacommunities.org/id/metropolitan-district-council/leeds,Leeds City Council,31/01/2019,Resources and Housing,Commercial Services,Premises,Maintenance Of Buildings,101,14/01/2019,1901-00556,0.00,1431.17,R,Akua Uk Ltd,No
Http://opendatacommunities.org/id/metropolitan-district-council/leeds,Leeds City Council,31/01/2019,Resources and Housing,Commercial Services,Premises,Maintenance Of Buildings,101,28/01/2019,1901-00557,0.00,101.50,R,Akua Uk Ltd,No
Http://opendatacommunities.org/id/metropolitan-district-council/leeds,Leeds City Council,31/01/2019,Resources and Housing,Commercial Services,Premises,Maintenance Of Buildings,101,28/01/2019,1901-00558,0.00,66.40,R,Akua Uk Ltd,No
Http://opendatacommunities.org/id/metropolitan-district-council/leeds,Leeds City Council,31/01/2019,Adults and Health,Services For Older People - 65 And Over,Third Party Payments,Residential Care Dementia,571,09/01/2019,1901-00559,0.00,1088.80,R,Albemarle,No
Http://opendatacommunities.org/id/metropolitan-district-council/leeds,Leeds City Council,31/01/2019,Strategic Land lord,Housing Management,Supplies and Services,Grants To Voluntary Organisations,293,23/01/2019,1901-00560,0.00,2855.00,R,Alcas Automation Ltd,No
Http://opendatacommunities.org/id/metropolitan-district-council/leeds,Leeds City Council,31/01/2019,City Development,Libraries  Arts & Heritage,Income,Sale Of Food & Drink,913,29/01/2019,1901-00561,0.00,-6.00,R,Alchemy Promotions Ltd (The Mjr Group),No
Http://opendatacommunities.org/id/metropolitan-district-council/leeds,Leeds City Council,31/01/2019,City Development,Libraries  Arts & Heritage,Income,Arts/Sports Facility Hire,920,29/01/2019,1901-00562,0.00,-3160.00,R,Alchemy Promotions Ltd (The Mjr Group),No
Http://opendatacommunities.org/id/metropolitan-district-council/leeds,Leeds City Council,31/01/2019,City Development,Libraries  Arts & Heritage,Income,Other cultural & rec fees & charges,924,29/01/2019,1901-00563,0.00,-1003.00,R,Alchemy Promotions Ltd (The Mjr Group),No
Http://opendatacommunities.org/id/metropolitan-district-council/leeds,Leeds City Council,31/01/2019,City Development,Libraries  Arts & Heritage,Income,Admissions  Booking Fees & Ticket Sales,933,29/01/2019,1901-00564,0.00,15186.00,R,Alchemy Promotions Ltd (The Mjr Group),No
Http://opendatacommunities.org/id/metropolitan-district-council/leeds,Leeds City Council,31/01/2019,City Development,Libraries  Arts & Heritage,Income,Advertising,969,29/01/2019,1901-00565,0.00,-800.00,R,Alchemy Promotions Ltd (The Mjr Group),No
Http://opendatacommunities.org/id/metropolitan-district-council/leeds,Leeds City Council,31/01/2019,City Development,Libraries  Arts & Heritage,Income,Other Income,973,29/01/2019,1901-00566,0.00,-901.76,R,Alchemy Promotions Ltd (The Mjr Group),No
Http://opendatacommunities.org/id/metropolitan-district-council/leeds,Leeds City Council,31/01/2019,Communities and Environment,Communities,Supplies and Services,Other Hired And Contracted Services,265,21/01/2019,1901-00567,0.00,1075.00,R,Alcium Software Ltd,No
Http://opendatacommunities.org/id/metropolitan-district-council/leeds,Leeds City Council,31/01/2019,Children and Families,Social Care,Support Services,Legal Disbursements,411,18/01/2019,1901-00568,0.00,50.00,R,Alder Hey Children'S Foundation Trust,No
Http://opendatacommunities.org/id/metropolitan-district-council/leeds,Leeds City Council,31/01/2019,Children and Families,Social Care  ,Premises,Cleaning Maintenance & Toiletries,127,02/12/2018,1901-00569,0.00,3.44,R,Aldi,Yes
Http://opendatacommunities.org/id/metropolitan-district-council/leeds,Leeds City Council,31/01/2019,Children and Families,Social Care  ,Supplies and Services,Food & Drink,231,02/12/2018,1901-00570,0.00,56.35,R,Aldi,Yes
Http://opendatacommunities.org/id/metropolitan-district-council/leeds,Leeds City Council,31/01/2019,Communities and Environment,Customer Access  ,Supplies and Services,Office Furniture & Equipment,201,12/12/2018,1901-00571,0.00,8.69,R,Aldi,Yes
Http://opendatacommunities.org/id/metropolitan-district-council/leeds,Leeds City Council,31/01/2019,Communities and Environment,Customer Access  ,Supplies and Services,Office Furniture & Equipment,201,12/12/2018,1901-00572,0.00,6.00,R,Aldi,Yes
Http://opendatacommunities.org/id/metropolitan-district-council/leeds,Leeds City Council,31/01/2019,Children and Families,Social Care  ,Supplies and Services,Food & Drink,231,12/12/2018,1901-00573,0.00,7.08,R,Aldi 40 779,Yes
Http://opendatacommunities.org/id/metropolitan-district-council/leeds,Leeds City Council,31/01/2019,Children and Families,Social Care  ,Premises,Cleaning Maintenance & Toiletries,127,13/12/2018,1901-00574,0.00,5.80,R,Aldi 40 779,Yes
Http://opendatacommunities.org/id/metropolitan-district-council/leeds,Leeds City Council,31/01/2019,Children and Families,Social Care  ,Supplies and Services,Food & Drink,231,13/12/2018,1901-00575,0.00,3.98,R,Aldi 40 779,Yes
Http://opendatacommunities.org/id/metropolitan-district-council/leeds,Leeds City Council,31/01/2019,Children and Families,Social Care  ,Supplies and Services,Food & Drink,231,13/12/2018,1901-00576,0.00,13.53,R,Aldi 40 779,Yes
Http://opendatacommunities.org/id/metropolitan-district-council/leeds,Leeds City Council,31/01/2019,Children and Families,Social Care  ,Supplies and Services,Food & Drink,231,13/12/2018,1901-00577,0.00,32.28,R,Aldi 40 779,Yes
Http://opendatacommunities.org/id/metropolitan-district-council/leeds,Leeds City Council,31/01/2019,Children and Families,Social Care  ,Supplies and Services,Food & Drink,231,13/12/2018,1901-00578,0.00,5.47,R,Aldi 40 779,Yes
Http://opendatacommunities.org/id/metropolitan-district-council/leeds,Leeds City Council,31/01/2019,Children and Families,Social Care  ,Supplies and Services,Food & Drink,231,17/12/2018,1901-00579,0.00,29.81,R,Aldi 40 779,Yes
Http://opendatacommunities.org/id/metropolitan-district-council/leeds,Leeds City Council,31/01/2019,Communities and Environment,Customer Access  ,Supplies and Services,Office Furniture & Equipment,201,18/12/2018,1901-00580,0.00,23.60,R,Aldi 40 779,Yes
Http://opendatacommunities.org/id/metropolitan-district-council/leeds,Leeds City Council,31/01/2019,Children and Families,Social Care  ,Supplies and Services,Food & Drink,231,29/12/2018,1901-00581,0.00,14.05,R,Aldi 40 779,Yes
Http://opendatacommunities.org/id/metropolitan-district-council/leeds,Leeds City Council,31/01/2019,Adults and Health,Services For Older People - 65 And Over  ,Supplies and Services,Food & Drink,231,11/12/2018,1901-00582,0.00,31.56,R,Aldi 49 779,Yes
Http://opendatacommunities.org/id/metropolitan-district-council/leeds,Leeds City Council,31/01/2019,Children and Families,Social Care  ,Transfer Payments,Leaving Care Allowances,634,24/12/2018,1901-00583,0.00,3.99,R,Aldi 85 779,Yes
Http://opendatacommunities.org/id/metropolitan-district-council/leeds,Leeds City Council,31/01/2019,Children and Families,Social Care  ,Supplies and Services,Food & Drink,231,01/12/2018,1901-00584,0.00,42.76,R,Aldi 88 779,Yes
Http://opendatacommunities.org/id/metropolitan-district-council/leeds,Leeds City Council,31/01/2019,Children and Families,Social Care  ,Premises,Cleaning Maintenance & Toiletries,127,10/12/2018,1901-00585,0.00,7.63,R,Aldi 88 779,Yes
Http://opendatacommunities.org/id/metropolitan-district-council/leeds,Leeds City Council,31/01/2019,Children and Families,Social Care  ,Supplies and Services,Food & Drink,231,10/12/2018,1901-00586,0.00,81.79,R,Aldi 88 779,Yes
Http://opendatacommunities.org/id/metropolitan-district-council/leeds,Leeds City Council,31/01/2019,Strategic Land lord,Housing Management  ,Supplies and Services,Food & Drink,231,12/12/2018,1901-00587,0.00,1.89,R,Aldi 88 779,Yes
Http://opendatacommunities.org/id/metropolitan-district-council/leeds,Leeds City Council,31/01/2019,Strategic Land lord,Housing Management  ,Supplies and Services,Food & Drink,231,14/12/2018,1901-00588,0.00,43.92,R,Aldi 88 779,Yes
Http://opendatacommunities.org/id/metropolitan-district-council/leeds,Leeds City Council,31/01/2019,Strategic Land lord,Housing Management  ,Supplies and Services,Food & Drink,231,17/12/2018,1901-00589,0.00,32.91,R,Aldi 88 779,Yes
Http://opendatacommunities.org/id/metropolitan-district-council/leeds,Leeds City Council,31/01/2019,Strategic Land lord,Housing Management  ,Supplies and Services,Food & Drink,231,19/12/2018,1901-00590,0.00,16.64,R,Aldi 88 779,Yes
Http://opendatacommunities.org/id/metropolitan-district-council/leeds,Leeds City Council,31/01/2019,Strategic Land lord,Housing Management  ,Supplies and Services,Food & Drink,231,24/12/2018,1901-00591,0.00,4.42,R,Aldi 88 779,Yes
Http://opendatacommunities.org/id/metropolitan-district-council/leeds,Leeds City Council,31/01/2019,Children and Families,Social Care  ,Transfer Payments,Leaving Care Allowances,634,17/12/2018,1901-00592,0.00,80.03,R,Aldi 89 779,Yes
Http://opendatacommunities.org/id/metropolitan-district-council/leeds,Leeds City Council,31/01/2019,Adults and Health,Other Generic Services  ,Supplies and Services,Operational Furniture And Equipment,203,19/12/2018,1901-00593,0.00,33.13,R,Aldi Stores,Yes
Http://opendatacommunities.org/id/metropolitan-district-council/leeds,Leeds City Council,31/01/2019,Children and Families,Social Care,Support Services,Legal Disbursements,411,18/01/2019,1901-00594,0.00,77.75,R,Alere Toxicology Plc,No
Http://opendatacommunities.org/id/metropolitan-district-council/leeds,Leeds City Council,31/01/2019,Children and Families,Social Care,Support Services,Legal Disbursements,411,25/01/2019,1901-00595,0.00,361.00,R,Alex Taylor,No
Http://opendatacommunities.org/id/metropolitan-district-council/leeds,Leeds City Council,31/01/2019,Resources and Housing,Commercial Services,Supplies and Services,Other Hired And Contracted Services,265,03/01/2019,1901-00596,0.00,80.00,R,Alex Wagg,No
Http://opendatacommunities.org/id/metropolitan-district-council/leeds,Leeds City Council,31/01/2019,Resources and Housing,Commercial Services,Transport,Vehicle Spares,345,03/01/2019,1901-00597,0.00,405.00,R,Alex Wagg,No
Http://opendatacommunities.org/id/metropolitan-district-council/leeds,Leeds City Council,31/01/2019,Resources and Housing,Commercial Services,Supplies and Services,Other Hired And Contracted Services,265,11/01/2019,1901-00598,0.00,120.00,R,Alex Wagg,No
Http://opendatacommunities.org/id/metropolitan-district-council/leeds,Leeds City Council,31/01/2019,Resources and Housing,Commercial Services,Supplies and Services,Other Hired And Contracted Services,265,18/01/2019,1901-00599,0.00,80.00,R,Alex Wagg,No
Http://opendatacommunities.org/id/metropolitan-district-council/leeds,Leeds City Council,31/01/2019,Adults and Health,Services For Older People - 65 And Over,Third Party Payments,Residential Care Dementia,571,09/01/2019,1901-00600,0.00,27057.76,R,Alexander Residential Home,No
Http://opendatacommunities.org/id/metropolitan-district-council/leeds,Leeds City Council,31/01/2019,Adults and Health,Services For Older People - 65 And Over,Third Party Payments,Residential,580,09/01/2019,1901-00601,0.00,16447.20,R,Alexander Residential Home,No
Http://opendatacommunities.org/id/metropolitan-district-council/leeds,Leeds City Council,31/01/2019,Adults and Health,Services For Older People - 65 And Over,Third Party Payments,Residential,580,09/01/2019,1901-00602,0.00,22968.13,R,Alexandra Court,No
Http://opendatacommunities.org/id/metropolitan-district-council/leeds,Leeds City Council,31/01/2019,Children and Families,Social Care,Third Party Payments,Services Rendered By Voluntary Sector,505,16/01/2019,1901-00603,0.00,1736.84,R,REDACTED PERSONAL DATA,No
Http://opendatacommunities.org/id/metropolitan-district-council/leeds,Leeds City Council,31/01/2019,Resources and Housing,Strategic Housing Partnership & Support,Supplies and Services,Other Hired And Contracted Services,265,21/01/2019,1901-00604,0.00,825.00,R,REDACTED PERSONAL DATA,No
Http://opendatacommunities.org/id/metropolitan-district-council/leeds,Leeds City Council,31/01/2019,Resources and Housing,Strategic Housing Partnership & Support,Supplies and Services,Other Hired And Contracted Services,265,21/01/2019,1901-00605,0.00,300.00,R,REDACTED PERSONAL DATA,No
Http://opendatacommunities.org/id/metropolitan-district-council/leeds,Leeds City Council,31/01/2019,Resources and Housing,Leeds Building Services,Supplies and Services,Other Hired And Contracted Services,265,02/01/2019,1901-00606,0.00,7627.59,R,Alfred Bagnall & Sons (Leeds) Ltd,No
Http://opendatacommunities.org/id/metropolitan-district-council/leeds,Leeds City Council,31/01/2019,Resources and Housing,Leeds Building Services,Supplies and Services,Other Hired And Contracted Services,265,08/01/2019,1901-00607,0.00,26360.00,R,Alfred Bagnall & Sons (Leeds) Ltd,No
Http://opendatacommunities.org/id/metropolitan-district-council/leeds,Leeds City Council,31/01/2019,Resources and Housing,Leeds Building Services,Supplies and Services,Other Hired And Contracted Services,265,14/01/2019,1901-00608,0.00,7423.18,R,Alfred Bagnall & Sons (Leeds) Ltd,No
Http://opendatacommunities.org/id/metropolitan-district-council/leeds,Leeds City Council,31/01/2019,Resources and Housing,Leeds Building Services,Supplies and Services,Other Hired And Contracted Services,265,14/01/2019,1901-00609,0.00,34285.17,R,Alfred Bagnall & Sons (Leeds) Ltd,No
Http://opendatacommunities.org/id/metropolitan-district-council/leeds,Leeds City Council,31/01/2019,Resources and Housing,Leeds Building Services,Supplies and Services,Other Hired And Contracted Services,265,14/01/2019,1901-00610,0.00,22500.00,R,Alfred Bagnall & Sons (Leeds) Ltd,No
Http://opendatacommunities.org/id/metropolitan-district-council/leeds,Leeds City Council,31/01/2019,Resources and Housing,Leeds Building Services,Supplies and Services,Other Hired And Contracted Services,265,22/01/2019,1901-00611,0.00,250.00,R,Alfred Bagnall & Sons (Leeds) Ltd,No
Http://opendatacommunities.org/id/metropolitan-district-council/leeds,Leeds City Council,31/01/2019,Resources and Housing,Leeds Building Services,Supplies and Services,Other Hired And Contracted Services,265,28/01/2019,1901-00612,0.00,750.00,R,Alfred Bagnall & Sons (Leeds) Ltd,No
Http://opendatacommunities.org/id/metropolitan-district-council/leeds,Leeds City Council,31/01/2019,Resources and Housing,Leeds Building Services,Supplies and Services,Other Hired And Contracted Services,265,29/01/2019,1901-00613,0.00,18700.00,R,Alfred Bagnall & Sons (Leeds) Ltd,No
Http://opendatacommunities.org/id/metropolitan-district-council/leeds,Leeds City Council,31/01/2019,Children and Families,Partnerships & Health,Employees,Training & Development,70,16/01/2019,1901-00614,0.00,1416.64,R,REDACTED PERSONAL DATA,No
Http://opendatacommunities.org/id/metropolitan-district-council/leeds,Leeds City Council,31/01/2019,Children and Families,Social Care,Third Party Payments,Services Rendered By Other Organisations,511,18/01/2019,1901-00615,0.00,233.75,R,REDACTED PERSONAL DATA,No
Http://opendatacommunities.org/id/metropolitan-district-council/leeds,Leeds City Council,31/01/2019,City Development,Libraries  Arts & Heritage,Supplies and Services,Other Hired And Contracted Services,265,04/01/2019,1901-00616,0.00,525.00,R,Alison Glew,No
Http://opendatacommunities.org/id/metropolitan-district-council/leeds,Leeds City Council,31/01/2019,Children and Families,Social Care,Transfer Payments,Leaving Care Allowances,634,09/01/2019,1901-00617,0.00,90.00,R,All Abode,No
Http://opendatacommunities.org/id/metropolitan-district-council/leeds,Leeds City Council,31/01/2019,Children and Families,Social Care,Transfer Payments,Leaving Care Allowances,634,18/01/2019,1901-00618,0.00,60.00,R,All Abode,No
Http://opendatacommunities.org/id/metropolitan-district-council/leeds,Leeds City Council,31/01/2019,Resources and Housing,Leeds Building Services,Supplies and Services,Other Hired And Contracted Services,265,16/01/2019,1901-00619,0.00,360.00,R,All Clear Solutions Ltd,No
Http://opendatacommunities.org/id/metropolitan-district-council/leeds,Leeds City Council,31/01/2019,Resources and Housing,Leeds Building Services,Supplies and Services,Other Hired And Contracted Services,265,18/01/2019,1901-00620,0.00,195.00,R,All Clear Solutions Ltd,No
Http://opendatacommunities.org/id/metropolitan-district-council/leeds,Leeds City Council,31/01/2019,Resources and Housing,Leeds Building Services,Supplies and Services,Other Hired And Contracted Services,265,18/01/2019,1901-00621,0.00,195.00,R,All Clear Solutions Ltd,No
Http://opendatacommunities.org/id/metropolitan-district-council/leeds,Leeds City Council,31/01/2019,Resources and Housing,Leeds Building Services,Supplies and Services,Other Hired And Contracted Services,265,18/01/2019,1901-00622,0.00,195.00,R,All Clear Solutions Ltd,No
Http://opendatacommunities.org/id/metropolitan-district-council/leeds,Leeds City Council,31/01/2019,Resources and Housing,Leeds Building Services,Supplies and Services,Other Hired And Contracted Services,265,18/01/2019,1901-00623,0.00,195.00,R,All Clear Solutions Ltd,No
Http://opendatacommunities.org/id/metropolitan-district-council/leeds,Leeds City Council,31/01/2019,Resources and Housing,Leeds Building Services,Supplies and Services,Other Hired And Contracted Services,265,18/01/2019,1901-00624,0.00,195.00,R,All Clear Solutions Ltd,No
Http://opendatacommunities.org/id/metropolitan-district-council/leeds,Leeds City Council As Accountable Body,31/01/2019,Social Services Pooled Budgets,Jcs For People With Learning Disabilitie,Third Party Payments,Sheltered Accommodation,569,09/01/2019,1901-00625,0.00,13578.36,R,Allerton Avenue,No
Http://opendatacommunities.org/id/metropolitan-district-council/leeds,Leeds City Council,31/01/2019,Strategic Accounts,Miscellaneous,Supplies and Services,Non-Recurring Grants,227,21/01/2019,1901-00626,0.00,300.00,R,Allerton Bywater In Bloom,No
Http://opendatacommunities.org/id/metropolitan-district-council/leeds,Leeds City Council,31/01/2019,Adults and Health,Services For Older People - 65 And Over,Third Party Payments,Nursing Care Dementia,574,09/01/2019,1901-00627,0.00,2094.28,R,Allerton Park N H,No
Http://opendatacommunities.org/id/metropolitan-district-council/leeds,Leeds City Council,31/01/2019,Resources and Housing,Finance,Supplies and Services,Bank Charges,263,02/01/2019,1901-00628,0.00,-61.27,R,Alliance & Leicester Commercial Bank,No
Http://opendatacommunities.org/id/metropolitan-district-council/leeds,Leeds City Council,31/01/2019,Resources and Housing,Finance,Supplies and Services,Bank Charges,263,04/01/2019,1901-00629,0.00,100.00,R,Alliance & Leicester Commercial Bank,No
Http://opendatacommunities.org/id/metropolitan-district-council/leeds,Leeds City Council,31/01/2019,Resources and Housing,Finance,Supplies and Services,Bank Charges,263,04/01/2019,1901-00630,0.00,580.92,R,Alliance & Leicester Commercial Bank,No
Http://opendatacommunities.org/id/metropolitan-district-council/leeds,Leeds City Council,31/01/2019,City Development,Recreation,Supplies and Services,Printing,215,10/01/2019,1901-00631,0.00,101.40,R,Alliance Leisure Service Ltd,No
Http://opendatacommunities.org/id/metropolitan-district-council/leeds,Leeds City Council,31/01/2019,City Development,Recreation,Employees,Training & Development,70,14/01/2019,1901-00632,0.00,937.50,R,Alliance Leisure Service Ltd,No
Http://opendatacommunities.org/id/metropolitan-district-council/leeds,Leeds City Council,31/01/2019,City Development,Highways,Supplies and Services,Other Hired And Contracted Services,265,07/01/2019,1901-00633,0.00,4210.80,R,Allied Exploration & Geotechnics Ltd,No
Http://opendatacommunities.org/id/metropolitan-district-council/leeds,Leeds City Council,31/01/2019,City Development,Highways,Supplies and Services,Other Hired And Contracted Services,265,16/01/2019,1901-00634,0.00,5238.25,R,Allied Exploration & Geotechnics Ltd,No
Http://opendatacommunities.org/id/metropolitan-district-council/leeds,Leeds City Council,31/01/2019,City Development,Highways,Supplies and Services,Other Hired And Contracted Services,265,21/01/2019,1901-00635,0.00,3889.40,R,Allied Exploration & Geotechnics Ltd,No
Http://opendatacommunities.org/id/metropolitan-district-council/leeds,Leeds City Council,31/01/2019,City Development,Highways,Supplies and Services,Other Hired And Contracted Services,265,25/01/2019,1901-00636,0.00,852.25,R,Allied Exploration & Geotechnics Ltd,No
Http://opendatacommunities.org/id/metropolitan-district-council/leeds,Leeds City Council As Accountable Body,31/01/2019,Social Services Pooled Budgets,Jcs For People With Learning Disabilitie,Third Party Payments,Home Care,568,09/01/2019,1901-00637,0.00,15041.59,R,Allied Healthcare,No
Http://opendatacommunities.org/id/metropolitan-district-council/leeds,Leeds City Council As Accountable Body,31/01/2019,Social Services Pooled Budgets,Jcs For People With Learning Disabilitie,Third Party Payments,Home Care,568,09/01/2019,1901-00638,0.00,23.12,R,Allied Healthcare,No
Http://opendatacommunities.org/id/metropolitan-district-council/leeds,Leeds City Council As Accountable Body,31/01/2019,Social Services Pooled Budgets,Jcs For People With Learning Disabilitie,Third Party Payments,Home Care,568,09/01/2019,1901-00639,0.00,155.68,R,Allied Healthcare,No
Http://opendatacommunities.org/id/metropolitan-district-council/leeds,Leeds City Council,31/01/2019,Children and Families,Social Care,Third Party Payments,Services Rendered By Voluntary Sector,505,10/01/2019,1901-00640,0.00,171.00,R,Allied Healthcare,No
Http://opendatacommunities.org/id/metropolitan-district-council/leeds,Leeds City Council,31/01/2019,Children and Families,Social Care,Third Party Payments,Services Rendered By Voluntary Sector,505,10/01/2019,1901-00641,0.00,684.00,R,Allied Healthcare,No
Http://opendatacommunities.org/id/metropolitan-district-council/leeds,Leeds City Council As Accountable Body,31/01/2019,Social Services Pooled Budgets,Jcs For People With Learning Disabilitie,Third Party Payments,Home Care,568,10/01/2019,1901-00642,0.00,2584.28,R,Allied Healthcare,No
Http://opendatacommunities.org/id/metropolitan-district-council/leeds,Leeds City Council As Accountable Body,31/01/2019,Social Services Pooled Budgets,Jcs For People With Learning Disabilitie,Third Party Payments,Home Care,568,10/01/2019,1901-00643,0.00,111.20,R,Allied Healthcare,No
Http://opendatacommunities.org/id/metropolitan-district-council/leeds,Leeds City Council As Accountable Body,31/01/2019,Social Services Pooled Budgets,Jcs For People With Learning Disabilitie,Third Party Payments,Home Care,568,10/01/2019,1901-00644,0.00,471.36,R,Allied Healthcare,No
Http://opendatacommunities.org/id/metropolitan-district-council/leeds,Leeds City Council As Accountable Body,31/01/2019,Social Services Pooled Budgets,Jcs For People With Learning Disabilitie,Third Party Payments,Home Care,568,11/01/2019,1901-00645,0.00,13725.83,R,Allied Healthcare,No
Http://opendatacommunities.org/id/metropolitan-district-council/leeds,Leeds City Council As Accountable Body,31/01/2019,Social Services Pooled Budgets,Jcs For People With Learning Disabilitie,Third Party Payments,Home Care,568,14/01/2019,1901-00646,0.00,11202.60,R,Allied Healthcare,No
Http://opendatacommunities.org/id/metropolitan-district-council/leeds,Leeds City Council As Accountable Body,31/01/2019,Social Services Pooled Budgets,Jcs For People With Learning Disabilitie,Third Party Payments,Home Care,568,14/01/2019,1901-00647,0.00,22.60,R,Allied Healthcare,No
Http://opendatacommunities.org/id/metropolitan-district-council/leeds,Leeds City Council As Accountable Body,31/01/2019,Social Services Pooled Budgets,Jcs For People With Learning Disabilitie,Third Party Payments,Home Care,568,14/01/2019,1901-00648,0.00,517.64,R,Allied Healthcare,No
Http://opendatacommunities.org/id/metropolitan-district-council/leeds,Leeds City Council As Accountable Body,31/01/2019,Social Services Pooled Budgets,Jcs For People With Learning Disabilitie,Third Party Payments,Home Care,568,14/01/2019,1901-00649,0.00,57.40,R,Allied Healthcare,No
Http://opendatacommunities.org/id/metropolitan-district-council/leeds,Leeds City Council As Accountable Body,31/01/2019,Social Services Pooled Budgets,Jcs For People With Learning Disabilitie,Third Party Payments,Home Care,568,14/01/2019,1901-00650,0.00,662.92,R,Allied Healthcare,No
Http://opendatacommunities.org/id/metropolitan-district-council/leeds,Leeds City Council As Accountable Body,31/01/2019,Social Services Pooled Budgets,Jcs For People With Learning Disabilitie,Third Party Payments,Home Care,568,14/01/2019,1901-00651,0.00,16471.24,R,Allied Healthcare,No
Http://opendatacommunities.org/id/metropolitan-district-council/leeds,Leeds City Council As Accountable Body,31/01/2019,Social Services Pooled Budgets,Jcs For People With Learning Disabilitie,Third Party Payments,Home Care,568,17/01/2019,1901-00652,0.00,8330.00,R,Allied Healthcare,No
Http://opendatacommunities.org/id/metropolitan-district-council/leeds,Leeds City Council As Accountable Body,31/01/2019,Social Services Pooled Budgets,Jcs For People With Learning Disabilitie,Third Party Payments,Home Care,568,17/01/2019,1901-00653,0.00,-1120.00,R,Allied Healthcare,No
Http://opendatacommunities.org/id/metropolitan-district-council/leeds,Leeds City Council,31/01/2019,Adults and Health,Services For Older People Under 65 P/Dis,Third Party Payments,Home Care,568,18/01/2019,1901-00654,0.00,1934.32,R,Allied Healthcare,No
Http://opendatacommunities.org/id/metropolitan-district-council/leeds,Leeds City Council,31/01/2019,Adults and Health,Services For Older People - 65 And Over,Third Party Payments,Home Care,568,18/01/2019,1901-00655,0.00,3974.64,R,Allied Healthcare,No
Http://opendatacommunities.org/id/metropolitan-district-council/leeds,Leeds City Council,31/01/2019,Adults and Health,Services For Older People Under 65 P/Dis,Third Party Payments,Home Care,568,18/01/2019,1901-00656,0.00,387.82,R,Allied Healthcare,No
Http://opendatacommunities.org/id/metropolitan-district-council/leeds,Leeds City Council,31/01/2019,Adults and Health,Services For Older People - 65 And Over,Third Party Payments,Home Care,568,18/01/2019,1901-00657,0.00,2620.06,R,Allied Healthcare,No
Http://opendatacommunities.org/id/metropolitan-district-council/leeds,Leeds City Council,31/01/2019,Adults and Health,Services For Older People - 65 And Over,Third Party Payments,Home Care,568,18/01/2019,1901-00658,0.00,565.15,R,Allied Healthcare,No
Http://opendatacommunities.org/id/metropolitan-district-council/leeds,Leeds City Council,31/01/2019,Adults and Health,Services For Older People - 65 And Over,Third Party Payments,Home Care,568,18/01/2019,1901-00659,0.00,75.64,R,Allied Healthcare,No
Http://opendatacommunities.org/id/metropolitan-district-council/leeds,Leeds City Council,31/01/2019,Adults and Health,Services For Older People Under 65 P/Dis,Third Party Payments,Home Care,568,18/01/2019,1901-00660,0.00,4739.12,R,Allied Healthcare,No
Http://opendatacommunities.org/id/metropolitan-district-council/leeds,Leeds City Council,31/01/2019,Adults and Health,Services For Older People - 65 And Over,Third Party Payments,Home Care,568,18/01/2019,1901-00661,0.00,7978.13,R,Allied Healthcare,No
Http://opendatacommunities.org/id/metropolitan-district-council/leeds,Leeds City Council,31/01/2019,Adults and Health,Services For Older People Under 65 P/Dis,Third Party Payments,Home Care,568,18/01/2019,1901-00662,0.00,586.38,R,Allied Healthcare,No
Http://opendatacommunities.org/id/metropolitan-district-council/leeds,Leeds City Council,31/01/2019,Adults and Health,Services For Older People - 65 And Over,Third Party Payments,Home Care,568,18/01/2019,1901-00663,0.00,9883.81,R,Allied Healthcare,No
Http://opendatacommunities.org/id/metropolitan-district-council/leeds,Leeds City Council,31/01/2019,Adults and Health,Services For Older People - 65 And Over,Third Party Payments,Home Care,568,18/01/2019,1901-00664,0.00,1265.36,R,Allied Healthcare,No
Http://opendatacommunities.org/id/metropolitan-district-council/leeds,Leeds City Council,31/01/2019,Adults and Health,Other Generic Services,Third Party Payments,Home Care,568,18/01/2019,1901-00665,0.00,-27.30,R,Allied Healthcare,No
Http://opendatacommunities.org/id/metropolitan-district-council/leeds,Leeds City Council,31/01/2019,Adults and Health,Other Generic Services,Third Party Payments,Home Care,568,18/01/2019,1901-00666,0.00,6303.81,R,Allied Healthcare,No
Http://opendatacommunities.org/id/metropolitan-district-council/leeds,Leeds City Council,31/01/2019,Adults and Health,Other Generic Services,Third Party Payments,Home Care,568,18/01/2019,1901-00667,0.00,218.40,R,Allied Healthcare,No
Http://opendatacommunities.org/id/metropolitan-district-council/leeds,Leeds City Council,31/01/2019,Adults and Health,Other Generic Services,Third Party Payments,Home Care,568,18/01/2019,1901-00668,0.00,5941.37,R,Allied Healthcare,No
Http://opendatacommunities.org/id/metropolitan-district-council/leeds,Leeds City Council,31/01/2019,Adults and Health,Other Generic Services,Third Party Payments,Home Care,568,18/01/2019,1901-00669,0.00,13574.96,R,Allied Healthcare,No
Http://opendatacommunities.org/id/metropolitan-district-council/leeds,Leeds City Council,31/01/2019,Children and Families,Social Care,Third Party Payments,Services Rendered By Voluntary Sector,505,21/01/2019,1901-00670,0.00,342.00,R,Allied Healthcare,No
Http://opendatacommunities.org/id/metropolitan-district-council/leeds,Leeds City Council As Accountable Body,31/01/2019,Social Services Pooled Budgets,Jcs For People With Learning Disabilitie,Third Party Payments,Home Care,568,21/01/2019,1901-00671,0.00,13440.00,R,Allied Healthcare,No
Http://opendatacommunities.org/id/metropolitan-district-council/leeds,Leeds City Council,31/01/2019,Adults and Health,Services For Older People Under 65 P/Dis,Third Party Payments,Home Care,568,23/01/2019,1901-00672,0.00,206.90,R,Allied Healthcare,No
Http://opendatacommunities.org/id/metropolitan-district-council/leeds,Leeds City Council,31/01/2019,Adults and Health,Services For Older People - 65 And Over,Third Party Payments,Home Care,568,23/01/2019,1901-00673,0.00,4564.42,R,Allied Healthcare,No
Http://opendatacommunities.org/id/metropolitan-district-council/leeds,Leeds City Council,31/01/2019,Adults and Health,Other Generic Services,Third Party Payments,Home Care,568,23/01/2019,1901-00674,0.00,12837.87,R,Allied Healthcare,No
Http://opendatacommunities.org/id/metropolitan-district-council/leeds,Leeds City Council As Accountable Body,31/01/2019,Social Services Pooled Budgets,Jcs For People With Learning Disabilitie,Third Party Payments,Home Care,568,25/01/2019,1901-00675,0.00,55.60,R,Allied Healthcare,No
Http://opendatacommunities.org/id/metropolitan-district-council/leeds,Leeds City Council As Accountable Body,31/01/2019,Social Services Pooled Budgets,Jcs For People With Learning Disabilitie,Third Party Payments,Home Care,568,25/01/2019,1901-00676,0.00,237.84,R,Allied Healthcare,No
Http://opendatacommunities.org/id/metropolitan-district-council/leeds,Leeds City Council,31/01/2019,Adults and Health,Services For Older People Under 65 P/Dis,Third Party Payments,Home Care,568,31/01/2019,1901-00677,0.00,975.37,R,Allied Healthcare,No
Http://opendatacommunities.org/id/metropolitan-district-council/leeds,Leeds City Council,31/01/2019,Adults and Health,Services For Older People - 65 And Over,Third Party Payments,Home Care,568,31/01/2019,1901-00678,0.00,5553.97,R,Allied Healthcare,No
Http://opendatacommunities.org/id/metropolitan-district-council/leeds,Leeds City Council,31/01/2019,Adults and Health,Services For Older People - 65 And Over,Third Party Payments,Home Care,568,31/01/2019,1901-00679,0.00,161.65,R,Allied Healthcare,No
Http://opendatacommunities.org/id/metropolitan-district-council/leeds,Leeds City Council As Accountable Body,31/01/2019,Social Services Pooled Budgets,Jcs For People With Learning Disabilitie,Third Party Payments,Home Care,568,31/01/2019,1901-00680,0.00,3607.12,R,Allied Healthcare,No
Http://opendatacommunities.org/id/metropolitan-district-council/leeds,Leeds City Council As Accountable Body,31/01/2019,Social Services Pooled Budgets,Jcs For People With Learning Disabilitie,Third Party Payments,Home Care,568,31/01/2019,1901-00681,0.00,662.92,R,Allied Healthcare,No
Http://opendatacommunities.org/id/metropolitan-district-council/leeds,Leeds City Council,31/01/2019,Children and Families,Social Care,Third Party Payments,Services Rendered By Other Organisations,511,18/01/2019,1901-00682,0.00,456.87,R,REDACTED PERSONAL DATA,No
Http://opendatacommunities.org/id/metropolitan-district-council/leeds,Leeds City Council,31/01/2019,Children and Families,Social Care  ,Transfer Payments,Leaving Care Allowances,634,07/12/2018,1901-00683,0.00,30.00,R,Allpay *toto Energy,Yes
Http://opendatacommunities.org/id/metropolitan-district-council/leeds,Leeds City Council,31/01/2019,Children and Families,Learning,Transport,Fuel (Non LCC Supplies),321,07/01/2019,1901-00684,0.00,1343.37,R,Allstar Business Solutions Ltd,No
Http://opendatacommunities.org/id/metropolitan-district-council/leeds,Leeds City Council,31/01/2019,City Development,Highways,Transport,Fuel (Non LCC Supplies),321,07/01/2019,1901-00685,0.00,210.96,R,Allstar Business Solutions Ltd,No
Http://opendatacommunities.org/id/metropolitan-district-council/leeds,Leeds City Council,31/01/2019,Communities and Environment,Parks and Countryside,Transport,Fuel (Non LCC Supplies),321,07/01/2019,1901-00686,0.00,842.26,R,Allstar Business Solutions Ltd,No
Http://opendatacommunities.org/id/metropolitan-district-council/leeds,Leeds City Council,31/01/2019,Resources and Housing,Democratic Services,Transport,Fuel (Non LCC Supplies),321,07/01/2019,1901-00687,0.00,19.18,R,Allstar Business Solutions Ltd,No
Http://opendatacommunities.org/id/metropolitan-district-council/leeds,Leeds City Council,31/01/2019,Resources and Housing,Leeds Building Services,Transport,Fuel (Non LCC Supplies),321,14/01/2019,1901-00688,0.00,73.34,R,Allstar Business Solutions Ltd,No
Http://opendatacommunities.org/id/metropolitan-district-council/leeds,Leeds City Council,31/01/2019,Resources and Housing,Leeds Building Services,Transport,Fuel (Non LCC Supplies),321,28/01/2019,1901-00689,0.00,19.80,R,Allstar Business Solutions Ltd,No
Http://opendatacommunities.org/id/metropolitan-district-council/leeds,Leeds City Council,31/01/2019,Children and Families,Social Care,Support Services,Legal Disbursements,411,03/01/2019,1901-00690,0.00,98.75,R,Alphabiolabs,No
Http://opendatacommunities.org/id/metropolitan-district-council/leeds,Leeds City Council,31/01/2019,Children and Families,Social Care,Support Services,Legal Disbursements,411,03/01/2019,1901-00691,0.00,106.25,R,Alphabiolabs,No
Http://opendatacommunities.org/id/metropolitan-district-council/leeds,Leeds City Council,31/01/2019,Children and Families,Social Care,Support Services,Legal Disbursements,411,10/01/2019,1901-00692,0.00,425.00,R,Alphabiolabs,No
Http://opendatacommunities.org/id/metropolitan-district-council/leeds,Leeds City Council,31/01/2019,Children and Families,Social Care,Support Services,Legal Disbursements,411,10/01/2019,1901-00693,0.00,88.75,R,Alphabiolabs,No
Http://opendatacommunities.org/id/metropolitan-district-council/leeds,Leeds City Council,31/01/2019,Children and Families,Social Care,Support Services,Legal Disbursements,411,11/01/2019,1901-00694,0.00,88.75,R,Alphabiolabs,No
Http://opendatacommunities.org/id/metropolitan-district-council/leeds,Leeds City Council,31/01/2019,Children and Families,Social Care,Support Services,Legal Disbursements,411,11/01/2019,1901-00695,0.00,391.33,R,Alphabiolabs,No
Http://opendatacommunities.org/id/metropolitan-district-council/leeds,Leeds City Council,31/01/2019,Children and Families,Social Care,Support Services,Legal Disbursements,411,18/01/2019,1901-00696,0.00,129.75,R,Alphabiolabs,No
Http://opendatacommunities.org/id/metropolitan-district-council/leeds,Leeds City Council,31/01/2019,Children and Families,Social Care,Support Services,Legal Disbursements,411,18/01/2019,1901-00697,0.00,689.00,R,Alphabiolabs,No
Http://opendatacommunities.org/id/metropolitan-district-council/leeds,Leeds City Council,31/01/2019,Children and Families,Social Care,Support Services,Legal Disbursements,411,18/01/2019,1901-00698,0.00,202.00,R,Alphabiolabs,No
Http://opendatacommunities.org/id/metropolitan-district-council/leeds,Leeds City Council,31/01/2019,Children and Families,Social Care,Support Services,Legal Disbursements,411,22/01/2019,1901-00699,0.00,167.25,R,Alphabiolabs,No
Http://opendatacommunities.org/id/metropolitan-district-council/leeds,Leeds City Council,31/01/2019,Children and Families,Social Care,Support Services,Legal Disbursements,411,25/01/2019,1901-00700,0.00,47.50,R,Alphabiolabs,No
Http://opendatacommunities.org/id/metropolitan-district-council/leeds,Leeds City Council,31/01/2019,Communities and Environment,Environmental Health,Supplies and Services,Other Hired And Contracted Services,265,22/01/2019,1901-00701,0.00,84.23,R,Als Environmental Limited,No
Http://opendatacommunities.org/id/metropolitan-district-council/leeds,Leeds City Council,31/01/2019,Communities and Environment,Environmental Health,Supplies and Services,Other Hired And Contracted Services,265,22/01/2019,1901-00702,0.00,84.23,R,Als Environmental Limited,No
Http://opendatacommunities.org/id/metropolitan-district-council/leeds,Leeds City Council,31/01/2019,Communities and Environment,Environmental Health,Supplies and Services,Other Hired And Contracted Services,265,22/01/2019,1901-00703,0.00,75.00,R,Als Environmental Limited,No
Http://opendatacommunities.org/id/metropolitan-district-council/leeds,Leeds City Council,31/01/2019,Communities and Environment,Environmental Health,Supplies and Services,Other Hired And Contracted Services,265,22/01/2019,1901-00704,0.00,75.00,R,Als Environmental Limited,No
Http://opendatacommunities.org/id/metropolitan-district-council/leeds,Leeds City Council,31/01/2019,Communities and Environment,Parks and Countryside,Supplies and Services,Operational Materials,205,04/01/2019,1901-00705,0.00,2709.22,R,Alwyn Pickles And Co Ltd,No
Http://opendatacommunities.org/id/metropolitan-district-council/leeds,Leeds City Council,31/01/2019,Communities and Environment,Communities,Supplies and Services,Other Hired And Contracted Services,265,29/01/2019,1901-00706,0.00,25.00,R,Amal Akasha,No
Http://opendatacommunities.org/id/metropolitan-district-council/leeds,Leeds City Council,31/01/2019,Children and Families,Social Care,Third Party Payments,Services Rendered By Other Organisations,511,18/01/2019,1901-00707,0.00,623.33,R,REDACTED PERSONAL DATA,No
Http://opendatacommunities.org/id/metropolitan-district-council/leeds,Leeds City Council,31/01/2019,Children and Families,Social Care,Third Party Payments,Services Rendered By Other Organisations,511,18/01/2019,1901-00708,0.00,141.67,R,REDACTED PERSONAL DATA,No
Http://opendatacommunities.org/id/metropolitan-district-council/leeds,Leeds City Council,31/01/2019,Children and Families,Social Care,Third Party Payments,Services Rendered By Other Organisations,511,18/01/2019,1901-00709,0.00,240.83,R,REDACTED PERSONAL DATA,No
Http://opendatacommunities.org/id/metropolitan-district-council/leeds,Leeds City Council,31/01/2019,Children and Families,Social Care,Third Party Payments,Services Rendered By Other Organisations,511,16/01/2019,1901-00710,0.00,561.00,R,REDACTED PERSONAL DATA,No
Http://opendatacommunities.org/id/metropolitan-district-council/leeds,Leeds City Council,31/01/2019,Resources and Housing,Shared Services,Supplies and Services,Operational Materials,205,04/01/2019,1901-00711,0.00,34.28,R,Amari Plastics Plc,No
Http://opendatacommunities.org/id/metropolitan-district-council/leeds,Leeds City Council,31/01/2019,Resources and Housing,Leeds Building Services,Supplies and Services,Operational Materials,205,31/01/2019,1901-00712,0.00,68.00,R,Amari Plastics Plc,No
Http://opendatacommunities.org/id/metropolitan-district-council/leeds,Leeds City Council,31/01/2019,Resources and Housing,Leeds Building Services,Supplies and Services,Operational Materials,205,31/01/2019,1901-00713,0.00,160.00,R,Amari Plastics Plc,No
Http://opendatacommunities.org/id/metropolitan-district-council/leeds,Leeds City Council,31/01/2019,Children and Families,Social Care,Third Party Payments,Services Rendered By Voluntary Sector,505,16/01/2019,1901-00714,0.00,1736.84,R,Amazing Grace Early Years Childcare,No
Http://opendatacommunities.org/id/metropolitan-district-council/leeds,Leeds City Council,31/01/2019,Children and Families,Social Care,Third Party Payments,Services Rendered By Other Organisations,511,16/01/2019,1901-00715,0.00,3213.00,R,Amazing Grace Early Years Childcare,No
Http://opendatacommunities.org/id/metropolitan-district-council/leeds,Leeds City Council,31/01/2019,Children and Families,Social Care,Third Party Payments,Services Rendered By Voluntary Sector,505,18/01/2019,1901-00716,0.00,-1736.84,R,Amazing Grace Early Years Childcare,No
Http://opendatacommunities.org/id/metropolitan-district-council/leeds,Leeds City Council,31/01/2019,Children and Families,Social Care,Third Party Payments,Services Rendered By Other Organisations,511,18/01/2019,1901-00717,0.00,10008.75,R,Amazing Grace Early Years Childcare,No
Http://opendatacommunities.org/id/metropolitan-district-council/leeds,Leeds City Council,31/01/2019,City Development,Recreation,Supplies and Services,Operational Furniture And Equipment,203,02/01/2019,1901-00718,0.00,345.00,R,Amazon Leisure Uk Ltd,No
Http://opendatacommunities.org/id/metropolitan-district-council/leeds,Leeds City Council,31/01/2019,City Development,Recreation,Supplies and Services,Operational Furniture And Equipment,203,04/01/2019,1901-00719,0.00,105.00,R,Amazon Leisure Uk Ltd,No
Http://opendatacommunities.org/id/metropolitan-district-council/leeds,Leeds City Council,31/01/2019,City Development,Recreation,Supplies and Services,Operational Furniture And Equipment,203,04/01/2019,1901-00720,0.00,373.54,R,Amazon Leisure Uk Ltd,No
Http://opendatacommunities.org/id/metropolitan-district-council/leeds,Leeds City Council,31/01/2019,City Development,Recreation,Supplies and Services,Operational Furniture And Equipment,203,10/01/2019,1901-00721,0.00,105.00,R,Amazon Leisure Uk Ltd,No
Http://opendatacommunities.org/id/metropolitan-district-council/leeds,Leeds City Council,31/01/2019,City Development,Recreation,Supplies and Services,Other Hired And Contracted Services,265,17/01/2019,1901-00722,0.00,161.87,R,Amazon Leisure Uk Ltd,No
Http://opendatacommunities.org/id/metropolitan-district-council/leeds,Leeds City Council,31/01/2019,City Development,Recreation,Supplies and Services,Operational Furniture And Equipment,203,31/01/2019,1901-00723,0.00,356.50,R,Amazon Leisure Uk Ltd,No
Http://opendatacommunities.org/id/metropolitan-district-council/leeds,Leeds City Council,31/01/2019,Children and Families,Social Care  ,Supplies and Services,Office Consumables,210,13/12/2018,1901-00724,0.00,0.99,R,Amazon Music*m24358fo4,Yes
Http://opendatacommunities.org/id/metropolitan-district-council/leeds,Leeds City Council,31/01/2019,Children and Families,Social Care  ,Transfer Payments,Leaving Care Allowances,634,06/12/2018,1901-00725,0.00,-7.99,R,Amazon Prime,Yes
Http://opendatacommunities.org/id/metropolitan-district-council/leeds,Leeds City Council,31/01/2019,Children and Families,Social Care  ,Supplies and Services,Teaching Materials,202,13/12/2018,1901-00726,0.00,-7.99,R,Amazon Prime,Yes
Http://opendatacommunities.org/id/metropolitan-district-council/leeds,Leeds City Council,31/01/2019,Children and Families,Social Care  ,Supplies and Services,Teaching Materials,202,13/12/2018,1901-00727,0.00,-7.99,R,Amazon Prime,Yes
Http://opendatacommunities.org/id/metropolitan-district-council/leeds,Leeds City Council,31/01/2019,Children and Families,Social Care  ,Supplies and Services,Teaching Materials,202,13/12/2018,1901-00728,0.00,-7.99,R,Amazon Prime,Yes
Http://opendatacommunities.org/id/metropolitan-district-council/leeds,Leeds City Council,31/01/2019,Children and Families,Social Care  ,Supplies and Services,Teaching Materials,202,13/12/2018,1901-00729,0.00,-7.99,R,Amazon Prime,Yes
Http://opendatacommunities.org/id/metropolitan-district-council/leeds,Leeds City Council,31/01/2019,Children and Families,Social Care  ,Supplies and Services,Teaching Materials,202,13/12/2018,1901-00730,0.00,-7.99,R,Amazon Prime,Yes
Http://opendatacommunities.org/id/metropolitan-district-council/leeds,Leeds City Council,31/01/2019,Children and Families,Social Care  ,Supplies and Services,Teaching Materials,202,13/12/2018,1901-00731,0.00,-7.99,R,Amazon Prime,Yes
Http://opendatacommunities.org/id/metropolitan-district-council/leeds,Leeds City Council,31/01/2019,Children and Families,Social Care  ,Supplies and Services,Teaching Materials,202,13/12/2018,1901-00732,0.00,-7.99,R,Amazon Prime,Yes
Http://opendatacommunities.org/id/metropolitan-district-council/leeds,Leeds City Council,31/01/2019,Children and Families,Social Care  ,Supplies and Services,Teaching Materials,202,13/12/2018,1901-00733,0.00,-7.99,R,Amazon Prime,Yes
Http://opendatacommunities.org/id/metropolitan-district-council/leeds,Leeds City Council,31/01/2019,Children and Families,Social Care  ,Supplies and Services,Teaching Materials,202,13/12/2018,1901-00734,0.00,-7.99,R,Amazon Prime Amzn.Co.Uk/P,Yes
Http://opendatacommunities.org/id/metropolitan-district-council/leeds,Leeds City Council,31/01/2019,Communities and Environment,Environmental Action (City Centre)  ,Supplies and Services,Office Consumables,210,06/12/2018,1901-00735,0.00,7.99,R,Amazon Prime*m017256b4,Yes
Http://opendatacommunities.org/id/metropolitan-district-council/leeds,Leeds City Council,31/01/2019,City Development,Libraries  Arts & Heritage  ,Supplies and Services,Operational Materials,205,09/12/2018,1901-00736,0.00,7.99,R,Amazon Prime*m02ux57g4,Yes
Http://opendatacommunities.org/id/metropolitan-district-council/leeds,Leeds City Council,31/01/2019,Children and Families,Social Care  ,Supplies and Services,Office Consumables,210,30/11/2018,1901-00737,0.00,7.99,R,Amazon Prime*m03017ty4,Yes
Http://opendatacommunities.org/id/metropolitan-district-council/leeds,Leeds City Council,31/01/2019,Resources and Housing,Leeds Building Services  ,Supplies and Services,Office Consumables,210,08/12/2018,1901-00738,0.00,7.99,R,Amazon Prime*m03bp2kw4 Am,Yes
Http://opendatacommunities.org/id/metropolitan-district-council/leeds,Leeds City Council,31/01/2019,City Development,Highways  ,Supplies and Services,Operational Furniture And Equipment,203,24/12/2018,1901-00739,0.00,6.66,R,Amazon Prime*m20cd7qy4,Yes
Http://opendatacommunities.org/id/metropolitan-district-council/leeds,Leeds City Council,31/01/2019,City Development,Libraries  Arts & Heritage  ,Supplies and Services,Operational Materials,205,14/12/2018,1901-00740,0.00,7.99,R,Amazon Prime*m20xf6li4,Yes
Http://opendatacommunities.org/id/metropolitan-district-council/leeds,Leeds City Council,31/01/2019,Children and Families,Social Care  ,Supplies and Services,Office Consumables,210,30/12/2018,1901-00741,0.00,7.99,R,Amazon Prime*m22so97x4 Am,Yes
Http://opendatacommunities.org/id/metropolitan-district-council/leeds,Leeds City Council,31/01/2019,Communities and Environment,Communities  ,Supplies and Services,'Well Being' Large Grants Projects,230,27/12/2018,1901-00742,0.00,7.99,R,Amazon Prime*m23o44sl4,Yes
Http://opendatacommunities.org/id/metropolitan-district-council/leeds,Leeds City Council,31/01/2019,Resources and Housing,Leeds Building Services  ,Supplies and Services,Office Consumables,210,16/12/2018,1901-00743,0.00,7.99,R,Amazon Prime*m28by3ji4 Am,Yes
Http://opendatacommunities.org/id/metropolitan-district-council/leeds,Leeds City Council,31/01/2019,Communities and Environment,Parks And Countryside  ,Supplies and Services,Memberships,226,19/12/2018,1901-00744,0.00,7.99,R,Amazon Prime*m28m71xl4,Yes
Http://opendatacommunities.org/id/metropolitan-district-council/leeds,Leeds City Council,31/01/2019,Resources and Housing,Commercial Services  ,Supplies and Services,Operational Furniture And Equipment,203,27/12/2018,1901-00745,0.00,7.99,R,Amazon Prime*m28zh5sd4,Yes
Http://opendatacommunities.org/id/metropolitan-district-council/leeds,Leeds City Council,31/01/2019,City Development,Libraries  Arts & Heritage  ,Supplies and Services,Books & Audio-Visual Materials,206,05/12/2018,1901-00746,0.00,8.06,R,Amazon.Co.Uk*m00p16qs4,Yes
Http://opendatacommunities.org/id/metropolitan-district-council/leeds,Leeds City Council,31/01/2019,Adults and Health,Social Services Support Services  ,Supplies and Services,Office Consumables,210,30/11/2018,1901-00747,0.00,12.83,R,Amazon.Co.Uk*m010v2as4 Am,Yes
Http://opendatacommunities.org/id/metropolitan-district-council/leeds,Leeds City Council,31/01/2019,City Development,Libraries  Arts & Heritage  ,Supplies and Services,Operational Materials,205,02/12/2018,1901-00748,0.00,16.20,R,Amazon.Co.Uk*m01gi8go4 Am,Yes
Http://opendatacommunities.org/id/metropolitan-district-council/leeds,Leeds City Council,31/01/2019,City Development,Planning & Sustainable Development  ,Supplies and Services,Office Consumables,210,07/12/2018,1901-00749,0.00,7.22,R,Amazon.Co.Uk*m02gf22o4,Yes
Http://opendatacommunities.org/id/metropolitan-district-council/leeds,Leeds City Council,31/01/2019,Adults and Health,Home Care Services  ,Supplies and Services,Operational Furniture And Equipment,203,11/12/2018,1901-00750,0.00,112.38,R,Amazon.Co.Uk*m02pf7rz4,Yes
Http://opendatacommunities.org/id/metropolitan-district-council/leeds,Leeds City Council,31/01/2019,Children and Families,Social Care  ,Transfer Payments,Leaving Care Grants,635,11/12/2018,1901-00751,0.00,18.32,R,Amazon.Co.Uk*m02va1ra4,Yes
Http://opendatacommunities.org/id/metropolitan-district-council/leeds,Leeds City Council,31/01/2019,City Development,Libraries  Arts & Heritage  ,Premises,Cleaning Maintenance & Toiletries,127,04/12/2018,1901-00752,0.00,95.49,R,Amazon.Co.Uk*m02vn3bl4 Am,Yes
Http://opendatacommunities.org/id/metropolitan-district-council/leeds,Leeds City Council,31/01/2019,Resources and Housing,Facilities Management  ,Supplies and Services,Operational Furniture And Equipment,203,10/12/2018,1901-00753,0.00,6.24,R,Amazon.Co.Uk*m02xf3ir4 Am,Yes
Http://opendatacommunities.org/id/metropolitan-district-council/leeds,Leeds City Council,31/01/2019,Children and Families,Social Care  ,Supplies and Services,Teaching Materials,202,09/12/2018,1901-00754,0.00,21.24,R,Amazon.Co.Uk*m03w117e4,Yes
Http://opendatacommunities.org/id/metropolitan-district-council/leeds,Leeds City Council,31/01/2019,Children and Families,Social Care  ,Supplies and Services,Operational Furniture And Equipment,203,11/12/2018,1901-00755,0.00,37.97,R,Amazon.Co.Uk*m047k9rb4,Yes
Http://opendatacommunities.org/id/metropolitan-district-council/leeds,Leeds City Council,31/01/2019,Children and Families,Social Care  ,Supplies and Services,Teaching Materials,202,05/12/2018,1901-00756,0.00,5.49,R,Amazon.Co.Uk*m05h72qy4,Yes
Http://opendatacommunities.org/id/metropolitan-district-council/leeds,Leeds City Council,31/01/2019,Children and Families,Social Care  ,Supplies and Services,Teaching Materials,202,05/12/2018,1901-00757,0.00,79.99,R,Amazon.Co.Uk*m05hv9ba4,Yes
Http://opendatacommunities.org/id/metropolitan-district-council/leeds,Leeds City Council,31/01/2019,Children and Families,Social Care  ,Transfer Payments,Leaving Care Grants,635,06/12/2018,1901-00758,0.00,284.99,R,Amazon.Co.Uk*m05jw3dq4,Yes
Http://opendatacommunities.org/id/metropolitan-district-council/leeds,Leeds City Council,31/01/2019,Communities and Environment,Cleaner Neighbourhood Teams  ,Supplies and Services,Operational Furniture And Equipment,203,04/12/2018,1901-00759,0.00,61.89,R,Amazon.Co.Uk*m05n00b54 Am,Yes
Http://opendatacommunities.org/id/metropolitan-district-council/leeds,Leeds City Council,31/01/2019,Resources and Housing,Shared Services  ,Supplies and Services,Computer Software & Equipment,214,03/12/2018,1901-00760,0.00,35.79,R,Amazon.Co.Uk*m05wd35b4 Am,Yes
Http://opendatacommunities.org/id/metropolitan-district-council/leeds,Leeds City Council,31/01/2019,Adults and Health,Home Care Services  ,Supplies and Services,Operational Furniture And Equipment,203,10/12/2018,1901-00761,0.00,187.29,R,Amazon.Co.Uk*m05wi5re4,Yes
Http://opendatacommunities.org/id/metropolitan-district-council/leeds,Leeds City Council,31/01/2019,City Development,Libraries  Arts & Heritage  ,Supplies and Services,Books & Audio-Visual Materials,206,29/11/2018,1901-00762,0.00,8.24,R,Amazon.Co.Uk*m068e4304 Am,Yes
Http://opendatacommunities.org/id/metropolitan-district-council/leeds,Leeds City Council,31/01/2019,Children and Families,Partnerships & Health  ,Transfer Payments,Young People Expenses,654,08/12/2018,1901-00763,0.00,8.00,R,Amazon.Co.Uk*m06iy1kq4,Yes
Http://opendatacommunities.org/id/metropolitan-district-council/leeds,Leeds City Council,31/01/2019,City Development,Employment & Skills  ,Supplies and Services,Operational Materials,205,07/12/2018,1901-00764,0.00,10.18,R,Amazon.Co.Uk*m06l552y4,Yes
